Workbook

Sheet Inputs
C1: Not for Further Distribution Do not use if training has not been received or the tutorial available in the Help Section has not been read, as improper use could lead to miscalculation. Total Cost of Ownership (TCO) Comparison Tool 1.5-5.5t Internal Combustion Engine (ICE) and Electric Counterbalance Trucks
B2: Application and Daily Schedule
E4: Start Time | F4: 07:00:00 | H4: select
D6: Break 1 | F6: Break 2 | H6: Break 3 | J6: Break 4 | L6: Break 5 | N6: Break 6
C7: Break Start Time | D7: 10:00:00 | F7: 12:30:00 | H7: 15:00:00 | J7: 19:00:00 | L7: 21:00:00 | N7: No Break
C8: Break Duration (mins) | D8: 20 | F8: 40 | H8: 20 | J8: 40 | L8: 20 | N8: 0
D10: Break 7 | F10: Break 8 | H10: Break 9 | J10: Break 10 | L10: Break 11 | N10: Break 12
C11: Break Start Time | D11: No Break | F11: No Break | H11: No Break | J11: No Break | L11: No Break | N11: No Break
C12: Break Duration (mins) | D12: 0 | F12: 0 | H12: 0 | J12: 0 | L12: 0 | N12: 0
D14: Break 13 | F14: Break 14 | H14: Break 15 | J14: Break 16 | L14: Break 17 | N14: Break 18
C15: Break Start Time | D15: No Break | F15: No Break | H15: No Break | J15: No Break | L15: No Break | N15: No Break
C16: Break Duration (mins) | D16: 0 | F16: 0 | H16: 0 | J16: 0 | L16: 0 | N16: 0
E18: End Time | F18: 23:00:00 | H18: select | J18: =IF(Calc1!$P$57=1,"Warning: please choose End Time after final break or check break patters","") -> 
E20: Days per week | F20: 5
E21: Truck hours / Year | F21: 3000 | H21: ="input Hours per year based on shift pattern: "&TEXT((Calc1!D2),"0")&" hours" -> input Hours per year based on shift pattern: 3280 hours
E22: % Working time that truck is idle (excl. scheduled breaks) | F22: 9 | H22: =IF((AND(F21>0, F21<=Calc1!D2)), "input Suggested value based on truck hrs p.a. = "&TEXT((Calc1!D3*100),"0") &"%","input Suggested default value is = "&TEXT(Calc2!C9,"0")& "%") -> input Suggested value based on truck hrs p.a. = 9%
B25: Fleet size / Fuel & Power Costs
E27: Fleet size input number of trucks required | F27: 10 | H27: ="input" -> input
E29: Operator hourly cost (€) | F29: 30 | H29: ="input Default = "&TEXT(Calc2!$C$15,"0.00")&" €/h" -> input Default = 30.00 €/h
E30: Diesel cost (€/lt) | F30: 1.3 | H30: ="input Default = "&TEXT(Calc2!$C$12,"0.00")&" €/L" -> input Default = 1.00 €/L
E31: LPG cost (€/kg) | F31: 0.75 | H31: ="input Default = "&TEXT(Calc2!$C$13,"0.00")&" €/kg" -> input Default = 0.70 €/kg
E32: Electricity cost (€/kWh) | F32: 0.09 | H32: ="input Default = "&TEXT(Calc2!$C$11,"0.00")&" €/kWh" -> input Default = 0.12 €/kWh
E33: Hydrogen cost (€/kg) | F33: 3 | H33: ="input Default = "&TEXT(Calc2!$C$14,"0.00")&" €/kg" -> input Default = 3.00 €/kg
B36: Current - ICE Truck Information
E38: Model | F38: H2.5FT | H38: select
E39: Fuel | F39: Diesel | H39: select
E40: Engine | F40: 2.4L - Kubota | H40: select
E41: Transmision | F41: 1-Speed Basic | H41: select
E42: Energy consumption | F42: 2.6 | H42: ="input Provide real value if possible (VDI value for selected truck is = "&TEXT(Trucks!L5,"0.00")&IF(F39="Diesel"," L/h",IF(F39="LPG"," kg/h","")) &")" -> input Provide real value if possible (VDI value for selected truck is = 2,6 L/h)
E44: Refueling time (mins) | F44: 20 | H44: input | J44: Include time to drive to the Refill area
E45: LPG Bottle size (kg) | F45: 11 | H45: input | I45: Ensure LPG bottle is compatible with truck selected
E47: Truck purchase cost | F47: 36000 | H47: input
E48: Monthly service fee | F48: 250 | H48: input
E49: Infrastructure price | F49: 0 | H49: input | J49: ** EG Bulk storage of Dsl or LPG
E50: Annual Infrastructure fees | F50: 0 | H50: input | J50: Any bulk storage rental
D52: Truck in Hip | F52: No
B54: Electric Truck Information
E56: Model | F56: J2.5XN | H56: select
E57: Energy Consumption | F57: 7.9 | H57: ="input Provide real value if possible (VDI value for selected truck is = "&TEXT(Calc2!C8,"0.00") &" kWh/h)" -> input Provide real value if possible (VDI value for selected truck is = 7,9 kWh/h)
E59: Truck purchase cost (ex battery) | F59: 33700 | H59: input
E60: Monthly service fee (EXCLUDING battery maintenance) | F60: 150 | H60: input
B63: Lead Acid Battery and Charger
E65: Battery capacity (Ah) | F65: 770 | H65: select
E66: Charger type | F66: 50 Hz | H66: select
E67: # Batteries needed | F67: =Calc1!$D$51 -> 2 | H67: =IF((AND((F67-Calc1!D50)/1<1, (F67-Calc1!D50)/1>0.8)), " Less than 20% of the last battery is used, consider changing the battery capacity and/or reviewing the truck energy consumption (row 57)", "") -> 
E69: Monthly battery & charger service fee | F69: 100 | H69: input Include maintenance, cleaning, topping. Do not include annual inspection
E70: Battery changeover time (mins) | F70: 15 | H70: input | J70: Include time to drive to the Battery room
E72: Lead Acid battery price (€) | F72: 7000 | H72: input
E73: Charger price (€) | F73: 1500 | H73: input
D74: Chargers/Truck | F74: 0.8 | H74: input
E75: Infrastructure price (€) | H75: input | J75: Charging rooms/Cranes - Exchange equipment
E76: Incentives / Benefits (%) | F76: 0 | H76: input | J76: To define which amounts are affected by this benefit
E78: Is there an existing charging room? | F78: Yes | H78: select
D79: Truck in Hip | F79: Yes
B82: Li-ion Battery and Charger
E84: Battery capacity (Ah) | F84: 600 | H84: select | J84: =IFERROR(IF(SUM(Calc1!$R$18:$R$56)>0,"Maximum DOD has been exceeded. Please check energy consumption, choose a larger Lithium-ion battery or charger or change shift pattern",""),"") -> 
E85: Charger (A) | F85: 500 | H85: select
E87: Lithium-ion battery price (€) | F87: 20000 | H87: input
E88: Charger price (€) | F88: 5000 | H88: input
D89: Chargers/Truck | F89: 0.75 | H89: input
E90: Infrastructure price (€) | H90: input | J90: E.g. upgrade to facility power supply/circuit breakers
E91: Incentives / Benefits (%) | H91: input | J91: To define which amounts are affected by this benefit
D92: Truck in Hip | F92: Yes
N93: Version 12/9/19
B94: Fuel Cell
E96: Fuel Cell capacity (Ah) | F96: 312 | H96: select
E98: Refueling time (mins) | F98: 3 | H98: input
E100: Power Cell price (€) | F100: 20000 | H100: input
E101: Infrastructure price (€) | F101: 50000 | H101: input | J101: Refuel station/H2 Generation
E102: Annual Infrastructure fee (€) | H102: input | J102: Rental of MCP or Trailers
E103: Incentives / Benefits (%) | H103: input | J103: To define which amounts are affected by this benefit
D104: Truck in Hip | F104: Yes
B117: THE TCO COMPARISON TOOL USES GENERIC DATA AND TECHNICAL DATA FROM HYSTER-YALE GROUP (HYG) AND ITS SUPPLIERS TO MODEL THE PERFORMANCE OF FORKLIFT TRUCKS AND THE DIFFERENT POWER OPTIONS SUPPLIED BY HYG. BASED ON USER INPUTS IT CALCULATES THE PERFORMANCE OF THE EQUIPMENT IN TYPICAL MATERIALS HANDLING APPLICATIONS. WHILE HYG HAS ENDEAVOURED TO ENSURE ITS ACCURACY, HYG CANNOT GUARANTEE THAT THE RESULTS GENERATED WILL BE ACCURATE OR CORRECT FOR A SPECIFIC CUSTOMER OR APPLICATION. FURTHER, THE PERFORMANCE OF THE TOOL RELIES ON THE USER PROVIDING COMPLETE AND ACCURATE INPUTS. RESULTS GENERATED BY THE TOOL MAY BE COMPROMISED IF INCOMPLETE OR INACCURATE INPUTS ARE USED. THE TOOL PROVIDES ESTIMATES ONLY, AND SHOULD NOT BE RELIED UPON TO ACCURATELY FORECAST OR PREDICT RESULTS IN ACTUAL USE OF MATERIALS HANDLING EQUIPMENT. HYG EXPRESSLY DISCLAIMS AND EXCLUDES ANY LIABILITY FOR LOSS OR DAMAGE HOWEVER CAUSED, WHETHER DIRECT OR INDIRECT, THAT MAY RESULT FROM USE OF THE TCO COMPARISON TOOL OR RELIANCE ON ITS RESULTS.

Sheet Trucks (hidden)
A1: Table A: ICE Trucks
B4: Truck Model (write exactly as you wish the names to appear to the user) - write each truck model only once | C4: Fuel | D4: Engine | E4: Transmision | F4: VDI | G4: Tank Size | H4: ModelD | I4: FuelD | J4: EngineD | K4: TransmisionD | L4: VDI | M4: Tank | O4: Selected model | P4: Selected Fuel | Q4: Selected Engine | R4: Selected transmision
B5: Select | C5: Select | D5: Select | E5: Select | F5: 0 | G5: 0 | H5: =IFERROR(INDEX(ICTrucks,MATCH(0,COUNTIF($H$4:H4,ICTrucks),0)),"") -> Select | I5: =IFERROR(INDEX(ICFuels,MATCH(0,COUNTIF($I$4:I4,ICFuels)+(ICTrucks<>$O$5),0)),"") -> LPG | J5: =IFERROR(INDEX(ICEngines,MATCH(0,COUNTIF($J$4:J4,ICEngines)+(ICFuels<>$P$5)+(ICTrucks<>$O$5),0)),"") -> 2.6L - Yanmar | K5: =IFERROR(INDEX(ICTransmisions,MATCH(0,COUNTIF($K$4:K4,ICTransmisions)+(ICEngines<>$Q$5)+(ICFuels<>$P$5)+(ICTrucks<>$O$5),0)),"") -> 1-Speed Basic | L5: =IFERROR(INDEX(ICVDI,MATCH(0,COUNTIF($L$4:L4,ICVDI)+(ICTransmisions<>$R$5)+(ICEngines<>$Q$5)+(ICFuels<>$P$5)+(ICTrucks<>$O$5),0)),"") -> 2,6 | M5: =IFERROR(INDEX(ICTank,MATCH(0,COUNTIF($M$4:M4,ICTank)+(ICTransmisions<>$R$5)+(ICEngines<>$Q$5)+(ICFuels<>$P$5)+(ICTrucks<>$O$5),0)),"") -> 52 | O5: =Inputs!F38 -> H2.5FT | P5: =Inputs!F39 -> Diesel | Q5: =Inputs!F40 -> 2.4L - Kubota | R5: =Inputs!F41 -> 1-Speed Basic
B6: H1.6FT | C6: LPG | D6: 2.0L PSI | E6: 1-Speed | F6: 2,35 | G6: 0 | H6: =IFERROR(INDEX(ICTrucks,MATCH(0,COUNTIF($H$4:H5,ICTrucks),0)),"") -> H1.6FT | I6: =IFERROR(INDEX(ICFuels,MATCH(0,COUNTIF($I$4:I5,ICFuels)+(ICTrucks<>$O$5),0)),"") -> Diesel | J6: =IFERROR(INDEX(ICEngines,MATCH(0,COUNTIF($J$4:J5,ICEngines)+(ICFuels<>$P$5)+(ICTrucks<>$O$5),0)),"") -> 3.3L - Yanmar | K6: =IFERROR(INDEX(ICTransmisions,MATCH(0,COUNTIF($K$4:K5,ICTransmisions)+(ICEngines<>$Q$5)+(ICFuels<>$P$5)+(ICTrucks<>$O$5),0)),"") -> 2-Speed Basic
B7: H1.8FT | C7: LPG | D7: 2.0L PSI | E7: 1-Speed | F7: 2,42 | G7: 0 | H7: =IFERROR(INDEX(ICTrucks,MATCH(0,COUNTIF($H$4:H6,ICTrucks),0)),"") -> H1.8FT | I7: =IFERROR(INDEX(ICFuels,MATCH(0,COUNTIF($I$4:I6,ICFuels)+(ICTrucks<>$O$5),0)),"") ->  | J7: =IFERROR(INDEX(ICEngines,MATCH(0,COUNTIF($J$4:J6,ICEngines)+(ICFuels<>$P$5)+(ICTrucks<>$O$5),0)),"") -> 2.4L - Kubota | K7: =IFERROR(INDEX(ICTransmisions,MATCH(0,COUNTIF($K$4:K6,ICTransmisions)+(ICEngines<>$Q$5)+(ICFuels<>$P$5)+(ICTrucks<>$O$5),0)),"") -> 
B8: H2.0FT | C8: LPG | D8: 2.4L PSI | E8: 1-Speed Basic | F8: 2,5 | G8: 0 | H8: =IFERROR(INDEX(ICTrucks,MATCH(0,COUNTIF($H$4:H7,ICTrucks),0)),"") -> H2.0FT | I8: =IFERROR(INDEX(ICFuels,MATCH(0,COUNTIF($I$4:I7,ICFuels)+(ICTrucks<>$O$5),0)),"") ->  | J8: =IFERROR(INDEX(ICEngines,MATCH(0,COUNTIF($J$4:J7,ICEngines)+(ICFuels<>$P$5)+(ICTrucks<>$O$5),0)),"") ->  | K8: =IFERROR(INDEX(ICTransmisions,MATCH(0,COUNTIF($K$4:K7,ICTransmisions)+(ICEngines<>$Q$5)+(ICFuels<>$P$5)+(ICTrucks<>$O$5),0)),"") -> 
B9: H2.0FT | C9: LPG | D9: 2.4L PSI | E9: 1-Speed Duramatch | F9: 2,5 | G9: 0 | H9: =IFERROR(INDEX(ICTrucks,MATCH(0,COUNTIF($H$4:H8,ICTrucks),0)),"") -> H2.5FT | I9: =IFERROR(INDEX(ICFuels,MATCH(0,COUNTIF($I$4:I8,ICFuels)+(ICTrucks<>$O$5),0)),"") ->  | J9: =IFERROR(INDEX(ICEngines,MATCH(0,COUNTIF($J$4:J8,ICEngines)+(ICFuels<>$P$5)+(ICTrucks<>$O$5),0)),"") ->  | K9: =IFERROR(INDEX(ICTransmisions,MATCH(0,COUNTIF($K$4:K8,ICTransmisions)+(ICEngines<>$Q$5)+(ICFuels<>$P$5)+(ICTrucks<>$O$5),0)),"") -> 
B10: H2.0FT | C10: LPG | D10: 2.5L Kubota | E10: 1-Speed Basic | F10: 2,6 | G10: 0 | H10: =IFERROR(INDEX(ICTrucks,MATCH(0,COUNTIF($H$4:H9,ICTrucks),0)),"") -> H3.0FT | I10: =IFERROR(INDEX(ICFuels,MATCH(0,COUNTIF($I$4:I9,ICFuels)+(ICTrucks<>$O$5),0)),"") ->  | J10: =IFERROR(INDEX(ICEngines,MATCH(0,COUNTIF($J$4:J9,ICEngines)+(ICFuels<>$P$5)+(ICTrucks<>$O$5),0)),"") ->  | K10: =IFERROR(INDEX(ICTransmisions,MATCH(0,COUNTIF($K$4:K9,ICTransmisions)+(ICEngines<>$Q$5)+(ICFuels<>$P$5)+(ICTrucks<>$O$5),0)),"") -> 
B11: H2.0FT | C11: LPG | D11: 2.5L Kubota | E11: 2-Speed Duramatch 2 | F11: 2,7 | G11: 0 | H11: =IFERROR(INDEX(ICTrucks,MATCH(0,COUNTIF($H$4:H10,ICTrucks),0)),"") -> H3.5FT | I11: =IFERROR(INDEX(ICFuels,MATCH(0,COUNTIF($I$4:I10,ICFuels)+(ICTrucks<>$O$5),0)),"") ->  | J11: =IFERROR(INDEX(ICEngines,MATCH(0,COUNTIF($J$4:J10,ICEngines)+(ICFuels<>$P$5)+(ICTrucks<>$O$5),0)),"") ->  | K11: =IFERROR(INDEX(ICTransmisions,MATCH(0,COUNTIF($K$4:K10,ICTransmisions)+(ICEngines<>$Q$5)+(ICFuels<>$P$5)+(ICTrucks<>$O$5),0)),"") -> 
B12: H2.5FT | C12: LPG | D12: 2.4L - PSI | E12: 1-Speed Basic | F12: 2,7 | G12: 0 | H12: =IFERROR(INDEX(ICTrucks,MATCH(0,COUNTIF($H$4:H11,ICTrucks),0)),"") -> H2.0XT | I12: =IFERROR(INDEX(ICFuels,MATCH(0,COUNTIF($I$4:I11,ICFuels)+(ICTrucks<>$O$5),0)),"") ->  | J12: =IFERROR(INDEX(ICEngines,MATCH(0,COUNTIF($J$4:J11,ICEngines)+(ICFuels<>$P$5)+(ICTrucks<>$O$5),0)),"") ->  | K12: =IFERROR(INDEX(ICTransmisions,MATCH(0,COUNTIF($K$4:K11,ICTransmisions)+(ICEngines<>$Q$5)+(ICFuels<>$P$5)+(ICTrucks<>$O$5),0)),"") -> 
B13: H2.5FT | C13: Diesel | D13: 2.6L - Yanmar | E13: 1-Speed Basic | F13: 3 | G13: 52 | H13: =IFERROR(INDEX(ICTrucks,MATCH(0,COUNTIF($H$4:H12,ICTrucks),0)),"") -> H2.5XT | I13: =IFERROR(INDEX(ICFuels,MATCH(0,COUNTIF($I$4:I12,ICFuels)+(ICTrucks<>$O$5),0)),"") ->  | J13: =IFERROR(INDEX(ICEngines,MATCH(0,COUNTIF($J$4:J12,ICEngines)+(ICFuels<>$P$5)+(ICTrucks<>$O$5),0)),"") ->  | K13: =IFERROR(INDEX(ICTransmisions,MATCH(0,COUNTIF($K$4:K12,ICTransmisions)+(ICEngines<>$Q$5)+(ICFuels<>$P$5)+(ICTrucks<>$O$5),0)),"") -> 
B14: H2.5FT | C14: Diesel | D14: 3.3L - Yanmar | E14: 1-Speed Basic | F14: 3,3 | G14: 52 | H14: =IFERROR(INDEX(ICTrucks,MATCH(0,COUNTIF($H$4:H13,ICTrucks),0)),"") -> H3.0XT | I14: =IFERROR(INDEX(ICFuels,MATCH(0,COUNTIF($I$4:I13,ICFuels)+(ICTrucks<>$O$5),0)),"") ->  | J14: =IFERROR(INDEX(ICEngines,MATCH(0,COUNTIF($J$4:J13,ICEngines)+(ICFuels<>$P$5)+(ICTrucks<>$O$5),0)),"") ->  | K14: =IFERROR(INDEX(ICTransmisions,MATCH(0,COUNTIF($K$4:K13,ICTransmisions)+(ICEngines<>$Q$5)+(ICFuels<>$P$5)+(ICTrucks<>$O$5),0)),"") -> 
B15: H2.5FT | C15: Diesel | D15: 2.4L - Kubota | E15: 1-Speed Basic | F15: 2,6 | G15: 52 | H15: =IFERROR(INDEX(ICTrucks,MATCH(0,COUNTIF($H$4:H14,ICTrucks),0)),"") -> H4.0FT | I15: =IFERROR(INDEX(ICFuels,MATCH(0,COUNTIF($I$4:I14,ICFuels)+(ICTrucks<>$O$5),0)),"") ->  | J15: =IFERROR(INDEX(ICEngines,MATCH(0,COUNTIF($J$4:J14,ICEngines)+(ICFuels<>$P$5)+(ICTrucks<>$O$5),0)),"") ->  | K15: =IFERROR(INDEX(ICTransmisions,MATCH(0,COUNTIF($K$4:K14,ICTransmisions)+(ICEngines<>$Q$5)+(ICFuels<>$P$5)+(ICTrucks<>$O$5),0)),"") -> 
B16: H2.5FT | C16: LPG | D16: 2.5L - Kubota | E16: 1-Speed Duramatch | F16: 2,8 | G16: 0 | H16: =IFERROR(INDEX(ICTrucks,MATCH(0,COUNTIF($H$4:H15,ICTrucks),0)),"") -> H4.5FT | I16: =IFERROR(INDEX(ICFuels,MATCH(0,COUNTIF($I$4:I15,ICFuels)+(ICTrucks<>$O$5),0)),"") ->  | J16: =IFERROR(INDEX(ICEngines,MATCH(0,COUNTIF($J$4:J15,ICEngines)+(ICFuels<>$P$5)+(ICTrucks<>$O$5),0)),"") ->  | K16: =IFERROR(INDEX(ICTransmisions,MATCH(0,COUNTIF($K$4:K15,ICTransmisions)+(ICEngines<>$Q$5)+(ICFuels<>$P$5)+(ICTrucks<>$O$5),0)),"") -> 
B17: H2.5FT | C17: LPG | D17: 2.4L - PSI | E17: 1-Speed Duramatch | F17: 2,7 | G17: 0 | H17: =IFERROR(INDEX(ICTrucks,MATCH(0,COUNTIF($H$4:H16,ICTrucks),0)),"") -> H5.0FT | I17: =IFERROR(INDEX(ICFuels,MATCH(0,COUNTIF($I$4:I16,ICFuels)+(ICTrucks<>$O$5),0)),"") ->  | J17: =IFERROR(INDEX(ICEngines,MATCH(0,COUNTIF($J$4:J16,ICEngines)+(ICFuels<>$P$5)+(ICTrucks<>$O$5),0)),"") ->  | K17: =IFERROR(INDEX(ICTransmisions,MATCH(0,COUNTIF($K$4:K16,ICTransmisions)+(ICEngines<>$Q$5)+(ICFuels<>$P$5)+(ICTrucks<>$O$5),0)),"") -> 
B18: H2.5FT | C18: Diesel | D18: 2.6L - Yanmar | E18: 1-Speed Duramatch | F18: 3 | G18: 52 | H18: =IFERROR(INDEX(ICTrucks,MATCH(0,COUNTIF($H$4:H17,ICTrucks),0)),"") -> H5.5FT | I18: =IFERROR(INDEX(ICFuels,MATCH(0,COUNTIF($I$4:I17,ICFuels)+(ICTrucks<>$O$5),0)),"") ->  | J18: =IFERROR(INDEX(ICEngines,MATCH(0,COUNTIF($J$4:J17,ICEngines)+(ICFuels<>$P$5)+(ICTrucks<>$O$5),0)),"") ->  | K18: =IFERROR(INDEX(ICTransmisions,MATCH(0,COUNTIF($K$4:K17,ICTransmisions)+(ICEngines<>$Q$5)+(ICFuels<>$P$5)+(ICTrucks<>$O$5),0)),"") -> 
B19: H2.5FT | C19: Diesel | D19: 2.4L - Kubota | E19: 2-Speed Basic | F19: 2,6 | G19: 52 | H19: =IFERROR(INDEX(ICTrucks,MATCH(0,COUNTIF($H$4:H18,ICTrucks),0)),"") ->  | I19: =IFERROR(INDEX(ICFuels,MATCH(0,COUNTIF($I$4:I18,ICFuels)+(ICTrucks<>$O$5),0)),"") ->  | J19: =IFERROR(INDEX(ICEngines,MATCH(0,COUNTIF($J$4:J18,ICEngines)+(ICFuels<>$P$5)+(ICTrucks<>$O$5),0)),"") ->  | K19: =IFERROR(INDEX(ICTransmisions,MATCH(0,COUNTIF($K$4:K18,ICTransmisions)+(ICEngines<>$Q$5)+(ICFuels<>$P$5)+(ICTrucks<>$O$5),0)),"") -> 
B20: H2.5FT | C20: LPG | D20: 2.5L - Kubota | E20: 2-Speed Duramatch 2 | F20: 2,9 | G20: 0 | H20: =IFERROR(INDEX(ICTrucks,MATCH(0,COUNTIF($H$4:H19,ICTrucks),0)),"") ->  | I20: =IFERROR(INDEX(ICFuels,MATCH(0,COUNTIF($I$4:I19,ICFuels)+(ICTrucks<>$O$5),0)),"") ->  | J20: =IFERROR(INDEX(ICEngines,MATCH(0,COUNTIF($J$4:J19,ICEngines)+(ICFuels<>$P$5)+(ICTrucks<>$O$5),0)),"") ->  | K20: =IFERROR(INDEX(ICTransmisions,MATCH(0,COUNTIF($K$4:K19,ICTransmisions)+(ICEngines<>$Q$5)+(ICFuels<>$P$5)+(ICTrucks<>$O$5),0)),"") -> 
B21: H3.0FT | C21: LPG | D21: 2.4L - PSI | E21: 1-Speed Basic | F21: 3,1 | G21: 0 | H21: =IFERROR(INDEX(ICTrucks,MATCH(0,COUNTIF($H$4:H20,ICTrucks),0)),"") ->  | I21: =IFERROR(INDEX(ICFuels,MATCH(0,COUNTIF($I$4:I20,ICFuels)+(ICTrucks<>$O$5),0)),"") ->  | J21: =IFERROR(INDEX(ICEngines,MATCH(0,COUNTIF($J$4:J20,ICEngines)+(ICFuels<>$P$5)+(ICTrucks<>$O$5),0)),"") ->  | K21: =IFERROR(INDEX(ICTransmisions,MATCH(0,COUNTIF($K$4:K20,ICTransmisions)+(ICEngines<>$Q$5)+(ICFuels<>$P$5)+(ICTrucks<>$O$5),0)),"") -> 
B22: H3.0FT | C22: Diesel | D22: 2.6L - Yanmar | E22: 1-Speed Basic | F22: 3,3 | G22: 52 | H22: =IFERROR(INDEX(ICTrucks,MATCH(0,COUNTIF($H$4:H21,ICTrucks),0)),"") ->  | I22: =IFERROR(INDEX(ICFuels,MATCH(0,COUNTIF($I$4:I21,ICFuels)+(ICTrucks<>$O$5),0)),"") ->  | J22: =IFERROR(INDEX(ICEngines,MATCH(0,COUNTIF($J$4:J21,ICEngines)+(ICFuels<>$P$5)+(ICTrucks<>$O$5),0)),"") ->  | K22: =IFERROR(INDEX(ICTransmisions,MATCH(0,COUNTIF($K$4:K21,ICTransmisions)+(ICEngines<>$Q$5)+(ICFuels<>$P$5)+(ICTrucks<>$O$5),0)),"") -> 
B23: H3.0FT | C23: Diesel | D23: 3.3L - Yanmar | E23: 1-Speed Basic | F23: 3,8 | G23: 52 | H23: =IFERROR(INDEX(ICTrucks,MATCH(0,COUNTIF($H$4:H22,ICTrucks),0)),"") ->  | I23: =IFERROR(INDEX(ICFuels,MATCH(0,COUNTIF($I$4:I22,ICFuels)+(ICTrucks<>$O$5),0)),"") ->  | J23: =IFERROR(INDEX(ICEngines,MATCH(0,COUNTIF($J$4:J22,ICEngines)+(ICFuels<>$P$5)+(ICTrucks<>$O$5),0)),"") ->  | K23: =IFERROR(INDEX(ICTransmisions,MATCH(0,COUNTIF($K$4:K22,ICTransmisions)+(ICEngines<>$Q$5)+(ICFuels<>$P$5)+(ICTrucks<>$O$5),0)),"") -> 
B24: H3.0FT | C24: Diesel | D24: 2.4L - Kubota | E24: 1-Speed Basic | F24: 3,2 | G24: 52 | H24: =IFERROR(INDEX(ICTrucks,MATCH(0,COUNTIF($H$4:H23,ICTrucks),0)),"") ->  | I24: =IFERROR(INDEX(ICFuels,MATCH(0,COUNTIF($I$4:I23,ICFuels)+(ICTrucks<>$O$5),0)),"") ->  | J24: =IFERROR(INDEX(ICEngines,MATCH(0,COUNTIF($J$4:J23,ICEngines)+(ICFuels<>$P$5)+(ICTrucks<>$O$5),0)),"") ->  | K24: =IFERROR(INDEX(ICTransmisions,MATCH(0,COUNTIF($K$4:K23,ICTransmisions)+(ICEngines<>$Q$5)+(ICFuels<>$P$5)+(ICTrucks<>$O$5),0)),"") -> 
B25: H3.0FT | C25: LPG | D25: 2.5L - Kubota | E25: 1-Speed Duramatch | F25: 3 | G25: 0 | H25: =IFERROR(INDEX(ICTrucks,MATCH(0,COUNTIF($H$4:H24,ICTrucks),0)),"") ->  | I25: =IFERROR(INDEX(ICFuels,MATCH(0,COUNTIF($I$4:I24,ICFuels)+(ICTrucks<>$O$5),0)),"") ->  | J25: =IFERROR(INDEX(ICEngines,MATCH(0,COUNTIF($J$4:J24,ICEngines)+(ICFuels<>$P$5)+(ICTrucks<>$O$5),0)),"") ->  | K25: =IFERROR(INDEX(ICTransmisions,MATCH(0,COUNTIF($K$4:K24,ICTransmisions)+(ICEngines<>$Q$5)+(ICFuels<>$P$5)+(ICTrucks<>$O$5),0)),"") -> 
B26: H3.0FT | C26: LPG | D26: 2.4L - PSI | E26: 1-Speed Duramatch | F26: 3,1 | G26: 0 | H26: =IFERROR(INDEX(ICTrucks,MATCH(0,COUNTIF($H$4:H25,ICTrucks),0)),"") ->  | I26: =IFERROR(INDEX(ICFuels,MATCH(0,COUNTIF($I$4:I25,ICFuels)+(ICTrucks<>$O$5),0)),"") ->  | J26: =IFERROR(INDEX(ICEngines,MATCH(0,COUNTIF($J$4:J25,ICEngines)+(ICFuels<>$P$5)+(ICTrucks<>$O$5),0)),"") ->  | K26: =IFERROR(INDEX(ICTransmisions,MATCH(0,COUNTIF($K$4:K25,ICTransmisions)+(ICEngines<>$Q$5)+(ICFuels<>$P$5)+(ICTrucks<>$O$5),0)),"") -> 
B27: H3.0FT | C27: Diesel | D27: 2.6L - Yanmar | E27: 1-Speed Duramatch | F27: 3,3 | G27: 52 | H27: =IFERROR(INDEX(ICTrucks,MATCH(0,COUNTIF($H$4:H26,ICTrucks),0)),"") ->  | I27: =IFERROR(INDEX(ICFuels,MATCH(0,COUNTIF($I$4:I26,ICFuels)+(ICTrucks<>$O$5),0)),"") ->  | J27: =IFERROR(INDEX(ICEngines,MATCH(0,COUNTIF($J$4:J26,ICEngines)+(ICFuels<>$P$5)+(ICTrucks<>$O$5),0)),"") ->  | K27: =IFERROR(INDEX(ICTransmisions,MATCH(0,COUNTIF($K$4:K26,ICTransmisions)+(ICEngines<>$Q$5)+(ICFuels<>$P$5)+(ICTrucks<>$O$5),0)),"") -> 
B28: H3.0FT | C28: Diesel | D28: 2.4L - Kubota | E28: 2-Speed Basic | F28: 3,1 | G28: 52 | H28: =IFERROR(INDEX(ICTrucks,MATCH(0,COUNTIF($H$4:H27,ICTrucks),0)),"") ->  | I28: =IFERROR(INDEX(ICFuels,MATCH(0,COUNTIF($I$4:I27,ICFuels)+(ICTrucks<>$O$5),0)),"") ->  | J28: =IFERROR(INDEX(ICEngines,MATCH(0,COUNTIF($J$4:J27,ICEngines)+(ICFuels<>$P$5)+(ICTrucks<>$O$5),0)),"") ->  | K28: =IFERROR(INDEX(ICTransmisions,MATCH(0,COUNTIF($K$4:K27,ICTransmisions)+(ICEngines<>$Q$5)+(ICFuels<>$P$5)+(ICTrucks<>$O$5),0)),"") -> 
B29: H3.0FT | C29: LPG | D29: 2.5L - Kubota | E29: 2-Speed Duramatch 2 | F29: 3,2 | G29: 0 | H29: =IFERROR(INDEX(ICTrucks,MATCH(0,COUNTIF($H$4:H28,ICTrucks),0)),"") ->  | I29: =IFERROR(INDEX(ICFuels,MATCH(0,COUNTIF($I$4:I28,ICFuels)+(ICTrucks<>$O$5),0)),"") ->  | J29: =IFERROR(INDEX(ICEngines,MATCH(0,COUNTIF($J$4:J28,ICEngines)+(ICFuels<>$P$5)+(ICTrucks<>$O$5),0)),"") ->  | K29: =IFERROR(INDEX(ICTransmisions,MATCH(0,COUNTIF($K$4:K28,ICTransmisions)+(ICEngines<>$Q$5)+(ICFuels<>$P$5)+(ICTrucks<>$O$5),0)),"") -> 
B30: H3.5FT | C30: LPG | D30: 2.2L - Mazda | E30: 1-Speed Basic | F30: 3,3 | G30: 0 | H30: =IFERROR(INDEX(ICTrucks,MATCH(0,COUNTIF($H$4:H29,ICTrucks),0)),"") ->  | I30: =IFERROR(INDEX(ICFuels,MATCH(0,COUNTIF($I$4:I29,ICFuels)+(ICTrucks<>$O$5),0)),"") ->  | J30: =IFERROR(INDEX(ICEngines,MATCH(0,COUNTIF($J$4:J29,ICEngines)+(ICFuels<>$P$5)+(ICTrucks<>$O$5),0)),"") ->  | K30: =IFERROR(INDEX(ICTransmisions,MATCH(0,COUNTIF($K$4:K29,ICTransmisions)+(ICEngines<>$Q$5)+(ICFuels<>$P$5)+(ICTrucks<>$O$5),0)),"") -> 
B31: H3.5FT | C31: LPG | D31: 2.4L - PSI | E31: 1-Speed Basic | F31: 3,3 | G31: 0 | H31: =IFERROR(INDEX(ICTrucks,MATCH(0,COUNTIF($H$4:H30,ICTrucks),0)),"") ->  | I31: =IFERROR(INDEX(ICFuels,MATCH(0,COUNTIF($I$4:I30,ICFuels)+(ICTrucks<>$O$5),0)),"") ->  | J31: =IFERROR(INDEX(ICEngines,MATCH(0,COUNTIF($J$4:J30,ICEngines)+(ICFuels<>$P$5)+(ICTrucks<>$O$5),0)),"") ->  | K31: =IFERROR(INDEX(ICTransmisions,MATCH(0,COUNTIF($K$4:K30,ICTransmisions)+(ICEngines<>$Q$5)+(ICFuels<>$P$5)+(ICTrucks<>$O$5),0)),"") -> 
B32: H3.5FT | C32: Diesel | D32: 3.3L - Yanmar | E32: 1-Speed Basic | F32: 4,3 | G32: 52 | H32: =IFERROR(INDEX(ICTrucks,MATCH(0,COUNTIF($H$4:H31,ICTrucks),0)),"") ->  | I32: =IFERROR(INDEX(ICFuels,MATCH(0,COUNTIF($I$4:I31,ICFuels)+(ICTrucks<>$O$5),0)),"") ->  | J32: =IFERROR(INDEX(ICEngines,MATCH(0,COUNTIF($J$4:J31,ICEngines)+(ICFuels<>$P$5)+(ICTrucks<>$O$5),0)),"") ->  | K32: =IFERROR(INDEX(ICTransmisions,MATCH(0,COUNTIF($K$4:K31,ICTransmisions)+(ICEngines<>$Q$5)+(ICFuels<>$P$5)+(ICTrucks<>$O$5),0)),"") -> 
B33: H3.5FT | C33: Diesel | D33: 2.4L - Kubota | E33: 1-Speed Basic | F33: 3,6 | G33: 52
B34: H3.5FT | C34: LPG | D34: 2.5L - Kubota | E34: 1-Speed Duramatch | F34: 3,2 | G34: 0
B35: H3.5FT | C35: LPG | D35: 2.4L - PSI | E35: 1-Speed Duramatch | F35: 3,3 | G35: 0
B36: H3.5FT | C36: Diesel | D36: 3.3L - Yanmar | E36: 1-Speed Duramatch | F36: 4,3 | G36: 52
B37: H3.5FT | C37: Diesel | D37: 2.4L - Kubota | E37: 2-Speed Basic | F37: 3,4 | G37: 52
B38: H3.5FT | C38: LPG | D38: 2.5L - Kubota | E38: 2-Speed Duramatch 2 | F38: 3,4 | G38: 0
B39: H2.0XT | C39: LPG | D39: 2.4L - PSI | E39: 1-Speed Basic | F39: 2,5 | G39: 0
B40: H2.0XT | C40: Diesel | D40: 2.6L - Yanmar | E40: 1-Speed Basic | F40: 2,7 | G40: 69
B41: H2.5XT | C41: LPG | D41: 2.4L - PSI | E41: 1-Speed Basic | F41: 2,8 | G41: 0
B42: H2.5XT | C42: Diesel | D42: 2.6L - Yanmar | E42: 1-Speed Basic | F42: 3,1 | G42: 69
B43: H2.5XT | C43: Diesel | D43: 3.3L - Yanmar | E43: 1-Speed Basic | F43: 3,3 | G43: 69
B44: H3.0XT | C44: LPG | D44: 2.4L - PSI | E44: 1-Speed Basic | F44: 3,1 | G44: 0
B45: H3.0XT | C45: Diesel | D45: 2.6L - Yanmar | E45: 1-Speed Basic | F45: 3,5 | G45: 69
B46: H3.0XT | C46: Diesel | D46: 3.3L - Yanmar | E46: 1-Speed Basic | F46: 3,8 | G46: 69
B47: H4.0FT | C47: Diesel | D47: 3.8L - Kubota | E47: 1-Speed Duramatch | F47: 4,5 | G47: 79
B48: H4.0FT | C48: Diesel | D48: 3.8L - Kubota | E48: 2-Speed Duramatch 2 | F48: 4,5 | G48: 79
B49: H4.0FT | C49: LPG | D49: 3.8L - Kubota | E49: 1-Speed Duramatch | F49: 4,3 | G49: 0
B50: H4.0FT | C50: LPG | D50: 3.8L - Kubota | E50: 2-Speed Duramatch 2 | F50: 4,4 | G50: 0
B51: H4.5FT | C51: Diesel | D51: 3.8L - Kubota | E51: 1-Speed Duramatch | F51: 4,9 | G51: 79
B52: H4.5FT | C52: Diesel | D52: 3.8L - Kubota | E52: 2-Speed Duramatch 2 | F52: 5,1 | G52: 79
B53: H4.5FT | C53: LPG | D53: 3.8L - Kubota | E53: 1-Speed Duramatch | F53: 4,6 | G53: 0
B54: H4.5FT | C54: LPG | D54: 3.8L - Kubota | E54: 2-Speed Duramatch 2 | F54: 4,7 | G54: 0
B55: H5.0FT | C55: Diesel | D55: 3.8L - Kubota | E55: 1-Speed Duramatch | F55: 5,4 | G55: 100.3
B56: H5.0FT | C56: Diesel | D56: 3.8L - Kubota | E56: 2-Speed Duramatch 2 | F56: 5,8 | G56: 100.3
B57: H5.0FT | C57: LPG | D57: 3.8L - Kubota | E57: 1-Speed Duramatch | F57: 5 | G57: 0
B58: H5.0FT | C58: LPG | D58: 3.8L - Kubota | E58: 2-Speed Duramatch 2 | F58: 5,1 | G58: 0
B59: H5.5FT | C59: Diesel | D59: 3.8L - Kubota | E59: 1-Speed Duramatch | F59: 5,8 | G59: 100.3
B60: H5.5FT | C60: Diesel | D60: 3.8L - Kubota | E60: 2-Speed Duramatch 2 | F60: 6,2 | G60: 100.3
B61: H5.5FT | C61: Diesel | D61: 3.8L - Kubota | E61: 1-Speed Duramatch | F61: 5,2 | G61: 100.3
B62: H5.5FT | C62: Diesel | D62: 3.8L - Kubota | E62: 2-Speed Duramatch 2 | F62: 5,3 | G62: 100.3
C71: to add new truck options to the tool, insert rows above this entire row
A74: Table B: ECB Trucks
B77: Truck Model (write exactly as you wish the names to appear to the user) - write each truck model only once | C77: Voltage (V) (keep similar voltages in the same section | D77: VDI
B78: Select | C78: Select | D78: 0
B79: J1.5XNT_SWB 3-whl | C79: 48 | D79: 3,9
B80: J1.6XNT_SWB 3-whl | C80: 48 | D80: 4,2
B81: J1.6XNT_M/LWB 3-whl | C81: 48 | D81: 4,2
B82: J1.6XN_M/LWB 4-whl | C82: 48 | D82: 4,4
B83: J1.8XNT_M/LWB 3-whl | C83: 48 | D83: 4,7
B84: J1.8XN_M/LWB 4-whl | C84: 48 | D84: 5
B85: J2.0XNT_M/LWB 3-whl | C85: 48 | D85: 5,5
B86: J2.0XN_LWB 4-whl | C86: 48 | D86: 5,5
B87: J2.2XN | C87: 80 | D87: 6,7
B88: J2.5XN | C88: 80 | D88: 7,9
B89: J3.0XN | C89: 80 | D89: 8,7
B90: J3.5XN | C90: 80 | D90: 10
B91: J4.0XN | C91: 80 | D91: 12,5
B92: J4.5XN | C92: 80 | D92: 12,7
B93: J5.0XN | C93: 80 | D93: 12,9
B94: J5.5XN | C94: 80 | D94: 13,5
C97: to add new truck options to the tool, insert rows above this entire row
A100: Table C: Lead Acid Batteries by Truck model
B103: Truck Model (write exactly as you wish the names to appear to the user) - write each truck model only once | C103: Battery Capacity (Ah) | H103: LABatD
B104: Select | C104: Select | H104: =IFERROR(INDEX(LABat,MATCH(0,COUNTIF($H$103:H103,LABat)+(LATrucks<>Inputs!$F$56),0)),"") -> 560
B105: J1.5XNT_SWB 3-whl | C105: 420 | H105: =IFERROR(INDEX(LABat,MATCH(0,COUNTIF($H$103:H104,LABat)+(LATrucks<>Inputs!$F$56),0)),"") -> 620
B106: J1.6XNT_SWB 3-whl | C106: 420 | H106: =IFERROR(INDEX(LABat,MATCH(0,COUNTIF($H$103:H105,LABat)+(LATrucks<>Inputs!$F$56),0)),"") -> 770
B107: J1.6XNT_M/LWB 3-whl | C107: 575 | H107: =IFERROR(INDEX(LABat,MATCH(0,COUNTIF($H$103:H106,LABat)+(LATrucks<>Inputs!$F$56),0)),"") -> 
B108: J1.6XNT_M/LWB 3-whl | C108: 625 | H108: =IFERROR(INDEX(LABat,MATCH(0,COUNTIF($H$103:H107,LABat)+(LATrucks<>Inputs!$F$56),0)),"") -> 
B109: J1.6XN_M/LWB 4-whl | C109: 575 | H109: =IFERROR(INDEX(LABat,MATCH(0,COUNTIF($H$103:H108,LABat)+(LATrucks<>Inputs!$F$56),0)),"") -> 
B110: J1.6XN_M/LWB 4-whl | C110: 625 | H110: =IFERROR(INDEX(LABat,MATCH(0,COUNTIF($H$103:H109,LABat)+(LATrucks<>Inputs!$F$56),0)),"") -> 
B111: J1.8XNT_M/LWB 3-whl | C111: 575 | H111: =IFERROR(INDEX(LABat,MATCH(0,COUNTIF($H$103:H110,LABat)+(LATrucks<>Inputs!$F$56),0)),"") -> 
B112: J1.8XNT_M/LWB 3-whl | C112: 625 | H112: =IFERROR(INDEX(LABat,MATCH(0,COUNTIF($H$103:H111,LABat)+(LATrucks<>Inputs!$F$56),0)),"") -> 
B113: J1.8XN_M/LWB 4-whl | C113: 575 | H113: =IFERROR(INDEX(LABat,MATCH(0,COUNTIF($H$103:H112,LABat)+(LATrucks<>Inputs!$F$56),0)),"") -> 
B114: J1.8XN_M/LWB 4-whl | C114: 625
B115: J2.0XNT_M/LWB 3-whl | C115: 575
B116: J2.0XNT_M/LWB 3-whl | C116: 625
B117: J2.0XN_LWB 4-whl | C117: 690
B118: J2.2XN | C118: 560
B119: J2.5XN | C119: 560
B120: J3.0XN | C120: 620
B121: J3.5XN | C121: 620
B122: J4.0XN | C122: 840
B123: J4.5XN | C123: 840
B124: J5.0XN | C124: 840
B125: J5.5XN6 | C125: 840
B126: J1.5XNT_SWB 3-whl | C126: 500
B127: J1.6XNT_SWB 3-whl | C127: 500
B128: J1.6XNT_M/LWB 3-whl | C128: 690
B129: J1.6XNT_M/LWB 3-whl | C129: 750
B130: J1.6XN_M/LWB 4-whl | C130: 690
B131: J1.6XN_M/LWB 4-whl | C131: 750
B132: J1.8XNT_M/LWB 3-whl | C132: 690
B133: J1.8XNT_M/LWB 3-whl | C133: 750
B134: J1.8XN_M/LWB 4-whl | C134: 690
B135: J1.8XN_M/LWB 4-whl | C135: 750
B136: J2.0XNT_M/LWB 3-whl | C136: 690
B137: J2.0XNT_M/LWB 3-whl | C137: 750
B138: J2.0XN_LWB 4-whl | C138: 750
B139: J2.2XN | C139: 620
B140: J2.5XN | C140: 620
B141: J2.5XN | C141: 770
B142: J3.0XN | C142: 700
B143: J3.5XN | C143: 700
B144: J3.0XN | C144: 775
B145: J3.5XN | C145: 775
B146: J4.0XN | C146: 930
B147: J4.5XN | C147: 930
B148: J5.0XN | C148: 930
B149: J5.5XN | C149: 930
C153: to add new truck options to the tool, insert rows above this entire row
A156: Table D: Li-Ion Batteries by Truck model
B159: Truck Model (write exactly as you wish the names to appear to the user) - write each truck model only once | C159: Battery Capacity (Ah) | H159: LiBatD
B160: Select | C160: Select | H160: =IFERROR(INDEX(LiBat,MATCH(0,COUNTIF($H$159:H159,LiBat)+(LiTrucks<>Inputs!$F$56),0)),"") -> 450
B161: J1.5XNT_SWB 3-whl | C161: 300 | H161: =IFERROR(INDEX(LiBat,MATCH(0,COUNTIF($H$159:H160,LiBat)+(LiTrucks<>Inputs!$F$56),0)),"") -> 600
B162: J1.6XNT_SWB 3-whl | C162: 300 | H162: =IFERROR(INDEX(LiBat,MATCH(0,COUNTIF($H$159:H161,LiBat)+(LiTrucks<>Inputs!$F$56),0)),"") -> 
B163: J1.6XNT_M/LWB 3-whl | C163: 300 | H163: =IFERROR(INDEX(LiBat,MATCH(0,COUNTIF($H$159:H162,LiBat)+(LiTrucks<>Inputs!$F$56),0)),"") -> 
B164: J1.6XNT_M/LWB 3-whl | C164: 450 | H164: =IFERROR(INDEX(LiBat,MATCH(0,COUNTIF($H$159:H163,LiBat)+(LiTrucks<>Inputs!$F$56),0)),"") -> 
B165: J1.6XN_M/LWB 4-whl | C165: 300
B166: J1.6XN_M/LWB 4-whl | C166: 450 | H166: =IFERROR(INDEX(LiBat,MATCH(0,COUNTIF($H$159:H164,LiBat)+(LiTrucks<>Inputs!$F$56),0)),"") -> 
B167: J1.8XNT_M/LWB 3-whl | C167: 300
B168: J1.8XNT_M/LWB 3-whl | C168: 450 | H168: =IFERROR(INDEX(LiBat,MATCH(0,COUNTIF($H$159:H166,LiBat)+(LiTrucks<>Inputs!$F$56),0)),"") -> 
B169: J1.8XN_M/LWB 4-whl | C169: 300
B170: J1.8XN_M/LWB 4-whl | C170: 450
B171: J2.0XNT_M/LWB 3-whl | C171: 300
B172: J2.0XNT_M/LWB 3-whl | C172: 450
B173: J2.0XN_LWB 4-whl | C173: 300
B174: J2.0XN_LWB 4-whl | C174: 450
B175: J2.2XN | C175: 450
B176: J2.5XN | C176: 450
B177: J3.0XN | C177: 450
B178: J3.5XN | C178: 450
B179: J4.0XN | C179: 600
B180: J4.5XN | C180: 600
B181: J5.0XN | C181: 600
B182: J5.5XN | C182: 600
B183: J1.5XNT_SWB 3-whl | C183: 400
B184: J1.6XNT_SWB 3-whl | C184: 400
B185: J1.6XNT_M/LWB 3-whl | C185: 600
B186: J1.6XN_M/LWB 4-whl | C186: 600
B187: J1.8XNT_M/LWB 3-whl | C187: 600
B188: J1.8XN_M/LWB 4-whl | C188: 600
B189: J2.0XNT_M/LWB 3-whl | C189: 600
B190: J2.0XN_LWB 4-whl | C190: 600
B191: J2.2XN | C191: 600
B192: J2.5XN | C192: 600
B193: J3.0XN | C193: 600
B194: J3.5XN | C194: 600
A201: Table E: Lead battery chemistry
B204: Voltage (V) (keep similar voltages in the same section | C204: Pb battery (Ah) | D204: Cell type number | E204: Cell Type (PzS/PzB)
B205: Select | C205: Select | D205: 0 | E205: PzB
B206: 48 | C206: 420 | D206: 4 | E206: PzS
B207: 48 | C207: 465 | D207: 3 | E207: PzS
B208: 48 | C208: 500 | D208: 4 | E208: PzS
B209: 48 | C209: 560 | D209: 4 | E209: PzS
B210: 48 | C210: 575 | D210: 5 | E210: PzS
B211: 48 | C211: 620 | D211: 4 | E211: PzS
B212: 48 | C212: 625 | D212: 5 | E212: PzS
B213: 48 | C213: 690 | D213: 6 | E213: PzS
B214: 48 | C214: 700 | D214: 5 | E214: PzS
B215: 48 | C215: 750 | D215: 6 | E215: PzS
B216: 48 | C216: 775 | D216: 5 | E216: PzS
B217: 48 | C217: 840 | D217: 6 | E217: PzS
B218: 48 | C218: 930 | D218: 6 | E218: PzS
B219: to add new truck options to the tool, insert rows above this entire row
B220: 80 | C220: 560 | D220: 4 | E220: PzS
B221: 80 | C221: 620 | D221: 4 | E221: PzS
B222: 80 | C222: 700 | D222: 5 | E222: PzS
B223: 80 | C223: 775 | D223: 5 | E223: PzS
B224: 80 | C224: 840 | D224: 6 | E224: PzS
B225: 80 | C225: 930 | D225: 6 | E225: PzS
B226: to add new truck options to the tool, insert rows above this entire row
B228: to add new truck options to the tool, insert rows above this entire row
B230: to add new truck options to the tool, insert rows above this entire row
A233: Table F: voltages of batteries
B236: Pb voltage equivalent (V) | C236: Li voltage equivalent (V)
B237: Select | C237: Select
B238: 24 | C238: 25.6
B239: 48 | C239: 51.2
B240: 80 | C240: 76.8
B241: 350 | C241: 350
... 32 more rows

Sheet Output
B2: ="TCO Comparison Tool Counterbalance Output Page "&TEXT(TODAY(),"dd-mmm-yy") -> TCO Comparison Tool Counterbalance Output Page 31-Mar-20
B6: ICE Truck Model | C6: =Inputs!F38 -> H2.5FT
B7: Electric Truck Model | C7: =Inputs!F56 -> J2.5XN
B8: Fleet Size | C8: =Inputs!F27 -> 10
B9: Truck Hours per Year | C9: =Inputs!F21 -> 3000
B11: Initial Investment (Fleet)
B13: Initial Investment | C13: Electric | E13: ER CB | F13: ICE
C14: Lead Acid | D14: Li-Ion | E14: Fuel Cell | F14: =Inputs!F39 -> Diesel
B15: Truck/s | C15: =Calc1!D75 -> 337000 | D15: =Calc1!E75 -> 337000 | E15: =Calc1!F75 -> 337000 | F15: =Calc1!G75 -> 360000
B16: Batteries / Power Cells | C16: =Calc1!D76 -> 140000 | D16: =Calc1!E76 -> 200000 | E16: =Calc1!F76 -> 200000 | F16: =Calc1!G76 -> 0
B17: Infrastructure / Installation | C17: =Calc1!D77 -> 0 | D17: =Calc1!E77 -> 0 | E17: =Calc1!F77 -> 50000 | F17: =Calc1!G77 -> 0
B18: Charger | C18: =Calc1!D78 -> 12000 | D18: =Calc1!E78 -> 37500 | E18: =Calc1!F78 -> 0 | F18: =Calc1!G78 -> 0
B19: Charger room | C19: =Calc1!D79 -> 0 | D19: =Calc1!E79 -> 0 | E19: =Calc1!F79 -> 0 | F19: =Calc1!G79 -> 0
B20: Total Initial investment | C20: =SUM(C15:C19) -> 489000 | D20: =SUM(D15:D18) -> 574500 | E20: =SUM(E15:E18) -> 587000 | F20: =SUM(F15:F18) -> 360000
B24: Annual Operational Costs (per Truck)
B26: Annual Operational Costs (per Truck) | C26: Electric | E26: ER CB | F26: ICE
C27: Lead Acid | D27: Li-Ion | E27: Fuel Cell | F27: =Inputs!F39 -> Diesel
B28: Fuel/Energy consumption | C28: =Calc1!D83 -> 3821.671242 | D28: =Calc1!E83 -> 2588.039654 | E28: =IF( Inputs!F96>0, Calc1!F83, "") -> 4248.634234 | F28: =Calc1!G83 -> 10088.624
B29: =Calc1!C86 -> Lost productivity | C29: =Calc1!D86 -> 0 | D29: =Calc1!E86 -> 0 | E29: =Calc1!F86 -> 0 | F29: =Calc1!G86 -> 0
B30: Refueling / Battery change costs | C30: =Calc1!D85 -> 3588.664773 | D30: =IF(Inputs!F84<>"Select", Calc1!E85, "") -> 720 | E30: =IF(Inputs!F96>0, Calc1!F85, "") -> 1490.748854 | F30: =Calc1!G85 -> 1492.4
B31: Truck & Batt maintenance & service costs per year | C31: =Calc1!D87 -> 2050 | D31: =Calc1!E87 -> 1850 | E31: =Calc1!F87 -> 2650 | F31: =Calc1!G87 -> 3397.5
B32: Total Annual Operational Costs (per Truck) | C32: =SUM(C28:C31) -> 9460.336014 | D32: =SUM(D28:D31) -> 5158.039654 | E32: =SUM(E28:E31) -> 8389.383088 | F32: =SUM(F28:F31) -> 14978.524
B36: Cumulative Investment & Operational Costs (Fleet)
B38: Year | C38: Electric | E38: ER CB | F38: ICE
C39: Lead Acid | D39: Li-Ion | E39: Fuel Cell | F39: =Inputs!F39 -> Diesel
B40: 0 | C40: =Calc1!D126 -> 489000 | D40: =Calc1!E126 -> 574500 | E40: =Calc1!F126 -> 587000 | F40: =Calc1!G126 -> 360000
B41: 1 | C41: =Calc1!D127 -> 713071.0601 | D41: =Calc1!E127 -> 758493.0965 | E41: =IF(Inputs!F96>0, Calc1!F127, "") -> 795281.5309 | F41: =Calc1!G127 -> 586825.24
B42: 2 | C42: =Calc1!D128 -> 902307.5381 | D42: =Calc1!E128 -> 911857.2609 | E42: =IF(Inputs!F96, Calc1!F128, "") -> 974651.4796 | F42: =Calc1!G128 -> 797163.92
B43: 3 | C43: =Calc1!D129 -> 1066242.379 | D43: =Calc1!E129 -> 1041702.127 | E43: =IF(Inputs!F96, Calc1!F129, "") -> 1131851.967 | F43: =Calc1!G129 -> 994544.1638
B44: 4 | C44: =Calc1!D130 -> 1211754.26 | D44: =Calc1!E130 -> 1153481.49 | E44: =IF(Inputs!F96, Calc1!F130, "") -> 1272047.923 | F44: =Calc1!G130 -> 1181739.077
B45: 5 | C45: =Calc1!D131 -> 1343819.291 | D45: =Calc1!E131 -> 1251380.191 | E45: =IF(Inputs!F96, Calc1!F131, "") -> 1399197.142 | F45: =Calc1!G131 -> 1360928.32
B46: 6 | C46: =Calc1!#REF! ->  | D46: =Calc1!#REF! ->  | E46: =Calc1!#REF! ->  | F46: =Calc1!#REF! -> 
B47: 7 | C47: =Calc1!#REF! ->  | D47: =Calc1!#REF! ->  | E47: =Calc1!#REF! ->  | F47: =Calc1!#REF! -> 
B48: 8 | C48: =Calc1!#REF! ->  | D48: =Calc1!#REF! ->  | E48: =Calc1!#REF! ->  | F48: =Calc1!#REF! -> 
B49: 9 | C49: =Calc1!#REF! ->  | D49: =Calc1!#REF! ->  | E49: =Calc1!#REF! ->  | F49: =Calc1!#REF! -> 
B50: 10 | C50: =Calc1!#REF! ->  | D50: =Calc1!#REF! ->  | E50: =Calc1!#REF! ->  | F50: =Calc1!#REF! -> 
B52: Estimated Break-even Point (Years over ICE) | C52: =IF((Calc1!D139-Calc1!G139)/Inputs!F27/(F32-C32)<0,"n.a.",IF((Calc1!D139-Calc1!G139)/Inputs!F27/(F32-C32)>5,"more than 5.",IF((AND((Calc1!D139-Calc1!G139)/Inputs!F27/(F32-C32)>0,(Calc1!D139-Calc1!G139)/Inputs!F27/(F32-C32)<1)),"less than 1 year",(Calc1!D139-Calc1!G139)/Inputs!F27/(F32-C32)))) -> 4.145281055 | D52: =IF((Calc1!E139-Calc1!G139)/Inputs!F27/(F32-D32)<0, "n.a.", IF((AND((Calc1!E139-Calc1!G139)/Inputs!F27/(F32-D32)>0, (Calc1!E139-Calc1!G139)/Inputs!F27/(F32-D32)<1)), "less than 1 year", (Calc1!E139-Calc1!G139)/Inputs!F27/(F32-D32))) -> 3.39858206 | E52: =IF((Calc1!F139-Calc1!G139)/Inputs!F27/(F32-E32)<0, "n.a.", IF((AND((Calc1!F139-Calc1!G139)/Inputs!F27/((F32-E32))>0, (Calc1!F139-Calc1!G139)/Inputs!F27/((F32-E32))<1)), "less than 1 year", (Calc1!F139-Calc1!G139)/Inputs!F27/((F32-E32)))) -> 4.978495619
B53: Break even Point (Years over Lead Acid) | D53: =IF((D20-C20)/Inputs!F27/(C32-D32)<0, "n.a.", (D20-C20)/Inputs!F27/(C32-D32)) -> 1.987310795 | E53: =IF((E20-D20)/Inputs!F27/(D32-E32)<0, "n.a.", (E20-D20)/Inputs!F27/(D32-E32)) -> n.a.
B54: Truck and power source depreciation start at year1, depreciating over 5 a year period based on predicted depreciation rates
B57: Application Summary (Fleet)
B59: Annual information | C59: Electric | E59: ER CB | F59: ICE
C60: Lead Acid | D60: Li-Ion | E60: Fuel Cell | F60: =Inputs!F39 -> Diesel
B61: Max Power required when charging | C61: n.a. | D61: =Calc1!E147 -> 399 | E61: n.a. | F61: n.a.
B62: Fleet fuel/energy consumption | C62: =Calc1!D148 -> 398309.4595 | D62: =Calc1!E148 -> 275788.538 | E62: =IF(Inputs!F96, Calc1!F148, "") -> 14162.11411 | F62: =TEXT(Calc1!G148,"0")&IF(F39="Diesel"," L",IF(F39="LPG"," kg","")) -> 77605 L
B65: Carbon Emissions per Truck/Year
B67: Carbon Emissions (kg CO2) | C67: Electric | E67: ER CB | F67: ICE ***
C68: Lead Acid * | D68: Li-Ion* | E68: Fuel Cell** | F68: =Inputs!F39 -> Diesel
B69: Emissions @ energy source | C69: =Calc1!D92 -> 21520.97874 | D69: =Calc1!E92 -> 14901.07534 | E69: =Calc1!F92 -> 53532.79135 | F69: =Calc1!G92 -> 6078.980333
B70: Emissions estimate @ truck | C70: =Calc1!D93 -> 0 | D70: =Calc1!E93 -> 0 | E70: =Calc1!F93 -> 0 | F70: =Calc1!G93 -> 20480.68277
B71: Total Carbon Emissions | C71: =SUM(C69:C70) -> 21520.97874 | D71: =SUM(D69:D70) -> 14901.07534 | E71: =SUM(E69:E70) -> 53532.79135 | F71: =SUM(F69:F70) -> 26559.6631
B72: * CO2 emission at power station based on ISO std value EN 16796
B73: ** Assume H2 generated using electrolizer
B78: Li-ion Daily State of Charge Profile
G107: Page 1/2
B140: Lost Productivity due to refuelling/change over | H140: ** costs are included in the graph above
B142: Lost/hrs/fleet/year | C142: =Calc1!G154*Inputs!F27 -> 497.4666667 | D142: =Calc1!D154*Inputs!F27 -> 1196.221591 | E142: =Calc1!E154*Inputs!F27 -> 240 | F142: =Calc1!F154*Inputs!F27 -> 496.9162847
B143: Cost of Lost productivity/truck/year | C143: =Calc1!G165 -> 1492.4 | D143: =Calc1!D165 -> 3588.664773 | E143: =Calc1!E165 -> 720 | F143: =Calc1!F165 -> 1490.748854
B144: cost of lost productivity/fleet/year | C144: =Calc1!G166 -> 44772 | D144: =Calc1!D166 -> 35886.64773 | E144: =Calc1!E166 -> 7200 | F144: =Calc1!F166 -> 14907.48854
B146: Pallets moved based on Performance mode
B147: =Calc1!C160 -> No of pallets moved/truck/year /FLEET (assume 20/hr) | C147: =Calc1!G160 -> 656000 | D147: =Calc1!D160 -> 656000 | E147: =Calc1!E160 -> 656000 | F147: =Calc1!F160 -> 656000
B149: Cumulative Costs
B151: Year | C151: ICE Trucks | D151: ECB Trucks
C152: =Calc2!#REF! ->  | D152: Lead Acid | E152: Li-Ion | F152: Fuel Cell
B153: 0 | C153: =F40 -> 360000 | D153: =C40 -> 489000 | E153: 574500 | F153: 587000
B154: 1 | C154: 586825.24 | D154: 713071.0601 | E154: 758493.0965 | F154: 795281.5309
B155: 2 | C155: 797163.92 | D155: 902307.5381 | E155: 911857.2609 | F155: 974651.4796
B156: 3 | C156: 994544.1638 | D156: 1066242.379 | E156: 1041702.127 | F156: 1131851.967
B157: 4 | C157: 1181739.077 | D157: 1211754.26 | E157: 1153481.49 | F157: 1272047.923
B158: 5 | C158: 1360928.32 | D158: 1343819.291 | E158: 1251380.191 | F158: 1399197.142
B160: Break even Point (Years) | D160: =(C232-F232)/Inputs!F88/(C140-D140) ->  | E160: =(D232-F232)/Inputs!F88/(C140-E140) ->  | F160: =(E20-F232)/Inputs!F88/(C140-F140) -> 
C232: =C14 -> Lead Acid | D232: =D14 -> Li-Ion | E232: =E14 -> Fuel Cell | F232: =F14 -> Diesel
B233: =B20 -> Total Initial investment | C233: =C20 -> 489000 | D233: =D20 -> 574500 | E233: =E20 -> 587000 | F233: =F20 -> 360000
B234: =B28 -> Fuel/Energy consumption | C234: =C28 -> 3821.671242 | D234: =D28 -> 2588.039654 | E234: =E28 -> 4248.634234 | F234: =F28 -> 10088.624
B235: =B30 -> Refueling / Battery change costs | C235: 3588.664773 | D235: 720 | E235: 1490.748854 | F235: 1492.4
B236: Truck & Batt maintenance & service costs per year | C236: 2050 | D236: 1850 | E236: 2650 | F236: 3397.5
B238: Truck and power source depreciating starting at year1, depreciating over a 5 year period based on predicted rates
B241: THE TCO COMPARISON TOOL USES GENERIC DATA AND TECHNICAL DATA FROM HYSTER-YALE GROUP (HYG) AND ITS SUPPLIERS TO MODEL THE PERFORMANCE OF FORKLIFT TRUCKS AND THE DIFFERENT POWER OPTIONS SUPPLIED BY HYG. BASED ON USER INPUTS IT CALCULATES THE PERFORMANCE OF THE EQUIPMENT IN TYPICAL MATERIALS HANDLING APPLICATIONS. WHILE HYG HAS ENDEAVOURED TO ENSURE ITS ACCURACY, HYG CANNOT GUARANTEE THAT THE RESULTS GENERATED WILL BE ACCURATE OR CORRECT FOR A SPECIFIC CUSTOMER OR APPLICATION. FURTHER, THE PERFORMANCE OF THE TOOL RELIES ON THE USER PROVIDING COMPLETE AND ACCURATE INPUTS. RESULTS GENERATED BY THE TOOL MAY BE COMPROMISED IF INCOMPLETE OR INACCURATE INPUTS ARE USED. THE TOOL PROVIDES ESTIMATES ONLY, AND SHOULD NOT BE RELIED UPON TO ACCURATELY FORECAST OR PREDICT RESULTS IN ACTUAL USE OF MATERIALS HANDLING EQUIPMENT. HYG EXPRESSLY DISCLAIMS AND EXCLUDES ANY LIABILITY FOR LOSS OR DAMAGE HOWEVER CAUSED, WHETHER DIRECT OR INDIRECT, THAT MAY RESULT FROM USE OF THE COMPARISON TOOL OR RELIANCE ON ITS RESULTS.
G251: Page 2/2

Sheet Calc2 (hidden)
B1: Calculation
B2: Driven from input (Adjustable)
B3: Adjustable Only to selected users
B5: Application
B6: Weeks per year | C6: 48
B7: Voltage of truck | C7: =VLOOKUP(Inputs!F56,Trucks!B78:D97,2,FALSE) -> 80
B8: RecommendedVDI | C8: =VLOOKUP(Inputs!F56,Trucks!B78:D97,3,FALSE) -> 7,9
B9: recommended idle time | C9: 20
B10: DEFAULT values ( Not used unless se;ection on input page not used)
B11: Cost electricity (€/kWh) | C11: 0.12
B12: Dsl Default Value | C12: 1
B13: LPG Default value | C13: 0.7
B14: Cost H2 (€/kg) | C14: =Inputs!F33 -> 3
B15: Hourly Rate Driver | C15: 30
B16: ENTERED INFO @ INPUT page
B17: Cost electricity | C17: =IF(Inputs!F32=0,Calc2!C11,Inputs!F32) -> 0.09
B18: Fuel Cost (€/lt or €/kg) | C18: =IF(C19="Diesel",IF(Inputs!F30=0,Calc2!C12,Inputs!F30),IF(C19="LPG",IF(Inputs!F31=0,Calc2!C13,Inputs!F31))) -> 1.3
B19: Selected Fuel | C19: =Inputs!F39 -> Diesel
B20: Cost H2 (€/kg) | C20: =IF(Inputs!F33=0,Calc2!C14,Inputs!F33) -> 3
B21: Hourly rate driver | C21: =IF(Inputs!F29=0,Calc2!C15,Inputs!F29) -> 30
B22: ICE Trucks
B23: Fuel | C23: =Inputs!F39 -> Diesel
B24: Tank size lpg (kg) (Dsl L) | C24: =IF(C23="Diesel",Trucks!M5,IF(C23="LPG",Inputs!F45,0)) -> 52
C25: Cost (Euro) | D25: Hrs
B26: DPF Cleaning costs | C26: 530 | D26: 4000
B27: Electric trucks
B28: CO2 production per energy from grid (kg/kWh) | C28: 0.540308 | D28: As per standard EN 16796. - is German reference and based on the mix of the German different electricity generation systems.
B29: battery in-truck connection time (mins) | C29: 4 | D29: ** only used when 1 LA battery ( connection time us inclouded in the over all battery change time when there are 2 batteries )
B31: Diesel Carbon Emission
B33: Calorific value of Dsl Kwh/Kg | C33: 12.04
B34: Density L/Kg Dsl | C34: 0.83
B35: Carbon emission KG/Litre Dsl At point of use | C35: 2.6391 | D35: https://www.gov.uk/government/uploads/system/uploads/attachment_data/file/715425/Conversion_Factors_2018_-_Condensed_set__for_most_users__v01-01.xls
B37: CO2 Well to Pump Calculation
B38: Convert Mj/Kwh | C38: 3.6 | D38: Mj/Kwh
C39: =C33/C34 -> 14.5060241 | D39: Kwh/Liter
C40: =C38*C39 -> 52.22168675 | D40: MJ/Liter Dsl
B41: @ | C41: 15 | D41: grCO2eq/MJ
C42: =C41*C40 -> 783.3253012 | D42: GCO2/Liter
B43: Well to pump | C43: =C42/1000 -> 0.7833253012 | D43: KgCo2/Liter
B47: LPG
B48: Calorific value of LPG Kwh/Kg | C48: 13.69
B49: Carbon emission KG/Litre LPG at point of use | C49: 1.51703 | D49: KgCo2/Liter
B50: Density L/Kg LPG | C50: 0.51
B51: Carbon emission KgCO2/Kg at point of use | C51: =C49*C50 -> 0.7736853 | D51: KgCO2/Kg
B53: CO2 Well to Pump Calculation
B54: Convert Mj/Kwh | C54: 3.6 | D54: Mj/Kwh
C55: =C48/C50 -> 26.84313725 | D55: Kwh/Liter
C56: =C54*C55 -> 96.63529412 | D56: MJ/Liter Dsl
B57: @ | C57: 18 | D57: grCO2eq/MJ
C58: =C57*C56 -> 1739.435294 | D58: GCO2/Liter
B59: Well to pump | C59: =C58/1000 -> 1.739435294 | D59: KgCo2/Liter
B60: Carbon emission KgCo2/Kg Well to pump | C60: =C59*C50 -> 0.887112 | D60: KgCO2/Kg
B64: Lead acid
B65: maximum DOD (%) | C65: 80
B66: Charger factor (new, flooded) | C66: 1 | D66: (not used per direction battery Manf literature)
B68: Charger type | C68: Select | D68: 50 Hz | E68: High Frequency
B69: Charger Efficiency (look up table) | C69: 0 | D69: 0.8 | E69: 0.9
B70: Charger efficiency | C70: =HLOOKUP(Inputs!F66,Calc2!C68:E69,2,FALSE) -> 0.8
B71: Battery Efficiency | C71: 0.74
B72: existing facility? | C72: Select | D72: Yes | E72: No
B73: Lithium ion
B74: Available energy from battery % | C74: 85
B75: Truck maximum DOD allowed AS PERCENTAGE OF USEABLE ENERGY | C75: 4
B76: Useable energy as % of Nominal | C76: =Calc2!C74/100*(100-Calc2!C75) -> 81.6
B77: Charger voltage | C77: =VLOOKUP(Calc2!C7,Calc2!B122:D129,3,FALSE) -> 76.8
B78: Phase Current ± 10% (A) | C78: =IF(Calc2!$C$7=48,VLOOKUP(Inputs!F85,Trucks!D265:F269,2,FALSE),IF(Calc2!$C$7=80,VLOOKUP(Inputs!F85,Trucks!D270:F274,2,FALSE),"")) -> 76.9
B79: Max Input Power (kVA) | C79: =IF(Calc2!$C$7=48,VLOOKUP(Inputs!F85,Trucks!D265:F269,3,FALSE),IF(Calc2!$C$7=80,VLOOKUP(Inputs!F85,Trucks!D270:F274,3,FALSE),"")) -> 53.2
B80: Li ion Battery efficiency | C80: 0.95 | D80: supplied by midac via email 31/7/17 'efficiency generally recognised for LFP batteries"
B81: Charger Efficiencies | C81: 0.9 | D81: supplied by midac via email 31/7/17
B82: Charging connection time (mins) | C82: 1
B83: Charger Factor | C83: 1 | D83: Not used per direction form battery manufacturer
B84: Travel plus return time to charging point | C84: 0 | D84: Not used - travel time is included in break times
B85: Fuel Cell
B86: Maximum DOD (%) | C86: 0.95
B87: Cell effective capacity (Ah) | C87: =ROUND(C88*1000/C7,0) -> 624 | D87: I=P/V
B88: Cell effective capacity (kWh) | C88: =Calc2!C89*Calc2!C90 -> 49.95
B89: H2 per fill (kg) | C89: =IF(C7=48,Trucks!B292,IF(C7=80,Trucks!B293,0)) -> 1.5
B90: Conversion rate: kWh/kg H2 | C90: 33.3
B91: Cell efficiency (kW per kg H2) | C91: 0.5
B92: kg CO2 / kg H2 generated | C92: 37.8 | D92: per Giampaolo email = electrolizers normally around 70kwh/KgH2 example elec from grid produce .54 Kg Co2/Kwh * 70 = 37.8KgCo2/KgH2
B93: Annual service charge - Power cell | C93: 500
B94: Annual inspection cost per Fuel Cell | C94: 350
B95: Depreciation | C95: Value lost after 5 years | D95: CAGR | E95: https://www.investopedia.com/calculator/cagr.aspx
B96: ICE truck | C96: 0.7 | D96: 0.214
B97: ER Truck | C97: 0.75 | D97: 0.2421
B98: LA Battery/chrger | C98: 0.85 | D98: 0.315
B99: LIB Battery/charger | C99: 0.7 | D99: 0.214
B100: Fuel Cell | C100: 0.7 | D100: 0.214
B101: Battery Degrogation | C101: Over 5 years | D101: Nominal Av ov 5 yrs
B102: LA | C102: 0.15 | D102: 0.032
B103: LIB | C103: 0.1 | D103: 0.0209
B104: Service PIB Battery
B105: Annual inspection cost per battery EUR | C105: 100 | D105: Estimated
B106: Water usage for top up | C106: 50 | D106: Estimated based on # hrs
B107: Monthly Battery & Charger Service charge/unit | C107: 0
B108: Service LIB Battery
B109: Annual inspection cost per battery EUR | C109: 50 | D109: Estimated
B110: Charger Room Estimates
B111: water topup system per truck (EUR) | C111: 100
B112: Protection cost per truck (EUR) | C112: 50
B113: Equipment cost per truck (EUR) | C113: 1200
B114: Ventilation cost per truck (EUR) | C114: 200
B115: charging space per truck (m2) | C115: 3.5
B116: price per m2 over 5 years (EUR/m2) | C116: =60*5 -> 300
B118: price per truck charging area (EUR) | C118: =C115*C116+C111+C114+C112+C113 -> 2600
B120: Addition Info / Look ups
B121: Chager Voltage (V) per battery
B122: Pb voltage equivalent (V) if you want to change figures in this row, do so on the 'Trucks' tab | C122: Li voltage equivalent (V) if you want to change figures in this row, do so on the 'Trucks' tab | D122: Li Charger Voltage
B123: =Trucks!B237 -> Select | C123: =Trucks!C237 -> Select | D123: Select
B124: =Trucks!B238 -> 24 | C124: =Trucks!C238 -> 25.6 | D124: 25.6
B125: =Trucks!B239 -> 48 | C125: =Trucks!C239 -> 51.2 | D125: 51.2
B126: =Trucks!B240 -> 80 | C126: =Trucks!C240 -> 76.8 | D126: 76.8
B127: =Trucks!B241 -> 350 | C127: =Trucks!C241 -> 350 | D127: 350
B128: =Trucks!B242 -> 0 | C128: =Trucks!C242 -> 0 | D128: 0
B129: =Trucks!B243 -> 0 | C129: =Trucks!C243 -> 0 | D129: =C129 -> 0
B131: Schedule
B132: Battery balancing time SOC cutoff (%) -default 80 | C132: 80
B133: added minutes for balancing time -default 20 | C133: 20
B135: Period start time | C135: 00:00:00 | D135: 01:00:00 | E135: 02:00:00 | F135: 03:00:00 | G135: 04:00:00 | H135: 05:00:00 | I135: 06:00:00 | J135: 07:00:00 | K135: 08:00:00 | L135: 09:00:00 | M135: 10:00:00 | N135: 11:00:00 | O135: 12:00:00 | P135: 13:00:00 | Q135: 14:00:00 | R135: 15:00:00 | S135: 16:00:00 | T135: 17:00:00 | U135: 18:00:00 | V135: 19:00:00 | W135: 20:00:00 | X135: 21:00:00 | Y135: 22:00:00 | Z135: 23:00:00
B137: start time | C137: break times
B138: 00:00:00 | C138: No Break | D138: 00:30:00 | E138: 01:00:00 | F138: 01:30:00 | G138: 02:00:00 | H138: 02:30:00 | I138: 03:00:00 | J138: 03:30:00 | K138: 04:00:00 | L138: 04:30:00 | M138: 05:00:00 | N138: 05:30:00 | O138: 06:00:00 | P138: 06:30:00 | Q138: 07:00:00 | R138: 07:30:00 | S138: 08:00:00 | T138: 08:30:00 | U138: 09:00:00 | V138: 09:30:00 | W138: 10:00:00 | X138: 10:30:00 | Y138: 11:00:00 | Z138: 11:30:00 | AA138: 12:00:00 | AB138: 12:30:00 | AC138: 13:00:00 | AD138: 13:30:00 | AE138: 14:00:00 | AF138: 14:30:00 | AG138: 15:00:00 | AH138: 15:30:00 | AI138: 16:00:00 | AJ138: 16:30:00 | AK138: 17:00:00 | AL138: 17:30:00 | AM138: 18:00:00 | AN138: 18:30:00 | AO138: 19:00:00 | AP138: 19:30:00 | AQ138: 20:00:00 | AR138: 20:30:00 | AS138: 21:00:00 | AT138: 21:30:00 | AU138: 22:00:00 | AV138: 22:30:00 | AW138: 23:00:00 | AX138: 23:30:00
B139: 01:00:00 | C139: No Break | D139: 01:30:00 | E139: 02:00:00 | F139: 02:30:00 | G139: 03:00:00 | H139: 03:30:00 | I139: 04:00:00 | J139: 04:30:00 | K139: 05:00:00 | L139: 05:30:00 | M139: 06:00:00 | N139: 06:30:00 | O139: 07:00:00 | P139: 07:30:00 | Q139: 08:00:00 | R139: 08:30:00 | S139: 09:00:00 | T139: 09:30:00 | U139: 10:00:00 | V139: 10:30:00 | W139: 11:00:00 | X139: 11:30:00 | Y139: 12:00:00 | Z139: 12:30:00 | AA139: 13:00:00 | AB139: 13:30:00 | AC139: 14:00:00 | AD139: 14:30:00 | AE139: 15:00:00 | AF139: 15:30:00 | AG139: 16:00:00 | AH139: 16:30:00 | AI139: 17:00:00 | AJ139: 17:30:00 | AK139: 18:00:00 | AL139: 18:30:00 | AM139: 19:00:00 | AN139: 19:30:00 | AO139: 20:00:00 | AP139: 20:30:00 | AQ139: 21:00:00 | AR139: 21:30:00 | AS139: 22:00:00 | AT139: 22:30:00 | AU139: 23:00:00 | AV139: 23:30:00 | AW139: 1 | AX139: 1.020833333
B140: 02:00:00 | C140: No Break | D140: 02:30:00 | E140: 03:00:00 | F140: 03:30:00 | G140: 04:00:00 | H140: 04:30:00 | I140: 05:00:00 | J140: 05:30:00 | K140: 06:00:00 | L140: 06:30:00 | M140: 07:00:00 | N140: 07:30:00 | O140: 08:00:00 | P140: 08:30:00 | Q140: 09:00:00 | R140: 09:30:00 | S140: 10:00:00 | T140: 10:30:00 | U140: 11:00:00 | V140: 11:30:00 | W140: 12:00:00 | X140: 12:30:00 | Y140: 13:00:00 | Z140: 13:30:00 | AA140: 14:00:00 | AB140: 14:30:00 | AC140: 15:00:00 | AD140: 15:30:00 | AE140: 16:00:00 | AF140: 16:30:00 | AG140: 17:00:00 | AH140: 17:30:00 | AI140: 18:00:00 | AJ140: 18:30:00 | AK140: 19:00:00 | AL140: 19:30:00 | AM140: 20:00:00 | AN140: 20:30:00 | AO140: 21:00:00 | AP140: 21:30:00 | AQ140: 22:00:00 | AR140: 22:30:00 | AS140: 23:00:00 | AT140: 23:30:00 | AU140: 1 | AV140: 1.020833333 | AW140: 1.041666667 | AX140: 1.0625
B141: 03:00:00 | C141: No Break | D141: 03:30:00 | E141: 04:00:00 | F141: 04:30:00 | G141: 05:00:00 | H141: 05:30:00 | I141: 06:00:00 | J141: 06:30:00 | K141: 07:00:00 | L141: 07:30:00 | M141: 08:00:00 | N141: 08:30:00 | O141: 09:00:00 | P141: 09:30:00 | Q141: 10:00:00 | R141: 10:30:00 | S141: 11:00:00 | T141: 11:30:00 | U141: 12:00:00 | V141: 12:30:00 | W141: 13:00:00 | X141: 13:30:00 | Y141: 14:00:00 | Z141: 14:30:00 | AA141: 15:00:00 | AB141: 15:30:00 | AC141: 16:00:00 | AD141: 16:30:00 | AE141: 17:00:00 | AF141: 17:30:00 | AG141: 18:00:00 | AH141: 18:30:00 | AI141: 19:00:00 | AJ141: 19:30:00 | AK141: 20:00:00 | AL141: 20:30:00 | AM141: 21:00:00 | AN141: 21:30:00 | AO141: 22:00:00 | AP141: 22:30:00 | AQ141: 23:00:00 | AR141: 23:30:00 | AS141: 1 | AT141: 1.020833333 | AU141: 1.041666667 | AV141: 1.0625 | AW141: 1.083333333 | AX141: 1.104166667
B142: 04:00:00 | C142: No Break | D142: 04:30:00 | E142: 05:00:00 | F142: 05:30:00 | G142: 06:00:00 | H142: 06:30:00 | I142: 07:00:00 | J142: 07:30:00 | K142: 08:00:00 | L142: 08:30:00 | M142: 09:00:00 | N142: 09:30:00 | O142: 10:00:00 | P142: 10:30:00 | Q142: 11:00:00 | R142: 11:30:00 | S142: 12:00:00 | T142: 12:30:00 | U142: 13:00:00 | V142: 13:30:00 | W142: 14:00:00 | X142: 14:30:00 | Y142: 15:00:00 | Z142: 15:30:00 | AA142: 16:00:00 | AB142: 16:30:00 | AC142: 17:00:00 | AD142: 17:30:00 | AE142: 18:00:00 | AF142: 18:30:00 | AG142: 19:00:00 | AH142: 19:30:00 | AI142: 20:00:00 | AJ142: 20:30:00 | AK142: 21:00:00 | AL142: 21:30:00 | AM142: 22:00:00 | AN142: 22:30:00 | AO142: 23:00:00 | AP142: 23:30:00 | AQ142: 1 | AR142: 1.020833333 | AS142: 1.041666667 | AT142: 1.0625 | AU142: 1.083333333 | AV142: 1.104166667 | AW142: 1.125 | AX142: 1.145833333
B143: 05:00:00 | C143: No Break | D143: 05:30:00 | E143: 06:00:00 | F143: 06:30:00 | G143: 07:00:00 | H143: 07:30:00 | I143: 08:00:00 | J143: 08:30:00 | K143: 09:00:00 | L143: 09:30:00 | M143: 10:00:00 | N143: 10:30:00 | O143: 11:00:00 | P143: 11:30:00 | Q143: 12:00:00 | R143: 12:30:00 | S143: 13:00:00 | T143: 13:30:00 | U143: 14:00:00 | V143: 14:30:00 | W143: 15:00:00 | X143: 15:30:00 | Y143: 16:00:00 | Z143: 16:30:00 | AA143: 17:00:00 | AB143: 17:30:00 | AC143: 18:00:00 | AD143: 18:30:00 | AE143: 19:00:00 | AF143: 19:30:00 | AG143: 20:00:00 | AH143: 20:30:00 | AI143: 21:00:00 | AJ143: 21:30:00 | AK143: 22:00:00 | AL143: 22:30:00 | AM143: 23:00:00 | AN143: 23:30:00 | AO143: 1 | AP143: 1.020833333 | AQ143: 1.041666667 | AR143: 1.0625 | AS143: 1.083333333 | AT143: 1.104166667 | AU143: 1.125 | AV143: 1.145833333 | AW143: 1.166666667 | AX143: 1.1875
B144: 06:00:00 | C144: No Break | D144: 06:30:00 | E144: 07:00:00 | F144: 07:30:00 | G144: 08:00:00 | H144: 08:30:00 | I144: 09:00:00 | J144: 09:30:00 | K144: 10:00:00 | L144: 10:30:00 | M144: 11:00:00 | N144: 11:30:00 | O144: 12:00:00 | P144: 12:30:00 | Q144: 13:00:00 | R144: 13:30:00 | S144: 14:00:00 | T144: 14:30:00 | U144: 15:00:00 | V144: 15:30:00 | W144: 16:00:00 | X144: 16:30:00 | Y144: 17:00:00 | Z144: 17:30:00 | AA144: 18:00:00 | AB144: 18:30:00 | AC144: 19:00:00 | AD144: 19:30:00 | AE144: 20:00:00 | AF144: 20:30:00 | AG144: 21:00:00 | AH144: 21:30:00 | AI144: 22:00:00 | AJ144: 22:30:00 | AK144: 23:00:00 | AL144: 23:30:00 | AM144: 1 | AN144: 1.020833333 | AO144: 1.041666667 | AP144: 1.0625 | AQ144: 1.083333333 | AR144: 1.104166667 | AS144: 1.125 | AT144: 1.145833333 | AU144: 1.166666667 | AV144: 1.1875 | AW144: 1.208333333 | AX144: 1.229166667
B145: 07:00:00 | C145: No Break | D145: 07:30:00 | E145: 08:00:00 | F145: 08:30:00 | G145: 09:00:00 | H145: 09:30:00 | I145: 10:00:00 | J145: 10:30:00 | K145: 11:00:00 | L145: 11:30:00 | M145: 12:00:00 | N145: 12:30:00 | O145: 13:00:00 | P145: 13:30:00 | Q145: 14:00:00 | R145: 14:30:00 | S145: 15:00:00 | T145: 15:30:00 | U145: 16:00:00 | V145: 16:30:00 | W145: 17:00:00 | X145: 17:30:00 | Y145: 18:00:00 | Z145: 18:30:00 | AA145: 19:00:00 | AB145: 19:30:00 | AC145: 20:00:00 | AD145: 20:30:00 | AE145: 21:00:00 | AF145: 21:30:00 | AG145: 22:00:00 | AH145: 22:30:00 | AI145: 23:00:00 | AJ145: 23:30:00 | AK145: 1 | AL145: 1.020833333 | AM145: 1.041666667 | AN145: 1.0625 | AO145: 1.083333333 | AP145: 1.104166667 | AQ145: 1.125 | AR145: 1.145833333 | AS145: 1.166666667 | AT145: 1.1875 | AU145: 1.208333333 | AV145: 1.229166667 | AW145: 1.25 | AX145: 1.270833333
B146: 08:00:00 | C146: No Break | D146: 08:30:00 | E146: 09:00:00 | F146: 09:30:00 | G146: 10:00:00 | H146: 10:30:00 | I146: 11:00:00 | J146: 11:30:00 | K146: 12:00:00 | L146: 12:30:00 | M146: 13:00:00 | N146: 13:30:00 | O146: 14:00:00 | P146: 14:30:00 | Q146: 15:00:00 | R146: 15:30:00 | S146: 16:00:00 | T146: 16:30:00 | U146: 17:00:00 | V146: 17:30:00 | W146: 18:00:00 | X146: 18:30:00 | Y146: 19:00:00 | Z146: 19:30:00 | AA146: 20:00:00 | AB146: 20:30:00 | AC146: 21:00:00 | AD146: 21:30:00 | AE146: 22:00:00 | AF146: 22:30:00 | AG146: 23:00:00 | AH146: 23:30:00 | AI146: 1 | AJ146: 1.020833333 | AK146: 1.041666667 | AL146: 1.0625 | AM146: 1.083333333 | AN146: 1.104166667 | AO146: 1.125 | AP146: 1.145833333 | AQ146: 1.166666667 | AR146: 1.1875 | AS146: 1.208333333 | AT146: 1.229166667 | AU146: 1.25 | AV146: 1.270833333 | AW146: 1.291666667 | AX146: 1.3125
B147: 09:00:00 | C147: No Break | D147: 09:30:00 | E147: 10:00:00 | F147: 10:30:00 | G147: 11:00:00 | H147: 11:30:00 | I147: 12:00:00 | J147: 12:30:00 | K147: 13:00:00 | L147: 13:30:00 | M147: 14:00:00 | N147: 14:30:00 | O147: 15:00:00 | P147: 15:30:00 | Q147: 16:00:00 | R147: 16:30:00 | S147: 17:00:00 | T147: 17:30:00 | U147: 18:00:00 | V147: 18:30:00 | W147: 19:00:00 | X147: 19:30:00 | Y147: 20:00:00 | Z147: 20:30:00 | AA147: 21:00:00 | AB147: 21:30:00 | AC147: 22:00:00 | AD147: 22:30:00 | AE147: 23:00:00 | AF147: 23:30:00 | AG147: 1 | AH147: 1.020833333 | AI147: 1.041666667 | AJ147: 1.0625 | AK147: 1.083333333 | AL147: 1.104166667 | AM147: 1.125 | AN147: 1.145833333 | AO147: 1.166666667 | AP147: 1.1875 | AQ147: 1.208333333 | AR147: 1.229166667 | AS147: 1.25 | AT147: 1.270833333 | AU147: 1.291666667 | AV147: 1.3125 | AW147: 1.333333333 | AX147: 1.354166667
B148: 10:00:00 | C148: No Break | D148: 10:30:00 | E148: 11:00:00 | F148: 11:30:00 | G148: 12:00:00 | H148: 12:30:00 | I148: 13:00:00 | J148: 13:30:00 | K148: 14:00:00 | L148: 14:30:00 | M148: 15:00:00 | N148: 15:30:00 | O148: 16:00:00 | P148: 16:30:00 | Q148: 17:00:00 | R148: 17:30:00 | S148: 18:00:00 | T148: 18:30:00 | U148: 19:00:00 | V148: 19:30:00 | W148: 20:00:00 | X148: 20:30:00 | Y148: 21:00:00 | Z148: 21:30:00 | AA148: 22:00:00 | AB148: 22:30:00 | AC148: 23:00:00 | AD148: 23:30:00 | AE148: 1 | AF148: 1.020833333 | AG148: 1.041666667 | AH148: 1.0625 | AI148: 1.083333333 | AJ148: 1.104166667 | AK148: 1.125 | AL148: 1.145833333 | AM148: 1.166666667 | AN148: 1.1875 | AO148: 1.208333333 | AP148: 1.229166667 | AQ148: 1.25 | AR148: 1.270833333 | AS148: 1.291666667 | AT148: 1.3125 | AU148: 1.333333333 | AV148: 1.354166667 | AW148: 1.375 | AX148: 1.395833333
B149: 11:00:00 | C149: No Break | D149: 11:30:00 | E149: 12:00:00 | F149: 12:30:00 | G149: 13:00:00 | H149: 13:30:00 | I149: 14:00:00 | J149: 14:30:00 | K149: 15:00:00 | L149: 15:30:00 | M149: 16:00:00 | N149: 16:30:00 | O149: 17:00:00 | P149: 17:30:00 | Q149: 18:00:00 | R149: 18:30:00 | S149: 19:00:00 | T149: 19:30:00 | U149: 20:00:00 | V149: 20:30:00 | W149: 21:00:00 | X149: 21:30:00 | Y149: 22:00:00 | Z149: 22:30:00 | AA149: 23:00:00 | AB149: 23:30:00 | AC149: 1 | AD149: 1.020833333 | AE149: 1.041666667 | AF149: 1.0625 | AG149: 1.083333333 | AH149: 1.104166667 | AI149: 1.125 | AJ149: 1.145833333 | AK149: 1.166666667 | AL149: 1.1875 | AM149: 1.208333333 | AN149: 1.229166667 | AO149: 1.25 | AP149: 1.270833333 | AQ149: 1.291666667 | AR149: 1.3125 | AS149: 1.333333333 | AT149: 1.354166667 | AU149: 1.375 | AV149: 1.395833333 | AW149: 1.416666667 | AX149: 1.4375
B150: 12:00:00 | C150: No Break | D150: 12:30:00 | E150: 13:00:00 | F150: 13:30:00 | G150: 14:00:00 | H150: 14:30:00 | I150: 15:00:00 | J150: 15:30:00 | K150: 16:00:00 | L150: 16:30:00 | M150: 17:00:00 | N150: 17:30:00 | O150: 18:00:00 | P150: 18:30:00 | Q150: 19:00:00 | R150: 19:30:00 | S150: 20:00:00 | T150: 20:30:00 | U150: 21:00:00 | V150: 21:30:00 | W150: 22:00:00 | X150: 22:30:00 | Y150: 23:00:00 | Z150: 23:30:00 | AA150: 1 | AB150: 1.020833333 | AC150: 1.041666667 | AD150: 1.0625 | AE150: 1.083333333 | AF150: 1.104166667 | AG150: 1.125 | AH150: 1.145833333 | AI150: 1.166666667 | AJ150: 1.1875 | AK150: 1.208333333 | AL150: 1.229166667 | AM150: 1.25 | AN150: 1.270833333 | AO150: 1.291666667 | AP150: 1.3125 | AQ150: 1.333333333 | AR150: 1.354166667 | AS150: 1.375 | AT150: 1.395833333 | AU150: 1.416666667 | AV150: 1.4375 | AW150: 1.458333333 | AX150: 1.479166667
B151: 13:00:00 | C151: No Break | D151: 13:30:00 | E151: 14:00:00 | F151: 14:30:00 | G151: 15:00:00 | H151: 15:30:00 | I151: 16:00:00 | J151: 16:30:00 | K151: 17:00:00 | L151: 17:30:00 | M151: 18:00:00 | N151: 18:30:00 | O151: 19:00:00 | P151: 19:30:00 | Q151: 20:00:00 | R151: 20:30:00 | S151: 21:00:00 | T151: 21:30:00 | U151: 22:00:00 | V151: 22:30:00 | W151: 23:00:00 | X151: 23:30:00 | Y151: 1 | Z151: 1.020833333 | AA151: 1.041666667 | AB151: 1.0625 | AC151: 1.083333333 | AD151: 1.104166667 | AE151: 1.125 | AF151: 1.145833333 | AG151: 1.166666667 | AH151: 1.1875 | AI151: 1.208333333 | AJ151: 1.229166667 | AK151: 1.25 | AL151: 1.270833333 | AM151: 1.291666667 | AN151: 1.3125 | AO151: 1.333333333 | AP151: 1.354166667 | AQ151: 1.375 | AR151: 1.395833333 | AS151: 1.416666667 | AT151: 1.4375 | AU151: 1.458333333 | AV151: 1.479166667 | AW151: 1.5 | AX151: 1.520833333
B152: 14:00:00 | C152: No Break | D152: 14:30:00 | E152: 15:00:00 | F152: 15:30:00 | G152: 16:00:00 | H152: 16:30:00 | I152: 17:00:00 | J152: 17:30:00 | K152: 18:00:00 | L152: 18:30:00 | M152: 19:00:00 | N152: 19:30:00 | O152: 20:00:00 | P152: 20:30:00 | Q152: 21:00:00 | R152: 21:30:00 | S152: 22:00:00 | T152: 22:30:00 | U152: 23:00:00 | V152: 23:30:00 | W152: 1 | X152: 1.020833333 | Y152: 1.041666667 | Z152: 1.0625 | AA152: 1.083333333 | AB152: 1.104166667 | AC152: 1.125 | AD152: 1.145833333 | AE152: 1.166666667 | AF152: 1.1875 | AG152: 1.208333333 | AH152: 1.229166667 | AI152: 1.25 | AJ152: 1.270833333 | AK152: 1.291666667 | AL152: 1.3125 | AM152: 1.333333333 | AN152: 1.354166667 | AO152: 1.375 | AP152: 1.395833333 | AQ152: 1.416666667 | AR152: 1.4375 | AS152: 1.458333333 | AT152: 1.479166667 | AU152: 1.5 | AV152: 1.520833333 | AW152: 1.541666667 | AX152: 1.5625
B153: 15:00:00 | C153: No Break | D153: 15:30:00 | E153: 16:00:00 | F153: 16:30:00 | G153: 17:00:00 | H153: 17:30:00 | I153: 18:00:00 | J153: 18:30:00 | K153: 19:00:00 | L153: 19:30:00 | M153: 20:00:00 | N153: 20:30:00 | O153: 21:00:00 | P153: 21:30:00 | Q153: 22:00:00 | R153: 22:30:00 | S153: 23:00:00 | T153: 23:30:00 | U153: 1 | V153: 1.020833333 | W153: 1.041666667 | X153: 1.0625 | Y153: 1.083333333 | Z153: 1.104166667 | AA153: 1.125 | AB153: 1.145833333 | AC153: 1.166666667 | AD153: 1.1875 | AE153: 1.208333333 | AF153: 1.229166667 | AG153: 1.25 | AH153: 1.270833333 | AI153: 1.291666667 | AJ153: 1.3125 | AK153: 1.333333333 | AL153: 1.354166667 | AM153: 1.375 | AN153: 1.395833333 | AO153: 1.416666667 | AP153: 1.4375 | AQ153: 1.458333333 | AR153: 1.479166667 | AS153: 1.5 | AT153: 1.520833333 | AU153: 1.541666667 | AV153: 1.5625 | AW153: 1.583333333 | AX153: 1.604166667
B154: 16:00:00 | C154: No Break | D154: 16:30:00 | E154: 17:00:00 | F154: 17:30:00 | G154: 18:00:00 | H154: 18:30:00 | I154: 19:00:00 | J154: 19:30:00 | K154: 20:00:00 | L154: 20:30:00 | M154: 21:00:00 | N154: 21:30:00 | O154: 22:00:00 | P154: 22:30:00 | Q154: 23:00:00 | R154: 23:30:00 | S154: 1 | T154: 1.020833333 | U154: 1.041666667 | V154: 1.0625 | W154: 1.083333333 | X154: 1.104166667 | Y154: 1.125 | Z154: 1.145833333 | AA154: 1.166666667 | AB154: 1.1875 | AC154: 1.208333333 | AD154: 1.229166667 | AE154: 1.25 | AF154: 1.270833333 | AG154: 1.291666667 | AH154: 1.3125 | AI154: 1.333333333 | AJ154: 1.354166667 | AK154: 1.375 | AL154: 1.395833333 | AM154: 1.416666667 | AN154: 1.4375 | AO154: 1.458333333 | AP154: 1.479166667 | AQ154: 1.5 | AR154: 1.520833333 | AS154: 1.541666667 | AT154: 1.5625 | AU154: 1.583333333 | AV154: 1.604166667 | AW154: 1.625 | AX154: 1.645833333
B155: 17:00:00 | C155: No Break | D155: 17:30:00 | E155: 18:00:00 | F155: 18:30:00 | G155: 19:00:00 | H155: 19:30:00 | I155: 20:00:00 | J155: 20:30:00 | K155: 21:00:00 | L155: 21:30:00 | M155: 22:00:00 | N155: 22:30:00 | O155: 23:00:00 | P155: 23:30:00 | Q155: 1 | R155: 1.020833333 | S155: 1.041666667 | T155: 1.0625 | U155: 1.083333333 | V155: 1.104166667 | W155: 1.125 | X155: 1.145833333 | Y155: 1.166666667 | Z155: 1.1875 | AA155: 1.208333333 | AB155: 1.229166667 | AC155: 1.25 | AD155: 1.270833333 | AE155: 1.291666667 | AF155: 1.3125 | AG155: 1.333333333 | AH155: 1.354166667 | AI155: 1.375 | AJ155: 1.395833333 | AK155: 1.416666667 | AL155: 1.4375 | AM155: 1.458333333 | AN155: 1.479166667 | AO155: 1.5 | AP155: 1.520833333 | AQ155: 1.541666667 | AR155: 1.5625 | AS155: 1.583333333 | AT155: 1.604166667 | AU155: 1.625 | AV155: 1.645833333 | AW155: 1.666666667 | AX155: 1.6875
B156: 18:00:00 | C156: No Break | D156: 18:30:00 | E156: 19:00:00 | F156: 19:30:00 | G156: 20:00:00 | H156: 20:30:00 | I156: 21:00:00 | J156: 21:30:00 | K156: 22:00:00 | L156: 22:30:00 | M156: 23:00:00 | N156: 23:30:00 | O156: 1 | P156: 1.020833333 | Q156: 1.041666667 | R156: 1.0625 | S156: 1.083333333 | T156: 1.104166667 | U156: 1.125 | V156: 1.145833333 | W156: 1.166666667 | X156: 1.1875 | Y156: 1.208333333 | Z156: 1.229166667 | AA156: 1.25 | AB156: 1.270833333 | AC156: 1.291666667 | AD156: 1.3125 | AE156: 1.333333333 | AF156: 1.354166667 | AG156: 1.375 | AH156: 1.395833333 | AI156: 1.416666667 | AJ156: 1.4375 | AK156: 1.458333333 | AL156: 1.479166667 | AM156: 1.5 | AN156: 1.520833333 | AO156: 1.541666667 | AP156: 1.5625 | AQ156: 1.583333333 | AR156: 1.604166667 | AS156: 1.625 | AT156: 1.645833333 | AU156: 1.666666667 | AV156: 1.6875 | AW156: 1.708333333 | AX156: 1.729166667
B157: 19:00:00 | C157: No Break | D157: 19:30:00 | E157: 20:00:00 | F157: 20:30:00 | G157: 21:00:00 | H157: 21:30:00 | I157: 22:00:00 | J157: 22:30:00 | K157: 23:00:00 | L157: 23:30:00 | M157: 1 | N157: 1.020833333 | O157: 1.041666667 | P157: 1.0625 | Q157: 1.083333333 | R157: 1.104166667 | S157: 1.125 | T157: 1.145833333 | U157: 1.166666667 | V157: 1.1875 | W157: 1.208333333 | X157: 1.229166667 | Y157: 1.25 | Z157: 1.270833333 | AA157: 1.291666667 | AB157: 1.3125 | AC157: 1.333333333 | AD157: 1.354166667 | AE157: 1.375 | AF157: 1.395833333 | AG157: 1.416666667 | AH157: 1.4375 | AI157: 1.458333333 | AJ157: 1.479166667 | AK157: 1.5 | AL157: 1.520833333 | AM157: 1.541666667 | AN157: 1.5625 | AO157: 1.583333333 | AP157: 1.604166667 | AQ157: 1.625 | AR157: 1.645833333 | AS157: 1.666666667 | AT157: 1.6875 | AU157: 1.708333333 | AV157: 1.729166667 | AW157: 1.75 | AX157: 1.770833333
B158: 20:00:00 | C158: No Break | D158: 20:30:00 | E158: 21:00:00 | F158: 21:30:00 | G158: 22:00:00 | H158: 22:30:00 | I158: 23:00:00 | J158: 23:30:00 | K158: 1 | L158: 1.020833333 | M158: 1.041666667 | N158: 1.0625 | O158: 1.083333333 | P158: 1.104166667 | Q158: 1.125 | R158: 1.145833333 | S158: 1.166666667 | T158: 1.1875 | U158: 1.208333333 | V158: 1.229166667 | W158: 1.25 | X158: 1.270833333 | Y158: 1.291666667 | Z158: 1.3125 | AA158: 1.333333333 | AB158: 1.354166667 | AC158: 1.375 | AD158: 1.395833333 | AE158: 1.416666667 | AF158: 1.4375 | AG158: 1.458333333 | AH158: 1.479166667 | AI158: 1.5 | AJ158: 1.520833333 | AK158: 1.541666667 | AL158: 1.5625 | AM158: 1.583333333 | AN158: 1.604166667 | AO158: 1.625 | AP158: 1.645833333 | AQ158: 1.666666667 | AR158: 1.6875 | AS158: 1.708333333 | AT158: 1.729166667 | AU158: 1.75 | AV158: 1.770833333 | AW158: 1.791666667 | AX158: 1.8125
B159: 21:00:00 | C159: No Break | D159: 21:30:00 | E159: 22:00:00 | F159: 22:30:00 | G159: 23:00:00 | H159: 23:30:00 | I159: 1 | J159: 1.020833333 | K159: 1.041666667 | L159: 1.0625 | M159: 1.083333333 | N159: 1.104166667 | O159: 1.125 | P159: 1.145833333 | Q159: 1.166666667 | R159: 1.1875 | S159: 1.208333333 | T159: 1.229166667 | U159: 1.25 | V159: 1.270833333 | W159: 1.291666667 | X159: 1.3125 | Y159: 1.333333333 | Z159: 1.354166667 | AA159: 1.375 | AB159: 1.395833333 | AC159: 1.416666667 | AD159: 1.4375 | AE159: 1.458333333 | AF159: 1.479166667 | AG159: 1.5 | AH159: 1.520833333 | AI159: 1.541666667 | AJ159: 1.5625 | AK159: 1.583333333 | AL159: 1.604166667 | AM159: 1.625 | AN159: 1.645833333 | AO159: 1.666666667 | AP159: 1.6875 | AQ159: 1.708333333 | AR159: 1.729166667 | AS159: 1.75 | AT159: 1.770833333 | AU159: 1.791666667 | AV159: 1.8125 | AW159: 1.833333333 | AX159: 1.854166667
B160: 22:00:00 | C160: No Break | D160: 22:30:00 | E160: 23:00:00 | F160: 23:30:00 | G160: 1 | H160: 1.020833333 | I160: 1.041666667 | J160: 1.0625 | K160: 1.083333333 | L160: 1.104166667 | M160: 1.125 | N160: 1.145833333 | O160: 1.166666667 | P160: 1.1875 | Q160: 1.208333333 | R160: 1.229166667 | S160: 1.25 | T160: 1.270833333 | U160: 1.291666667 | V160: 1.3125 | W160: 1.333333333 | X160: 1.354166667 | Y160: 1.375 | Z160: 1.395833333 | AA160: 1.416666667 | AB160: 1.4375 | AC160: 1.458333333 | AD160: 1.479166667 | AE160: 1.5 | AF160: 1.520833333 | AG160: 1.541666667 | AH160: 1.5625 | AI160: 1.583333333 | AJ160: 1.604166667 | AK160: 1.625 | AL160: 1.645833333 | AM160: 1.666666667 | AN160: 1.6875 | AO160: 1.708333333 | AP160: 1.729166667 | AQ160: 1.75 | AR160: 1.770833333 | AS160: 1.791666667 | AT160: 1.8125 | AU160: 1.833333333 | AV160: 1.854166667 | AW160: 1.875 | AX160: 1.895833333
B161: 23:00:00 | C161: No Break | D161: 23:30:00 | E161: 1 | F161: 1.020833333 | G161: 1.041666667 | H161: 1.0625 | I161: 1.083333333 | J161: 1.104166667 | K161: 1.125 | L161: 1.145833333 | M161: 1.166666667 | N161: 1.1875 | O161: 1.208333333 | P161: 1.229166667 | Q161: 1.25 | R161: 1.270833333 | S161: 1.291666667 | T161: 1.3125 | U161: 1.333333333 | V161: 1.354166667 | W161: 1.375 | X161: 1.395833333 | Y161: 1.416666667 | Z161: 1.4375 | AA161: 1.458333333 | AB161: 1.479166667 | AC161: 1.5 | AD161: 1.520833333 | AE161: 1.541666667 | AF161: 1.5625 | AG161: 1.583333333 | AH161: 1.604166667 | AI161: 1.625 | AJ161: 1.645833333 | AK161: 1.666666667 | AL161: 1.6875 | AM161: 1.708333333 | AN161: 1.729166667 | AO161: 1.75 | AP161: 1.770833333 | AQ161: 1.791666667 | AR161: 1.8125 | AS161: 1.833333333 | AT161: 1.854166667 | AU161: 1.875 | AV161: 1.895833333 | AW161: 1.916666667 | AX161: 1.9375
A162: 1 | B162: 2 | C162: 3 | D162: 4 | E162: 5 | F162: 6 | G162: 7 | H162: 8 | I162: 9 | J162: 10 | K162: 11 | L162: 12 | M162: 13 | N162: 14 | O162: 15 | P162: 16 | Q162: 17 | R162: 18 | S162: 19 | T162: 20 | U162: 21 | V162: 22 | W162: 23 | X162: 24 | Y162: 25 | Z162: 26 | AA162: 27 | AB162: 28 | AC162: 29 | AD162: 30 | AE162: 31 | AF162: 32 | AG162: 33 | AH162: 34 | AI162: 35 | AJ162: 36 | AK162: 37 | AL162: 38 | AM162: 39 | AN162: 40 | AO162: 41 | AP162: 42 | AQ162: 43 | AR162: 44 | AS162: 45 | AT162: 46 | AU162: 47 | AV162: 48 | AW162: 49 | AX162: 50 | AY162: 51 | AZ162: 52 | BA162: 53 | BB162: 54 | BC162: 55 | BD162: 56 | BE162: 57 | BF162: 58 | BG162: 59 | BH162: 60 | BI162: 61 | BJ162: 62 | BK162: 63 | BL162: 64 | BM162: 65 | BN162: 66 | BO162: 67 | BP162: 68 | BQ162: 69 | BR162: 70 | BS162: 71 | BT162: 72 | BU162: 73 | BV162: 74 | BW162: 75 | BX162: 76 | BY162: 77 | BZ162: 78 | CA162: 79 | CB162: 80 | CC162: 81 | CD162: 82 | CE162: 83 | CF162: 84 | CG162: 85 | CH162: 86 | CI162: 87 | CJ162: 88 | CK162: 89 | CL162: 90 | CM162: 91 | CN162: 92 | CO162: 93 | CP162: 94 | CQ162: 95 | CR162: 96 | CS162: 97 | CT162: 98 | CU162: 99 | CV162: 100 | CW162: 101
B163: start time | C163: break times
B164: =Inputs!F4 -> 07:00:00 | C164: =VLOOKUP($B$164,$B$138:$AX$161,B162,FALSE) -> No Break | D164: =VLOOKUP($B$164,$B$138:$AX$161,C162,FALSE) -> 07:30:00 | E164: 08:00:00 | F164: 08:30:00 | G164: 09:00:00 | H164: 09:30:00 | I164: 10:00:00 | J164: 10:30:00 | K164: 11:00:00 | L164: 11:30:00 | M164: 12:00:00 | N164: 12:30:00 | O164: 13:00:00 | P164: 13:30:00 | Q164: 14:00:00 | R164: 14:30:00 | S164: 15:00:00 | T164: 15:30:00 | U164: 16:00:00 | V164: 16:30:00 | W164: 17:00:00 | X164: 17:30:00 | Y164: 18:00:00 | Z164: 18:30:00 | AA164: 19:00:00 | AB164: 19:30:00 | AC164: 20:00:00 | AD164: 20:30:00 | AE164: 21:00:00 | AF164: 21:30:00 | AG164: 22:00:00 | AH164: 22:30:00 | AI164: 23:00:00 | AJ164: 23:30:00 | AK164: 1 | AL164: 1.020833333 | AM164: 1.041666667 | AN164: 1.0625 | AO164: 1.083333333 | AP164: 1.104166667 | AQ164: 1.125 | AR164: 1.145833333 | AS164: 1.166666667 | AT164: 1.1875 | AU164: 1.208333333 | AV164: 1.229166667 | AW164: 1.25 | AX164: 1.270833333
B166: Break duration (mins) | C166: 0 | D166: 5 | E166: 10 | F166: 15 | G166: 20 | H166: 30 | I166: 40 | J166: 45 | K166: 60 | L166: 90 | M166: 120
B168: End Time | C168: =B164+1/24 -> 08:00:00 | D168: =C168+1/24 -> 09:00:00 | E168: =D168+1/24 -> 10:00:00 | F168: 11:00:00 | G168: 12:00:00 | H168: 13:00:00 | I168: 14:00:00 | J168: 15:00:00 | K168: 16:00:00 | L168: 17:00:00 | M168: 18:00:00 | N168: 19:00:00 | O168: 20:00:00 | P168: 21:00:00 | Q168: 22:00:00 | R168: 23:00:00 | S168: 1 | T168: 1.041666667 | U168: 1.083333333 | V168: 1.125 | W168: 1.166666667 | X168: 1.208333333 | Y168: 1.25 | Z168: 1.291666667

Sheet Calc1 (hidden)
C2: Operating hours per annum (decimal) | D2: =(Calc1!D5*Inputs!F20*Calc2!C6) -> 3280 | E2: (hrs/day)x(days/week)x(weeks/year)
C3: Estimated idle time % | D3: =(1-Inputs!F21/(Calc1!D5*Inputs!F20*Calc2!C6)) -> 0.08536585366
C4: Charging time per day | D4: =O60 -> 10:20:00
C5: Operating hours per day (decimal) | D5: =O59*24 -> 13.66666667
C6: Break Hours per day (decimal) | D6: =O62*24 -> 2.333333333
C7: Number of breaks | D7: =COUNT(M19,M22,M24,M26,M28,M30,M32,M34,M36,M38,M40,M42,M44,M47,M49,M51,M53,M55) -> 5
D10: Lead Acid | E10: Lithium ion | F10: Fuel Cell | G10: ICE | L10: LI-ion Energy useage based on shift patterns
AG11: Graph
C12: Energy Cost PA/Truck | M12: Availiable Capacity (kWh) | N12: =E22 -> 39.168 | S12: battery balancing time SOC threshold (%) | T12: =Calc2!C132 -> 80 | AG12: Period end | AH12: SOC (kWh) | AI12: SOC (%) | AJ12: DOD line
M13: consumption rate (kWh/h) | N13: =E28 -> 7.189 | S13: battery balancing time SOC threshold (kWh)) | T13: =T12/100*N12 -> 31.3344 | V13: =Calc2!C133 -> 20 | W13: added mins for balancing | AG13: =AB17 -> 07:00:00 | AH13: =AC17 -> 39.168 | AI13: =AH13/$N$12 -> 1
C14: Voltage | D14: =VLOOKUP(Inputs!F56,Trucks!B78:C97,2,FALSE) -> 80 | E14: =VLOOKUP(D14,Trucks!B237:C243,2,FALSE) -> 76.8 | M14: charge rate (kWh/h) | N14: =E19 -> 38.4 | S14: Charge rate during balancing (kWh/h) | T14: =(N12-T13)/(((N12-T13)/N14)+V13/60) -> 14.57866005 | AF14: discharge | AG14: =AB18 -> 10:00:00 | AH14: =AC18 -> 17.601 | AI14: 0.4493719363 | AJ14: =AG13 -> 07:00:00 | AK14: =R61 -> 0.04
C15: Battery Capacity (Ah) | D15: =Inputs!F65 -> 770 | E15: =Inputs!F84 -> 600 | AG15: =U19 -> 10:20:00 | AH15: =V19 -> 30.401 | AI15: 0.7761693219 | AJ15: =AG87 -> 23:48:57.772 | AK15: =AK14 -> 0.04
C16: Charger (A) | E16: =Inputs!F85 -> 500 | L16: charge/discharge | M16: start time | N16: end time | O16: duration | P16: [for Warning] check end time after finish time (1=warning) | Q16: Consumption (kWh) for total per day | R16: [For warning] Max DOD been exceeded? (Yes=1) | S16: [logic for table] is end SOC < threshold? | T16: start | U16: end | V16: SOC | W16: [logic for table] will it go over 100%? | X16: start | Y16: end | Z16: SOC | AA16: start | AB16: end | AC16: SOC | AG16: =Y19 -> 10:20:00 | AH16: =Z19 -> 30.401 | AI16: 0.7761693219
C17: Cells | D17: =D14/2 -> 40 | AB17: =Inputs!F4 -> 07:00:00 | AC17: =N12 -> 39.168 | AG17: =AB19 -> 10:20:00 | AH17: =AC19 -> 30.401 | AI17: 0.7761693219
C18: Hours to Charge | E18: =E15/E16 -> 1.2 | L18: discharge | M18: =Inputs!F4 -> 07:00:00 | N18: =IF(M19="No Break",M21,M19) -> 10:00:00 | O18: =N18-M18 -> 03:00:00 | Q18: =O18*24*$N$13 -> 21.567 | R18: =IF(AC18<$R$61*$N$12,1,0) -> 0 | T18: =Inputs!F4 -> 07:00:00 | AB18: =N18 -> 10:00:00 | AC18: =AC17-(AB18-T18)*24*$N$13 -> 17.601 | AF18: discharge | AG18: =AB20 -> 12:30:00 | AH18: =AC20 -> 14.82483333 | AI18: 0.3784934981
C19: Charge rate (kWh/hour) | E19: =E21/E18 -> 38.4 | L19: charge 1 | M19: =IF(Inputs!D7=0,"No Break",Inputs!D7) -> 10:00:00 | N19: =IF(M19="No Break","No Break",M19+O19) -> 10:20:00 | O19: =Inputs!D8/60/24 -> 00:20:00 | P19: =IF(N19="No Break",IF(P17=1,1,0),IF(Calc1!N19>Calc1!N21,1,"")) ->  | S19: =IF(T19="No break","",IF((AB19-T19)*24*$N$14+AC18<$T$13,1,"")) -> 1 | T19: =M19 -> 10:00:00 | U19: =IF(AND(AC18<$T$13,S19=1),AB19,IF(AC18<$T$13,T19+($T$13-AC18)/$N$14/24,T19)) -> 10:20:00 | V19: =IF(AND(AC18<$T$13,S19=1),AC18+(U19-T19)*24*$N$14,IF(AC18<=$T$13,$T$13,AC18)) -> 30.401 | W19: =IF(M19="No Break","",IF((AB19-X19)*24*$T$14+V19>$N$12,1,"")) ->  | X19: =U19 -> 10:20:00 | Y19: =IF(S19=1,X19,IF(W19=1,X19+($N$12-V19)/$T$14/24,AB19)) -> 10:20:00 | Z19: =IF(S19=1,V19,V19+(Y19-X19)*24*$T$14) -> 30.401 | AA19: =Y19 -> 10:20:00 | AB19: =IF(M19="No Break",AA19,M19+O19) -> 10:20:00 | AC19: =Z19 -> 30.401 | AG19: =U21 -> 12:55:47.772 | AH19: =V21 -> 31.3344 | AI19: 0.8
Q20: =O21*24*$N$13 -> 15.57616667 | R20: =IF(AC20<$R$61*$N$12,1,0) -> 0 | T20: =M21 -> 10:20:00 | AB20: =IF(OR(M22="No Break",M22=0), T22,T21) -> 12:30:00 | AC20: =AC19-(AB20-T20)*24*$N$13 -> 14.82483333 | AG20: =Y21 -> 13:10:00 | AH20: =Z21 -> 34.7856067 | AI20: 0.8881129161
C21: Nominal Energy per battery (kWh) | D21: =D15*D14/1000 -> 61.6 | E21: =E15*E14/1000 -> 46.08 | L21: discharge | M21: =IF(OR(M19="No Break",M19=0),N21,N19) -> 10:20:00 | N21: =IF(M22="No Break",M23,M22) -> 12:30:00 | O21: =IF(N21-M21<0,0,N21-M21) -> 02:10:00 | P21: =IF(N22="No Break",IF(P19=1,1,0),IF(Calc1!N22>Calc1!N23,1,"")) ->  | S21: =IF(M22="No break","",IF((AB21-T21)*24*$N$14+AC20<$T$13,1,"")) ->  | T21: =IF(M22="No Break",AB20,M22) -> 12:30:00 | U21: =IF(M22="No Break",T21,IF(AND(AC20<$T$13,S21=1),AB21,IF(AC20<$T$13,T21+($T$13-AC20)/$N$14/24,T21))) -> 12:55:47.772 | V21: =IF(M22="No Break",AC20,IF(AND(AC20<$T$13,S21=1),AC20+(U21-T21)*24*$N$14,IF(AC20<=$T$13,$T$13,AC20))) -> 31.3344 | W21: =IF(M22="No Break","",IF((AB21-X21)*24*$T$14+V21>$N$12,1,"")) ->  | X21: =U21 -> 12:55:47.772 | Y21: =IF(M22="No Break",X21,IF(S21=1,X21,IF(W21=1,X21+($N$12-V21)/$T$14/24,AB21))) -> 13:10:00 | Z21: =IF(S21=1,V21,V21+(Y21-X21)*24*$T$14) -> 34.7856067 | AA21: =Y21 -> 13:10:00 | AB21: =IF(M22="No Break",AA21,M22+O22) -> 13:10:00 | AC21: =Z21 -> 34.7856067 | AG21: =AB21 -> 13:10:00 | AH21: =AC21 -> 34.7856067 | AI21: 0.8881129161
C22: Available Energy Per battery (kWh) | E22: =E21*Calc2!C74/100 -> 39.168 | L22: charge 2 | M22: =IF(Inputs!F7=0,"No Break",Inputs!F7) -> 12:30:00 | N22: =IF(M22="No Break","No Break",M22+O22) -> 13:10:00 | O22: =IF(M22="No Break",0,Inputs!F8/24/60) -> 00:40:00 | Q22: =O23*24*$N$13 -> 13.17983333 | R22: =IF(AC22<$R$61*$N$12,1,0) -> 0 | T22: =M23 -> 13:10:00 | AB22: =IF(OR(M24="No Break",M24=0), T24,T23) -> 15:00:00 | AC22: =AC21-(AB22-T22)*24*$N$13 -> 21.60577337 | AF22: discharge | AG22: =AB22 -> 15:00:00 | AH22: =AC22 -> 21.60577337 | AI22: 0.5516179883
C23: Useable energy per battery (kWh) - tank capacity lt / kg | D23: =(D21*Calc2!C65/100) -> 49.28 | E23: =(E21*Calc2!C76/100) -> 37.60128 | F23: =Calc2!C88*Calc2!C86 -> 47.4525 | G23: =Calc2!C24 -> 52 | L23: discharge | M23: =IF(OR(M22="No Break",M22=0),N23,N22) -> 13:10:00 | N23: =IF(M24="No Break",M25,M24) -> 15:00:00 | O23: =IF(N23-M23<0,0,N23-M23) -> 01:50:00 | P23: =IF(N24="No Break",IF(P21=1,1,0),IF(Calc1!N24>Calc1!N25,1,"")) ->  | S23: =IF(M24="No break","",IF((AB23-T23)*24*$N$14+AC22<$T$13,1,"")) ->  | T23: =IF(M24="No Break",AB22,M24) -> 15:00:00 | U23: =IF(M24="No Break",T23,IF(AND(AC22<$T$13,S23=1),AB23,IF(AC22<$T$13,T23+($T$13-AC22)/$N$14/24,T23))) -> 15:15:12.059 | V23: =IF(M24="No Break",AC22,IF(AND(AC22<$T$13,S23=1),AC22+(U23-T23)*24*$N$14,IF(AC22<=$T$13,$T$13,AC22))) -> 31.3344 | W23: =IF(M24="No Break","",IF((AB23-X23)*24*$T$14+V23>$N$12,1,"")) ->  | X23: =U23 -> 15:15:12.059 | Y23: =IF(M24="No Break",X23,IF(S23=1,X23,IF(W23=1,X23+($N$12-V23)/$T$14/24,AB23))) -> 15:20:00 | Z23: =IF(S23=1,V23,V23+(Y23-X23)*24*$T$14) -> 32.5004549 | AA23: =Y23 -> 15:20:00 | AB23: =IF(M24="No Break",AA23,M24+O24) -> 15:20:00 | AC23: =Z23 -> 32.5004549 | AG23: =U23 -> 15:15:12.059 | AH23: =V23 -> 31.3344 | AI23: 0.8
C24: Energy per charge (of useable range) (kWh) | D24: =(D15*D14*(Calc2!C65/100)/Calc2!C70/Calc2!C71)/1000 -> 83.24324324 | E24: =E15*E14/1000*Calc2!C76/100/Calc2!C80/Calc2!C81 -> 43.97810526 | L24: charge 3 | M24: =IF(Inputs!H7=0,"No Break",Inputs!H7) -> 15:00:00 | N24: =IF(M24="No Break","No Break",M24+O24) -> 15:20:00 | O24: =IF(M24="No Break",0,Inputs!H8/60/24) -> 00:20:00 | Q24: =O25*24*$N$13 -> 26.35966667 | R24: =IF(AC24<$R$61*$N$12,1,0) -> 0 | T24: =M25 -> 15:20:00 | AB24: =IF(OR(M26="No Break",M26=0), T26,T25) -> 19:00:00 | AC24: =AC23-(AB24-T24)*24*$N$13 -> 6.140788234 | AG24: =Y23 -> 15:20:00 | AH24: =Z23 -> 32.5004549 | AI24: 0.829770601
C25: Mains energy per kWh of battery use | D25: =D24/D23 -> 1.689189189 | E25: =E24/E23 -> 1.169590643 | L25: discharge | M25: =IF(OR(M24="No Break",M24=0),N25,N24) -> 15:20:00 | N25: =IF(M26="No Break",M27,M26) -> 19:00:00 | O25: =IF(N25-M25<0,0,N25-M25) -> 03:40:00 | P25: =IF(N26="No Break",IF(P23=1,1,0),IF(Calc1!N26>Calc1!N27,1,"")) ->  | S25: =IF(M26="No break","",IF((AB25-T25)*24*$N$14+AC24<$T$13,1,"")) ->  | T25: =IF(M26="No Break",AB24,M26) -> 19:00:00 | U25: =IF(M26="No Break",T25,IF(AND(AC24<$T$13,S25=1),AB25,IF(AC24<$T$13,T25+($T$13-AC24)/$N$14/24,T25))) -> 19:39:21.901 | V25: =IF(M26="No Break",AC24,IF(AND(AC24<$T$13,S25=1),AC24+(U25-T25)*24*$N$14,IF(AC24<=$T$13,$T$13,AC24))) -> 31.3344 | W25: =IF(M26="No Break","",IF((AB25-X25)*24*$T$14+V25>$N$12,1,"")) ->  | X25: =U25 -> 19:39:21.901 | Y25: =IF(M26="No Break",X25,IF(S25=1,X25,IF(W25=1,X25+($N$12-V25)/$T$14/24,AB25))) -> 19:40:00 | Z25: =IF(S25=1,V25,V25+(Y25-X25)*24*$T$14) -> 31.48868635 | AA25: =Y25 -> 19:40:00 | AB25: =IF(M26="No Break",AA25,M26+O26) -> 19:40:00 | AC25: =Z25 -> 31.48868635 | AG25: =AB23 -> 15:20:00 | AH25: =AC23 -> 32.5004549 | AI25: 0.829770601
L26: charge 4 | M26: =IF(Inputs!J7=0,"No Break",Inputs!J7) -> 19:00:00 | N26: =IF(M26="No Break","No Break",M26+O26) -> 19:40:00 | O26: =IF(M26="No Break",0,Inputs!J8/60/24) -> 00:40:00 | Q26: =O27*24*$N$13 -> 9.585333333 | R26: =IF(AC26<$R$61*$N$12,1,0) -> 0 | T26: =M27 -> 19:40:00 | AB26: =IF(OR(M28="No Break",M28=0), T28,T27) -> 21:00:00 | AC26: =AC25-(AB26-T26)*24*$N$13 -> 21.90335302 | AF26: discharge | AG26: =AB24 -> 19:00:00 | AH26: =AC24 -> 6.140788234 | AI26: 0.1567807454
C27: Energy consumption rate during use (kWh/h) - lt/h - kg/h | D27: =IF(Inputs!F79="yes",Performance!B11*Inputs!F57,Performance!C11*Inputs!F57) -> 7.9 | E27: =IF(Inputs!F92="yes",Performance!B11*Inputs!F57,Performance!C11*Inputs!F57) -> 7.9 | F27: =IF(Inputs!F104="yes",Performance!B11*Inputs!F57,Performance!C11*Inputs!F57) -> 7.9 | G27: =IF(Inputs!F52="yes",Performance!B11*Inputs!F42,Performance!C11*Inputs!F42) -> 2.6 | L27: Discharge | M27: =IF(OR(M26="No Break",M26=0),N27,N26) -> 19:40:00 | N27: =IF(M28="No Break",M29,M28) -> 21:00:00 | O27: =IF(N27-M27<0,0,N27-M27) -> 01:20:00 | P27: =IF(N28="No Break",IF(P25=1,1,0),IF(Calc1!N28>Calc1!N29,1,"")) ->  | S27: =IF(M28="No break","",IF((AB27-T27)*24*$N$14+AC26<$T$13,1,"")) ->  | T27: =IF(M28="No Break",AB26,M28) -> 21:00:00 | U27: =IF(M28="No Break",T27,IF(AND(AC26<$T$13,S27=1),AB27,IF(AC26<$T$13,T27+($T$13-AC26)/$N$14/24,T27))) -> 21:14:44.161 | V27: =IF(M28="No Break",AC26,IF(AND(AC26<$T$13,S27=1),AC26+(U27-T27)*24*$N$14,IF(AC26<=$T$13,$T$13,AC26))) -> 31.3344 | W27: =IF(M28="No Break","",IF((AB27-X27)*24*$T$14+V27>$N$12,1,"")) ->  | X27: =U27 -> 21:14:44.161 | Y27: =IF(M28="No Break",X27,IF(S27=1,X27,IF(W27=1,X27+($N$12-V27)/$T$14/24,AB27))) -> 21:20:00 | Z27: =IF(S27=1,V27,V27+(Y27-X27)*24*$T$14) -> 32.61343179 | AA27: =Y27 -> 21:20:00 | AB27: =IF(M28="No Break",AA27,M28+O28) -> 21:20:00 | AC27: =Z27 -> 32.61343179 | AG27: =U25 -> 19:39:21.901 | AH27: =V25 -> 31.3344 | AI27: 0.8
C28: Energy consumption rate during use including idle time (kWh/h) inc 50% eff | D28: =D27*(1-Inputs!F22/100) -> 7.189 | E28: =E27*(1-Inputs!F22/100) -> 7.189 | F28: =F27*(1-Inputs!F22/100)/Calc2!C91 -> 14.378 | G28: =G27*(1-Inputs!F22/100) -> 2.366 | L28: charge 5 | M28: =IF(Inputs!L7=0,"No Break",Inputs!L7) -> 21:00:00 | N28: =IF(M28="No Break","No Break",M28+O28) -> 21:20:00 | O28: =IF(M28="No Break",0,Inputs!L8/60/24) -> 00:20:00 | Q28: =O29*24*$N$13 -> 11.98166667 | R28: =IF(AC28<$R$61*$N$12,1,0) -> 0 | T28: =M29 -> 21:20:00 | AB28: =IF(OR(M30="No Break",M30=0), T30,T29) -> 23:00:00 | AC28: =AC27-(AB28-T28)*24*$N$13 -> 20.63176512 | AG28: =Y25 -> 19:40:00 | AH28: =Z25 -> 31.48868635 | AI28: 0.8039390919
L29: discharge | M29: =IF(OR(M28="No Break",M28=0),N29,N28) -> 21:20:00 | N29: =IF(M30="No Break",M31,M30) -> 23:00:00 | O29: =IF(N29-M29<0,0,N29-M29) -> 01:40:00 | P29: =IF(N30="No Break",IF(P27=1,1,0),IF(Calc1!N30>Calc1!N31,1,"")) -> 0 | S29: =IF(M30="No break","",IF((AB29-T29)*24*$N$14+AC28<$T$13,1,"")) ->  | T29: =IF(M30="No Break",AB28,M30) -> 23:00:00 | U29: =IF(M30="No Break",T29,IF(AND(AC28<$T$13,S29=1),AB29,IF(AC28<$T$13,T29+($T$13-AC28)/$N$14/24,T29))) -> 23:00:00 | V29: =IF(M30="No Break",AC28,IF(AND(AC28<$T$13,S29=1),AC28+(U29-T29)*24*$N$14,IF(AC28<=$T$13,$T$13,AC28))) -> 20.63176512 | W29: =IF(M30="No Break","",IF((AB29-X29)*24*$T$14+V29>$N$12,1,"")) ->  | X29: =U29 -> 23:00:00 | Y29: =IF(M30="No Break",X29,IF(S29=1,X29,IF(W29=1,X29+($N$12-V29)/$T$14/24,AB29))) -> 23:00:00 | Z29: =IF(S29=1,V29,V29+(Y29-X29)*24*$T$14) -> 20.63176512 | AA29: =Y29 -> 23:00:00 | AB29: =IF(M30="No Break",AA29,M30+O30) -> 23:00:00 | AC29: =Z29 -> 20.63176512 | AG29: =AB25 -> 19:40:00 | AH29: =AC25 -> 31.48868635 | AI29: =AH29/$N$12 -> 0.8039390919
C30: Used Per Day Kg (LPG) or L (Dsl) | G30: =(G28*D5) -> 32.33533333 | L30: charge 6 | M30: =IF(Inputs!N7=0,"No Break",Inputs!N7) -> No Break | N30: =IF(M30="No Break","No Break",M30+O30) -> No Break | O30: =IF(M30="No Break",0,Inputs!N8/60/24) -> 00:00:00 | Q30: =O31*24*$N$13 -> 0 | R30: =IF(AC30<$R$61*$N$12,1,0) -> 0 | T30: =M31 -> 23:00:00 | AB30: =IF(OR(M32="No Break",M32=0), T32,T31) -> 23:00:00 | AC30: =AC29-(AB30-T30)*24*$N$13 -> 20.63176512 | AF30: discharge | AG30: =AB26 -> 21:00:00 | AH30: =AC26 -> 21.90335302 | AI30: 0.559215508
C31: Used energy per day (Kg) | F31: =((F28*D5)/Calc2!C90) -> 5.900880881 | L31: discharge | M31: =IF(OR(M30="No Break",M30=0),N31,N30) -> 23:00:00 | N31: =IF(M32="No Break",M33,M32) -> 23:00:00 | O31: =IF(N31-M31<0,0,N31-M31) -> 00:00:00 | P31: =IF(N32="No Break",IF(P29=1,1,0),IF(Calc1!N32>Calc1!N33,1,"")) -> 0 | S31: =IF(M32="No break","",IF((AB31-T31)*24*$N$14+AC30<$T$13,1,"")) ->  | T31: =IF(M32="No Break",AB30,M32) -> 23:00:00 | U31: =IF(M32="No Break",T31,IF(AND(AC30<$T$13,S31=1),AB31,IF(AC30<$T$13,T31+($T$13-AC30)/$N$14/24,T31))) -> 23:00:00 | V31: =IF(M32="No Break",AC30,IF(AND(AC30<$T$13,S31=1),AC30+(U31-T31)*24*$N$14,IF(AC30<=$T$13,$T$13,AC30))) -> 20.63176512 | W31: =IF(M32="No Break","",IF((AB31-X31)*24*$T$14+V31>$N$12,1,"")) ->  | X31: =U31 -> 23:00:00 | Y31: =IF(M32="No Break",X31,IF(S31=1,X31,IF(W31=1,X31+($N$12-V31)/$T$14/24,AB31))) -> 23:00:00 | Z31: =IF(S31=1,V31,V31+(Y31-X31)*24*$T$14) -> 20.63176512 | AA31: =Y31 -> 23:00:00 | AB31: =IF(M32="No Break",AA31,M32+O32) -> 23:00:00 | AC31: =Z31 -> 20.63176512 | AG31: =U27 -> 21:14:44.161 | AH31: =V27 -> 31.3344 | AI31: 0.8
C32: Used energy per day (kWh) | D32: =($D$5*D28) -> 98.24966667 | E32: =($D$5*E28) -> 98.24966667 | F32: =($D$5*F28) -> 196.4993333 | L32: charge 7 | M32: =IF(Inputs!D11=0,"No Break",Inputs!D11) -> No Break | N32: =IF(M32="No Break","No Break",M32+O32) -> No Break | O32: =IF(M32="No Break",0,Inputs!D12/60/24) -> 00:00:00 | Q32: =O33*24*$N$13 -> 0 | R32: =IF(AC32<$R$61*$N$12,1,0) -> 0 | T32: =M33 -> 23:00:00 | AB32: =IF(OR(M34="No Break",M34=0), T34,T33) -> 23:00:00 | AC32: =AC31-(AB32-T32)*24*$N$13 -> 20.63176512 | AG32: =Y27 -> 21:20:00 | AH32: =Z27 -> 32.61343179 | AI32: 0.8326550192
L33: discharge | M33: =IF(OR(M32="No Break",M32=0),N33,N32) -> 23:00:00 | N33: =IF(M34="No Break",M35,M34) -> 23:00:00 | O33: =IF(N33-M33<0,0,N33-M33) -> 00:00:00 | P33: =IF(N34="No Break",IF(P31=1,1,0),IF(Calc1!N34>Calc1!N35,1,"")) -> 0 | S33: =IF(M34="No break","",IF((AB33-T33)*24*$N$14+AC32<$T$13,1,"")) ->  | T33: =IF(M34="No Break",AB32,M34) -> 23:00:00 | U33: =IF(M34="No Break",T33,IF(AND(AC32<$T$13,S33=1),AB33,IF(AC32<$T$13,T33+($T$13-AC32)/$N$14/24,T33))) -> 23:00:00 | V33: =IF(M34="No Break",AC32,IF(AND(AC32<$T$13,S33=1),AC32+(U33-T33)*24*$N$14,IF(AC32<=$T$13,$T$13,AC32))) -> 20.63176512 | W33: =IF(M34="No Break","",IF((AB33-X33)*24*$T$14+V33>$N$12,1,"")) ->  | X33: =U33 -> 23:00:00 | Y33: =IF(M34="No Break",X33,IF(S33=1,X33,IF(W33=1,X33+($N$12-V33)/$T$14/24,AB33))) -> 23:00:00 | Z33: =IF(S33=1,V33,V33+(Y33-X33)*24*$T$14) -> 20.63176512 | AA33: =Y33 -> 23:00:00 | AB33: =IF(M34="No Break",AA33,M34+O34) -> 23:00:00 | AC33: =Z33 -> 20.63176512 | AG33: =AB27 -> 21:20:00 | AH33: =AC27 -> 32.61343179 | AI33: 0.8326550192
C34: Mains Energy per day (kWh) | D34: =$D$32*D25 -> 165.9622748 | E34: =$D$32*E25 -> 114.9118908 | L34: charge 8 | M34: =IF(Inputs!F11=0,"No Break",Inputs!F11) -> No Break | N34: =IF(M34="No Break","No Break",M34+O34) -> No Break | O34: =IF(M34="No Break",0,Inputs!F12/60/24) -> 00:00:00 | Q34: =O35*24*$N$13 -> 0 | R34: =IF(AC34<$R$61*$N$12,1,0) -> 0 | T34: =M35 -> 23:00:00 | AB34: =IF(OR(M36="No Break",M36=0), T36,T35) -> 23:00:00 | AC34: =AC33-(AB34-T34)*24*$N$13 -> 20.63176512 | AF34: discharge | AG34: =AB28 -> 23:00:00 | AH34: =AC28 -> 20.63176512 | AI34: 0.5267505393
C35: Energy Cost Per day (€) | D35: =D34*Calc2!C17 -> 14.93660473 | E35: =E34*Calc2!C17 -> 10.34207018 | F35: =F31*Calc2!C14 -> 17.70264264 | G35: =G30*Calc2!C18 -> 42.03593333 | L35: discharge | M35: =IF(OR(M34="No Break",M34=0),N35,N34) -> 23:00:00 | N35: =IF(M36="No Break",M37,M36) -> 23:00:00 | O35: =IF(N35-M35<0,0,N35-M35) -> 00:00:00 | P35: =IF(N36="No Break",IF(P33=1,1,0),IF(Calc1!N36>Calc1!N37,1,"")) -> 0 | S35: =IF(M36="No break","",IF((AB35-T35)*24*$N$14+AC34<$T$13,1,"")) ->  | T35: =IF(M36="No Break",AB34,M36) -> 23:00:00 | U35: =IF(M36="No Break",T35,IF(AND(AC34<$T$13,S35=1),AB35,IF(AC34<$T$13,T35+($T$13-AC34)/$N$14/24,T35))) -> 23:00:00 | V35: =IF(M36="No Break",AC34,IF(AND(AC34<$T$13,S35=1),AC34+(U35-T35)*24*$N$14,IF(AC34<=$T$13,$T$13,AC34))) -> 20.63176512 | W35: =IF(M36="No Break","",IF((AB35-X35)*24*$T$14+V35>$N$12,1,"")) ->  | X35: =U35 -> 23:00:00 | Y35: =IF(M36="No Break",X35,IF(S35=1,X35,IF(W35=1,X35+($N$12-V35)/$T$14/24,AB35))) -> 23:00:00 | Z35: =IF(S35=1,V35,V35+(Y35-X35)*24*$T$14) -> 20.63176512 | AA35: =Y35 -> 23:00:00 | AB35: =IF(M36="No Break",AA35,M36+O36) -> 23:00:00 | AC35: =Z35 -> 20.63176512 | AG35: =U29 -> 23:00:00 | AH35: =V29 -> 20.63176512 | AI35: 0.5267505393
C36: Energy cost p.a./per truck | D36: =D35*Inputs!$F$20*Calc2!$C$6 -> 3584.785135 | E36: =E35*Inputs!$F$20*Calc2!$C$6 -> 2482.096842 | F36: =F35*Inputs!$F$20*Calc2!$C$6 -> 4248.634234 | G36: =G35*Inputs!$F$20*Calc2!$C$6 -> 10088.624 | L36: charge 9 | M36: =IF(Inputs!H11=0,"No Break",Inputs!H11) -> No Break | N36: =IF(M36="No Break","No Break",M36+O36) -> No Break | O36: =IF(M36="No Break",0,Inputs!H12/60/24) -> 00:00:00 | Q36: =O37*24*$N$13 -> 0 | R36: =IF(AC36<$R$61*$N$12,1,0) -> 0 | T36: =M37 -> 23:00:00 | AB36: =IF(OR(M38="No Break",M38=0), T38,T37) -> 23:00:00 | AC36: =AC35-(AB36-T36)*24*$N$13 -> 20.63176512 | AG36: =Y29 -> 23:00:00 | AH36: =Z29 -> 20.63176512 | AI36: 0.5267505393
L37: discharge | M37: =IF(OR(M36="No Break",M36=0),N37,N36) -> 23:00:00 | N37: =IF(M38="No Break",M39,M38) -> 23:00:00 | O37: =IF(N37-M37<0,0,N37-M37) -> 00:00:00 | P37: =IF(N38="No Break",IF(P35=1,1,0),IF(Calc1!N38>Calc1!N39,1,"")) -> 0 | S37: =IF(M38="No break","",IF((AB37-T37)*24*$N$14+AC36<$T$13,1,"")) ->  | T37: =IF(M38="No Break",AB36,M38) -> 23:00:00 | U37: =IF(M38="No Break",T37,IF(AND(AC36<$T$13,S37=1),AB37,IF(AC36<$T$13,T37+($T$13-AC36)/$N$14/24,T37))) -> 23:00:00 | V37: =IF(M38="No Break",AC36,IF(AND(AC36<$T$13,S37=1),AC36+(U37-T37)*24*$N$14,IF(AC36<=$T$13,$T$13,AC36))) -> 20.63176512 | W37: =IF(M38="No Break","",IF((AB37-X37)*24*$T$14+V37>$N$12,1,"")) ->  | X37: =U37 -> 23:00:00 | Y37: =IF(OR(M38="No Break",M38=0),X37,IF(S37=1,X37,IF(W37=1,X37+($N$12-V37)/$T$14/24,AB37))) -> 23:00:00 | Z37: =IF(S37=1,V37,V37+(Y37-X37)*24*$T$14) -> 20.63176512 | AA37: =Y37 -> 23:00:00 | AB37: =IF(M38="No Break",AA37,M38+O38) -> 23:00:00 | AC37: =Z37 -> 20.63176512 | AG37: =AB29 -> 23:00:00 | AH37: =AC29 -> 20.63176512 | AI37: 0.5267505393
C38: Total refueling Costs (€) year 1 (inc Battery degorgation) | D38: =D36 -> 3584.785135 | E38: =E36 -> 2482.096842 | F38: =F36 -> 4248.634234 | G38: =G36 -> 10088.624 | L38: charge 10 | M38: =IF(Inputs!J11=0,"No Break",Inputs!J11) -> No Break | N38: =IF(M38="No Break","No Break",M38+O38) -> No Break | O38: =IF(M38="No Break",0,Inputs!J12/60/24) -> 00:00:00 | Q38: =O39*24*$N$13 -> 0 | R38: =IF(AC38<$R$61*$N$12,1,0) -> 0 | T38: =M39 -> 23:00:00 | AB38: =IF(OR(M40="No Break",M40=0), T40,T39) -> 23:00:00 | AC38: =AC37-(AB38-T38)*24*$N$13 -> 20.63176512 | AF38: discharge | AG38: =AB30 -> 23:00:00 | AH38: =AC30 -> 20.63176512 | AI38: 0.5267505393
C39: Total refueling Costs (€) year2 (inc battery degrogation costs) | D39: =D38+D38*Calc2!$D$102 -> 3699.498259 | E39: =E38+E38*Calc2!$D$103 -> 2533.972666 | F39: =F38 -> 4248.634234 | G39: =G38 -> 10088.624 | L39: discharge | M39: =IF(OR(M38="No Break",M38=0),N39,N38) -> 23:00:00 | N39: =IF(M40="No Break",M41,M40) -> 23:00:00 | O39: =IF(N39-M39<0,0,N39-M39) -> 00:00:00 | P39: =IF(N40="No Break",IF(P37=1,1,0),IF(Calc1!N40>Calc1!N41,1,"")) -> 0 | S39: =IF(M40="No break","",IF((AB39-T39)*24*$N$14+AC38<$T$13,1,"")) ->  | T39: =IF(M40="No Break",AB38,M40) -> 23:00:00 | U39: =IF(M40="No Break",T39,IF(AND(AC38<$T$13,S39=1),AB39,IF(AC38<$T$13,T39+($T$13-AC38)/$N$14/24,T39))) -> 23:00:00 | V39: =IF(M40="No Break",AC38,IF(AND(AC38<$T$13,S39=1),AC38+(U39-T39)*24*$N$14,IF(AC38<=$T$13,$T$13,AC38))) -> 20.63176512 | W39: =IF(M40="No Break","",IF((AB39-X39)*24*$T$14+V39>$N$12,1,"")) ->  | X39: =U39 -> 23:00:00 | Y39: =IF(M40="No Break",X39,IF(S39=1,X39,IF(W39=1,X39+($N$12-V39)/$T$14/24,AB39))) -> 23:00:00 | Z39: =IF(S39=1,V39,V39+(Y39-X39)*24*$T$14) -> 20.63176512 | AA39: =Y39 -> 23:00:00 | AB39: =IF(M40="No Break",AA39,M40+O40) -> 23:00:00 | AC39: =Z39 -> 20.63176512 | AG39: =U31 -> 23:00:00 | AH39: =V31 -> 20.63176512 | AI39: 0.5267505393
C40: Total refueling Costs (€) year3 (inc battery degrogation costs) | D40: =D39+D39*Calc2!$D$102 -> 3817.882204 | E40: =E39+E39*Calc2!$D$103 -> 2586.932695 | F40: =F38 -> 4248.634234 | G40: =G39 -> 10088.624 | L40: charge 11 | M40: =IF(Inputs!L11=0,"No Break",Inputs!L11) -> No Break | N40: =IF(M40="No Break","No Break",M40+O40) -> No Break | O40: =IF(M40="No Break",0,Inputs!L12/60/24) -> 00:00:00 | Q40: =O41*24*$N$13 -> 0 | R40: =IF(AC40<$R$61*$N$12,1,0) -> 0 | T40: =M41 -> 23:00:00 | AB40: =IF(OR(M42="No Break",M42=0), T42,T41) -> 23:00:00 | AC40: =AC39-(AB40-T40)*24*$N$13 -> 20.63176512 | AG40: =Y31 -> 23:00:00 | AH40: =Z31 -> 20.63176512 | AI40: 0.5267505393
C41: Total refueling Costs (€) year4 (inc battery degrogation costs) | D41: =D40+D40*Calc2!$D$102 -> 3940.054434 | E41: =E40+E40*Calc2!$D$103 -> 2640.999588 | F41: =F39 -> 4248.634234 | G41: =G40 -> 10088.624 | L41: discharge | M41: =IF(OR(M40="No Break",M40=0),N41,N40) -> 23:00:00 | N41: =IF(M42="No Break",M43,M42) -> 23:00:00 | O41: =IF(N41-M41<0,0,N41-M41) -> 00:00:00 | P41: =IF(N42="No Break",IF(P39=1,1,0),IF(Calc1!N42>Calc1!N43,1,"")) -> 0 | S41: =IF(M42="No break","",IF((AB41-T41)*24*$N$14+AC40<$T$13,1,"")) ->  | T41: =IF(M42="No Break",AB40,M42) -> 23:00:00 | U41: =IF(M42="No Break",T41,IF(AND(AC40<$T$13,S41=1),AB41,IF(AC40<$T$13,T41+($T$13-AC40)/$N$14/24,T41))) -> 23:00:00 | V41: =IF(M42="No Break",AC40,IF(AND(AC40<$T$13,S41=1),AC40+(U41-T41)*24*$N$14,IF(AC40<=$T$13,$T$13,AC40))) -> 20.63176512 | W41: =IF(M42="No Break","",IF((AB41-X41)*24*$T$14+V41>$N$12,1,"")) ->  | X41: =U41 -> 23:00:00 | Y41: =IF(M42="No Break",X41,IF(S41=1,X41,IF(W41=1,X41+($N$12-V41)/$T$14/24,AB41))) -> 23:00:00 | Z41: =IF(S41=1,V41,V41+(Y41-X41)*24*$T$14) -> 20.63176512 | AA41: =Y41 -> 23:00:00 | AB41: =IF(M42="No Break",AA41,M42+O42) -> 23:00:00 | AC41: =Z41 -> 20.63176512 | AG41: =AB31 -> 23:00:00 | AH41: =AC31 -> 20.63176512 | AI41: 0.5267505393
C42: Total refueling Costs (€) year5 (inc battery degrogation costs) | D42: =D41+D41*Calc2!$D$102 -> 4066.136176 | E42: =E41+E41*Calc2!$D$103 -> 2696.19648 | F42: =F40 -> 4248.634234 | G42: =G41 -> 10088.624 | L42: charge 12 | M42: =IF(Inputs!N11=0,"No Break",Inputs!N11) -> No Break | N42: =IF(M42="No Break","No Break",M42+O42) -> No Break | O42: =IF(M42="No Break",0,Inputs!N12/60/24) -> 00:00:00 | Q42: =O43*24*$N$13 -> 0 | R42: =IF(AC42<$R$61*$N$12,1,0) -> 0 | T42: =M43 -> 23:00:00 | AB42: =IF(OR(M44="No Break",M44=0), T44,T43) -> 23:00:00 | AC42: =AC41-(AB42-T42)*24*$N$13 -> 20.63176512 | AF42: discharge | AG42: =AB32 -> 23:00:00 | AH42: =AC32 -> 20.63176512 | AI42: 0.5267505393
C43: average | D43: =AVERAGE(D38:D42) -> 3821.671242 | E43: =AVERAGE(E38:E42) -> 2588.039654 | F43: =AVERAGE(F38:F42) -> 4248.634234 | G43: =AVERAGE(G38:G42) -> 10088.624 | L43: discharge | M43: =IF(OR(M42="No Break",M42=0),N43,N42) -> 23:00:00 | N43: =IF(M44="No Break",M46,M44) -> 23:00:00 | O43: =IF(N43-M43<0,0,N43-M43) -> 00:00:00 | P43: =IF(N44="No Break",IF(P41=1,1,0),IF(Calc1!N44>Calc1!N46,1,"")) -> 0 | S43: =IF(M44="No break","",IF((AB43-T43)*24*$N$14+AC42<$T$13,1,"")) ->  | T43: =IF(M44="No Break",AB42,M44) -> 23:00:00 | U43: =IF(M44="No Break",T43,IF(AND(AC42<$T$13,S43=1),AB43,IF(AC42<$T$13,T43+($T$13-AC42)/$N$14/24,T43))) -> 23:00:00 | V43: =IF(M44="No Break",AC42,IF(AND(AC42<$T$13,S43=1),AC42+(U43-T43)*24*$N$14,IF(AC42<=$T$13,$T$13,AC42))) -> 20.63176512 | W43: =IF(M44="No Break","",IF((AB43-X43)*24*$T$14+V43>$N$12,1,"")) ->  | X43: =U43 -> 23:00:00 | Y43: =IF(M44="No Break",X43,IF(S43=1,X43,IF(W43=1,X43+($N$12-V43)/$T$14/24,AB43))) -> 23:00:00 | Z43: =IF(S43=1,V43,V43+(Y43-X43)*24*$T$14) -> 20.63176512 | AA43: =Y43 -> 23:00:00 | AB43: =IF(M44="No Break",AA43,M44+O44) -> 23:00:00 | AC43: =Z43 -> 20.63176512 | AG43: =U33 -> 23:00:00 | AH43: =V33 -> 20.63176512 | AI43: 0.5267505393
L44: charge 13 | M44: =IF(Inputs!D15=0,"No Break",Inputs!D15) -> No Break | N44: =IF(M44="No Break","No Break",M44+O44) -> No Break | O44: =IF(M44="No Break",0,Inputs!D16/60/24) -> 00:00:00 | Q44: =O46*24*$N$13 -> 0 | R44: =IF(AC44<$R$61*$N$12,1,0) -> 0 | T44: =M46 -> 23:00:00 | AB44: =IF(OR(M47="No Break",M47=0), T47,T46) -> 23:00:00 | AC44: =AC43-(AB44-T44)*24*$N$13 -> 20.63176512 | AG44: =Y33 -> 23:00:00 | AH44: =Z33 -> 20.63176512 | AI44: 0.5267505393
AG45: =AB33 -> 23:00:00 | AH45: =AC33 -> 20.63176512 | AI45: =AH45/$N$12 -> 0.5267505393
L46: discharge | M46: =IF(OR(M44="No Break",M44=0),N46,N44) -> 23:00:00 | N46: =IF(M47="No Break",M48,M47) -> 23:00:00 | O46: =IF(N46-M46<0,0,N46-M46) -> 00:00:00 | P46: =IF(N47="No Break",IF(P43=1,1,0),IF(Calc1!N47>Calc1!N48,1,"")) -> 0 | S46: =IF(M47="No break","",IF((AB46-T46)*24*$N$14+AC44<$T$13,1,"")) ->  | T46: =IF(M47="No Break",AB44,M47) -> 23:00:00 | U46: =IF(M47="No Break",T46,IF(AND(AC44<$T$13,S46=1),AB46,IF(AC44<$T$13,T46+($T$13-AC44)/$N$14/24,T46))) -> 23:00:00 | V46: =IF(M47="No Break",AC44,IF(AND(AC44<$T$13,S46=1),AC44+(U46-T46)*24*$N$14,IF(AC44<=$T$13,$T$13,AC44))) -> 20.63176512 | W46: =IF(M47="No Break","",IF((AB46-X46)*24*$T$14+V46>$N$12,1,"")) ->  | X46: =U46 -> 23:00:00 | Y46: =IF(M47="No Break",X46,IF(S46=1,X46,IF(W46=1,X46+($N$12-V46)/$T$14/24,AB46))) -> 23:00:00 | Z46: =IF(S46=1,V46,V46+(Y46-X46)*24*$T$14) -> 20.63176512 | AA46: =Y46 -> 23:00:00 | AB46: =IF(M47="No Break",AA46,M47+O47) -> 23:00:00 | AC46: =Z46 -> 20.63176512 | AF46: discharge | AG46: =AB34 -> 23:00:00 | AH46: =AC34 -> 20.63176512 | AI46: 0.5267505393
L47: charge 14 | M47: =IF(Inputs!F15=0,"No Break",Inputs!F15) -> No Break | N47: =IF(M47="No Break","No Break",M47+O47) -> No Break | O47: =IF(M47="No Break",0,Inputs!F16/60/24) -> 00:00:00 | Q47: =O48*24*$N$13 -> 0 | R47: =IF(AC47<$R$61*$N$12,1,0) -> 0 | T47: =M48 -> 23:00:00 | AB47: =IF(OR(M49="No Break",M49=0), T49,T48) -> 23:00:00 | AC47: =AC46-(AB47-T47)*24*$N$13 -> 20.63176512 | AG47: =U35 -> 23:00:00 | AH47: =V35 -> 20.63176512 | AI47: 0.5267505393
L48: discharge | M48: =IF(OR(M47="No Break",M47=0),N48,N47) -> 23:00:00 | N48: =IF(M49="No Break",M50,M49) -> 23:00:00 | O48: =IF(N48-M48<0,0,N48-M48) -> 00:00:00 | P48: =IF(N49="No Break",IF(P46=1,1,0),IF(Calc1!N49>Calc1!N50,1,"")) -> 0 | S48: =IF(M49="No break","",IF((AB48-T48)*24*$N$14+AC47<$T$13,1,"")) ->  | T48: =IF(M49="No Break",AB47,M49) -> 23:00:00 | U48: =IF(M49="No Break",T48,IF(AND(AC47<$T$13,S48=1),AB48,IF(AC47<$T$13,T48+($T$13-AC47)/$N$14/24,T48))) -> 23:00:00 | V48: =IF(M49="No Break",AC47,IF(AND(AC47<$T$13,S48=1),AC47+(U48-T48)*24*$N$14,IF(AC47<=$T$13,$T$13,AC47))) -> 20.63176512 | W48: =IF(M49="No Break","",IF((AB48-X48)*24*$T$14+V48>$N$12,1,"")) ->  | X48: =U48 -> 23:00:00 | Y48: =IF(M49="No Break",X48,IF(S48=1,X48,IF(W48=1,X48+($N$12-V48)/$T$14/24,AB48))) -> 23:00:00 | Z48: =IF(S48=1,V48,V48+(Y48-X48)*24*$T$14) -> 20.63176512 | AA48: =Y48 -> 23:00:00 | AB48: =IF(M49="No Break",AA48,M49+O49) -> 23:00:00 | AC48: =Z48 -> 20.63176512 | AG48: =Y35 -> 23:00:00 | AH48: =Z35 -> 20.63176512 | AI48: 0.5267505393
C49: Refueling Time / Batteries needed / Truck | L49: charge 15 | M49: =IF(Inputs!H15=0,"No Break",Inputs!H15) -> No Break | N49: =IF(M49="No Break","No Break",M49+O49) -> No Break | O49: =IF(M49="No Break",0,Inputs!H16/60/24) -> 00:00:00 | Q49: =O50*24*$N$13 -> 0 | R49: =IF(AC49<$R$61*$N$12,1,0) -> 0 | T49: =M50 -> 23:00:00 | AB49: =IF(OR(M51="No Break",M51=0), T51,T50) -> 23:00:00 | AC49: =AC48-(AB49-T49)*24*$N$13 -> 20.63176512 | AG49: =AB35 -> 23:00:00 | AH49: =AC35 -> 20.63176512 | AI49: 0.5267505393
C50: batteries per day per truck (fraction) / refueling per day | D50: =D5*D28/D23 -> 1.993702652 | E50: =COUNT(M19,M22,M24,M26,M28,M30,M32,M34,M36,M38,M40,M42)+1 -> 6 | F50: =D5*F28/F23 -> 4.140969039 | G50: =G30/G23 -> 0.6218333333 | L50: discharge | M50: =IF(OR(M49="No Break",M49=0),N50,N49) -> 23:00:00 | N50: =IF(M51="No Break",M52,M51) -> 23:00:00 | O50: =IF(N50-M50<0,0,N50-M50) -> 00:00:00 | P50: =IF(N51="No Break",IF(P48=1,1,0),IF(Calc1!N51>Calc1!N52,1,"")) -> 0 | S50: =IF(M51="No break","",IF((AB50-T50)*24*$N$14+AC49<$T$13,1,"")) ->  | T50: =IF(M51="No Break",AB49,M51) -> 23:00:00 | U50: =IF(M51="No Break",T50,IF(AND(AC49<$T$13,S50=1),AB50,IF(AC49<$T$13,T50+($T$13-AC49)/$N$14/24,T50))) -> 23:00:00 | V50: =IF(M51="No Break",AC49,IF(AND(AC49<$T$13,S50=1),AC49+(U50-T50)*24*$N$14,IF(AC49<=$T$13,$T$13,AC49))) -> 20.63176512 | W50: =IF(M51="No Break","",IF((AB50-X50)*24*$T$14+V50>$N$12,1,"")) ->  | X50: =U50 -> 23:00:00 | Y50: =IF(M51="No Break",X50,IF(S50=1,X50,IF(W50=1,X50+($N$12-V50)/$T$14/24,AB50))) -> 23:00:00 | Z50: =IF(S50=1,V50,V50+(Y50-X50)*24*$T$14) -> 20.63176512 | AA50: =Y50 -> 23:00:00 | AB50: =IF(M51="No Break",AA50,M51+O51) -> 23:00:00 | AC50: =Z50 -> 20.63176512 | AF50: discharge | AG50: =AB36 -> 23:00:00 | AH50: =AC36 -> 20.63176512 | AI50: 0.5267505393
C51: Batteries per truck (integer) | D51: =IF((AND(ROUNDUP(D50,0)=1,(D5+D6)>16)), ROUNDUP(D50,0)+1, ROUNDUP(D50,0)) -> 2 | L51: charge 16 | M51: =IF(Inputs!J15=0,"No Break",Inputs!J15) -> No Break | N51: =IF(M51="No Break","No Break",M51+O51) -> No Break | O51: =IF(M51="No Break",0,Inputs!J16/60/24) -> 00:00:00 | Q51: =O52*24*$N$13 -> 0 | R51: =IF(AC51<$R$61*$N$12,1,0) -> 0 | T51: =M52 -> 23:00:00 | AB51: =IF(OR(M53="No Break",M53=0), T53,T52) -> 23:00:00 | AC51: =AC50-(AB51-T51)*24*$N$13 -> 20.63176512 | AG51: =U37 -> 23:00:00 | AH51: =V37 -> 20.63176512 | AI51: 0.5267505393
C52: Fuel / Energy consumption (annual)(kwh,L or KG) | D52: =D34*Inputs!F20*Calc2!C6 -> 39830.94595 | E52: =E34*Inputs!F20*Calc2!C6 -> 27578.8538 | F52: =F31*Inputs!F20*Calc2!C6 -> 1416.211411 | G52: =G30*Inputs!F20*Calc2!C6 -> 7760.48 | L52: discharge | M52: =IF(OR(M51="No Break",M51=0),N52,N51) -> 23:00:00 | N52: =IF(M53="No Break",M54,M53) -> 23:00:00 | O52: =IF(N52-M52<0,0,N52-M52) -> 00:00:00 | P52: =IF(N53="No Break",IF(P50=1,1,0),IF(Calc1!N53>Calc1!N54,1,"")) -> 0 | S52: =IF(M53="No break","",IF((AB52-T52)*24*$N$14+AC51<$T$13,1,"")) ->  | T52: =IF(M53="No Break",AB51,M53) -> 23:00:00 | U52: =IF(M53="No Break",T52,IF(AND(AC51<$T$13,S52=1),AB52,IF(AC51<$T$13,T52+($T$13-AC51)/$N$14/24,T52))) -> 23:00:00 | V52: =IF(M53="No Break",AC51,IF(AND(AC51<$T$13,S52=1),AC51+(U52-T52)*24*$N$14,IF(AC51<=$T$13,$T$13,AC51))) -> 20.63176512 | W52: =IF(M53="No Break","",IF((AB52-X52)*24*$T$14+V52>$N$12,1,"")) ->  | X52: =U52 -> 23:00:00 | Y52: =IF(M53="No Break",X52,IF(S52=1,X52,IF(W52=1,X52+($N$12-V52)/$T$14/24,AB52))) -> 23:00:00 | Z52: =IF(S52=1,V52,V52+(Y52-X52)*24*$T$14) -> 20.63176512 | AA52: =Y52 -> 23:00:00 | AB52: =IF(M53="No Break",AA52,M53+O53) -> 23:00:00 | AC52: =Z52 -> 20.63176512 | AG52: =Y37 -> 23:00:00 | AH52: =Z37 -> 20.63176512 | AI52: 0.5267505393
L53: charge 17 | M53: =IF(Inputs!L15=0,"No Break",Inputs!L15) -> No Break | N53: =IF(M53="No Break","No Break",M53+O53) -> No Break | O53: =IF(M53="No Break",0,Inputs!L16/60/24) -> 00:00:00 | Q53: =O54*24*$N$13 -> 0 | R53: =IF(AC53<$R$61*$N$12,1,0) -> 0 | T53: =M54 -> 23:00:00 | AB53: =IF(OR(M55="No Break",M55=0), T55,T54) -> 23:00:00 | AC53: =AC52-(AB53-T53)*24*$N$13 -> 20.63176512 | AG53: =AB37 -> 23:00:00 | AH53: =AC37 -> 20.63176512 | AI53: 0.5267505393
C54: Annual Battery change / Refueling time (hours)/truck | D54: =IF(D50>1,Inputs!F20*Calc2!C6*Inputs!F70/60*D50,Calc2!C6*Inputs!F20/60*Calc2!C29) -> 119.6221591 | E54: =E50*Inputs!F20*Calc2!C6*Calc2!C82/60 -> 24 | F54: =F50*Inputs!F98/60*Inputs!$F$20*Calc2!$C$6 -> 49.69162847 | G54: =G50*Inputs!F44/60*Inputs!$F$20*Calc2!$C$6 -> 49.74666667 | L54: discharge | M54: =IF(OR(M53="No Break",M53=0),N54,N53) -> 23:00:00 | N54: =IF(M55="No Break",M56,M55) -> 23:00:00 | O54: =IF(N54-M54<0,0,N54-M54) -> 00:00:00 | P54: =IF(N55="No Break",IF(P52=1,1,0),IF(Calc1!N55>Calc1!N56,1,"")) -> 0 | S54: =IF(M55="No break","",IF((AB54-T54)*24*$N$14+AC53<$T$13,1,"")) ->  | T54: =IF(M55="No Break",AB53,M55) -> 23:00:00 | U54: =IF(M55="No Break",T54,IF(AND(AC53<$T$13,S54=1),AB54,IF(AC53<$T$13,T54+($T$13-AC53)/$N$14/24,T54))) -> 23:00:00 | V54: =IF(M55="No Break",AC53,IF(AND(AC53<$T$13,S54=1),AC53+(U54-T54)*24*$N$14,IF(AC53<=$T$13,$T$13,AC53))) -> 20.63176512 | W54: =IF(M55="No Break","",IF((AB54-X54)*24*$T$14+V54>$N$12,1,"")) ->  | X54: =U54 -> 23:00:00 | Y54: =IF(M55="No Break",X54,IF(S54=1,X54,IF(W54=1,X54+($N$12-V54)/$T$14/24,AB54))) -> 23:00:00 | Z54: =IF(S54=1,V54,V54+(Y54-X54)*24*$T$14) -> 20.63176512 | AA54: =Y54 -> 23:00:00 | AB54: =IF(M55="No Break",AA54,M55+O55) -> 23:00:00 | AC54: =Z54 -> 20.63176512 | AF54: discharge | AG54: =AB38 -> 23:00:00 | AH54: =AC38 -> 20.63176512 | AI54: 0.5267505393
C55: Annual Refueling cost (€) | D55: =D54*Calc2!$C$21 -> 3588.664773 | E55: =E54*Calc2!$C$21 -> 720 | F55: =F54*Calc2!$C$21 -> 1490.748854 | G55: =G54*Calc2!$C$21 -> 1492.4 | L55: charge 18 | M55: =IF(Inputs!N15=0,"No Break",Inputs!N15) -> No Break | N55: =IF(M55="No Break","No Break",M55+O55) -> No Break | O55: =IF(M55="No Break",0,Inputs!N16/60/24) -> 00:00:00 | Q55: =O56*24*$N$13 -> 0 | R55: =IF(AC55<$R$61*$N$12,1,0) -> 0 | T55: =M56 -> 23:00:00 | AB55: =Inputs!F18 -> 23:00:00 | AC55: =AC54-(AB55-T55)*24*$N$13 -> 20.63176512 | AG55: =U39 -> 23:00:00 | AH55: =V39 -> 20.63176512 | AI55: 0.5267505393
L56: discharge | M56: =IF(OR(M55="No Break",M55=0),N56,N55) -> 23:00:00 | N56: =Inputs!F18 -> 23:00:00 | O56: =IF(N56-M56<0,0,N56-M56) -> 00:00:00 | S56: =IF(M57="No break","",IF((AB56-T56)*24*$N$14+AC55<$T$13,1,"")) ->  | T56: =AB55 -> 23:00:00 | U56: =IF(M57="No Break",T56,IF(AND(AC42<$T$13,S56=1),AB56,IF(AC42<$T$13,T56+($T$13-AC42)/$N$14/24,T56))) -> 23:16:43.372 | V56: =IF(M57="No Break",AC42,IF(AND(AC42<$T$13,S56=1),AC42+(U56-T56)*24*$N$14,IF(AC42<=$T$13,$T$13,AC42))) -> 31.3344 | W56: =IF(M57="No Break","",IF((AB56-X56)*24*$T$14+V56>$N$12,1,"")) -> 1 | X56: =U56 -> 23:16:43.372 | Y56: =IF(M57="No Break",X56,IF(S56=1,X56,IF(W56=1,X56+($N$12-V56)/$T$14/24,AB56))) -> 23:48:57.772 | Z56: =IF(S56=1,V56,V56+(Y56-X56)*24*$T$14) -> 39.168 | AA56: =Y56 -> 23:48:57.772 | AB56: =M18+1 -> 1.291666667 | AC56: =Z56 -> 39.168 | AG56: =Y39 -> 23:00:00 | AH56: =Z39 -> 20.63176512 | AI56: 0.5267505393
L57: charge | M57: =N56 -> 23:00:00 | N57: =M18+1 -> 1.291666667 | O57: =N57-M57 -> 08:00:00 | P57: =IF(SUM(P18:P56)>0,1,"") ->  | AG57: =AB39 -> 23:00:00 | AH57: =AC39 -> 20.63176512 | AI57: 0.5267505393
O58: End time before end? | Q58: minSOC exceeded? | R58: =IF(SUM(R18:R56)>0,"EXCEEDED","no") -> no | AF58: discharge | AG58: =AB40 -> 23:00:00 | AH58: =AC40 -> 20.63176512 | AI58: 0.5267505393
N59: Operating hours per day | O59: =SUM(O18+O21+O23+O25+O27+O29+O31+O33+O35+O37+O39+O41+O43+O46+O48+O50+O52+O54+O56) -> 13:40:00 | Q59: Min SOC achieved | R59: =MIN(AC17:AC56)/N$12 -> 0.1567807454 | AG59: =U41 -> 23:00:00 | AH59: =V41 -> 20.63176512 | AI59: 0.5267505393
N60: Break hours per day | O60: =O19+O22+O24+O26+O28+O30+O32+O34+O36+O38+O40+O42+O57+O44+O47+O49+O51+O53+O55 -> 10:20:00 | AG60: =Y41 -> 23:00:00 | AH60: =Z41 -> 20.63176512 | AI60: 0.5267505393
Q61: Min SOD allowed | R61: =Calc2!C75/100 -> 0.04 | AG61: =AB41 -> 23:00:00 | AH61: =AC41 -> 20.63176512 | AI61: 0.5267505393
N62: True break hours /day | O62: =O19+IF(M22="No Break",0,O22)+IF(M24="No Break",0,O24)+IF(M26="No Break",0,O26)+IF(M28="No Break",0,O28)+IF(M30="No Break",0,O30)+IF(M32="No Break",0,O32)+IF(M34="No Break",0,O34)+IF(M36="No Break",0,O36)+IF(M38="No Break",0,O38)+IF(M40="No Break",0,O40)+IF(M42="No Break",0,O42)+IF(M44="No Break",0,O44)+IF(M47="No Break",0,O47)+IF(M49="No Break",0,O49)+IF(M51="No Break",0,O51)+IF(M53="No Break",0,O53)+IF(M55="No Break",0,O55) -> 02:20:00 | AF62: discharge | AG62: =AB42 -> 23:00:00 | AH62: =AC42 -> 20.63176512 | AI62: =AH62/$N$12 -> 0.5267505393
AG63: =U43 -> 23:00:00 | AH63: =V43 -> 20.63176512 | AI63: 0.5267505393
AG64: =Y43 -> 23:00:00 | AH64: =Z43 -> 20.63176512 | AI64: 0.5267505393
AG65: =AB43 -> 23:00:00 | AH65: =AC43 -> 20.63176512 | AI65: 0.5267505393
AF66: discharge | AG66: =AB44 -> 23:00:00 | AH66: =AC44 -> 20.63176512 | AI66: =AH66/$N$12 -> 0.5267505393
C67: Battery / Power Cells maintenance & service / truck | AG67: =U46 -> 23:00:00 | AH67: =V46 -> 20.63176512 | AI67: 0.5267505393
F68: =Calc2!C93 -> 500 | AG68: =Y46 -> 23:00:00 | AH68: =Z46 -> 20.63176512 | AI68: 0.5267505393
C69: Annual Battery inspection | D69: =Calc2!C105*D51 -> 200 | E69: =Calc2!C109 -> 50 | F69: =Calc2!C94 -> 350 | AG69: =AB46 -> 23:00:00 | AH69: =AC46 -> 20.63176512 | AI69: 0.5267505393
C70: Water top up | D70: =Calc2!C106 -> 50 | AF70: discharge | AG70: =AB47 -> 23:00:00 | AH70: =AC47 -> 20.63176512 | AI70: 0.5267505393
C71: annual infrastructure fees (€) | F71: =Inputs!F102 -> 0 | G71: =Inputs!F50 -> 0 | AG71: =U48 -> 23:00:00 | AH71: =V48 -> 20.63176512 | AI71: 0.5267505393
C72: Total service Costs (€) | D72: =SUM(D68:D71) -> 250 | E72: =SUM(E68:E71) -> 50 | F72: =SUM(F68:F71) -> 850 | G72: =SUM(G68:G71) -> 0 | AG72: =Y48 -> 23:00:00 | AH72: =Z48 -> 20.63176512 | AI72: 0.5267505393
AF73: discharge | AG73: =AB49 -> 23:00:00 | AH73: =AC49 -> 20.63176512 | AI73: 0.5267505393
C74: Initial Investment / fleet | AG74: =U50 -> 23:00:00 | AH74: =V50 -> 20.63176512 | AI74: 0.5267505393
C75: Truck/s | D75: =(IF(Inputs!F79="no", (Inputs!F59*Inputs!F27), (Inputs!F59*Inputs!F27)/Performance!B12)) -> 337000 | E75: =IF(Inputs!F92="no", (Inputs!F59*Inputs!F27), (Inputs!F59*Inputs!F27)/Performance!B12) -> 337000 | F75: =IF(Inputs!F104="no", (Inputs!F59*Inputs!F27), (Inputs!F59*Inputs!F27)/Performance!B12) -> 337000 | G75: =IF(Inputs!F52="no", (Inputs!F47*Inputs!F27), (Inputs!F47*Inputs!F27)/Performance!B12) -> 360000 | AG75: =Y50 -> 23:00:00 | AH75: =Z50 -> 20.63176512 | AI75: 0.5267505393
C76: Batteries / Power Cells | D76: =(Inputs!F72*D51*Inputs!F27) -> 140000 | E76: =(Inputs!F87*Inputs!F27) -> 200000 | F76: =(Inputs!F100*Inputs!F27) -> 200000 | AG76: =AB50 -> 23:00:00 | AH76: =AC50 -> 20.63176512 | AI76: 0.5267505393
C77: Infrastructure / Installation | D77: =Inputs!F75 -> 0 | E77: =Inputs!F90 -> 0 | F77: =Inputs!F101 -> 50000 | G77: =Inputs!F49 -> 0 | AF77: discharge | AG77: =AB51 -> 23:00:00 | AH77: =AC51 -> 20.63176512 | AI77: 0.5267505393
C78: Charger | D78: =(Inputs!F73*Inputs!F27)*Inputs!F74 -> 12000 | E78: =(Inputs!F88*Inputs!F27)*Inputs!F89 -> 37500 | AG78: =U52 -> 23:00:00 | AH78: =V52 -> 20.63176512 | AI78: 0.5267505393
C79: Charge room | D79: =IF(Inputs!F78=Calc2!E72,Calc2!$C$118,0)*Inputs!F27 -> 0 | AG79: =Y52 -> 23:00:00 | AH79: =Z52 -> 20.63176512 | AI79: 0.5267505393
C80: Total initial investment | D80: =SUM(D75:D79) -> 489000 | E80: =SUM(E75:E79) -> 574500 | F80: =SUM(F75:F79) -> 587000 | G80: =SUM(G75:G79) -> 360000 | AG80: =AB52 -> 23:00:00 | AH80: =AC52 -> 20.63176512 | AI80: 0.5267505393
AF81: discharge | AG81: =AB53 -> 23:00:00 | AH81: =AC53 -> 20.63176512 | AI81: 0.5267505393
C82: Operational costs (annual) / truck | AG82: =U54 -> 23:00:00 | AH82: =V54 -> 20.63176512 | AI82: 0.5267505393
C83: Energy consumption | D83: =D43 -> 3821.671242 | E83: =E43 -> 2588.039654 | F83: =F43 -> 4248.634234 | G83: =G43 -> 10088.624 | AG83: =Y54 -> 23:00:00 | AH83: =Z54 -> 20.63176512 | AI83: 0.5267505393
AG84: =AB54 -> 23:00:00 | AH84: =AC54 -> 20.63176512 | AI84: 0.5267505393
C85: Driver Refueling costs | D85: =D55 -> 3588.664773 | E85: =E55 -> 720 | F85: =F55 -> 1490.748854 | G85: =G55 -> 1492.4 | AF85: discharge | AG85: =AB55 -> 23:00:00 | AH85: =AC55 -> 20.63176512 | AI85: 0.5267505393
C86: Lost productivity | D86: =IF(Inputs!F79="no", (Inputs!F20*Inputs!F29*Calc2!C6*D5) - ( Inputs!F20*Inputs!F29*Calc2!C6*D5/Performance!B12),0) -> 0 | E86: =IF(Inputs!F92="no", (Inputs!F20*Inputs!F29*Calc2!C6*D5) - ( Inputs!F20*Inputs!F29*Calc2!C6*D5/Performance!B12),0) -> 0 | F86: =IF(Inputs!F104="no", (Inputs!F20*Inputs!F29*Calc2!C6*D5) - ( Inputs!F20*Inputs!F29*Calc2!C6*D5/Performance!B12),0) -> 0 | G86: =IF(Inputs!F52="no", (Inputs!F20*Inputs!F29*Calc2!C6*D5) - ( Inputs!F20*Inputs!F29*Calc2!C6*D5/Performance!B12),0) -> 0 | AG86: =U56 -> 23:16:43.372 | AH86: =V56 -> 31.3344 | AI86: 0.8
C87: Truck & Batt service & Maintenance fee per year | D87: =12*Inputs!F60+(12*Calc2!C107)+D72 -> 2050 | E87: =12*Inputs!F60+E72 -> 1850 | F87: =12*Inputs!F60+F72 -> 2650 | G87: =12*Inputs!F48+G72+(Calc2!C26/Calc2!D26*Inputs!F21) -> 3397.5 | AG87: =Y56 -> 23:48:57.772 | AH87: =Z56 -> 39.168 | AI87: 1
AG88: =AB55 -> 23:00:00 | AH88: =AC56 -> 39.168 | AI88: =AH88/N12 -> 1
C89: Total | D89: =SUM(D83:D88) -> 9460.336014 | E89: =SUM(E83:E88) -> 5158.039654 | F89: =SUM(F83:F88) -> 8389.383088 | G89: =SUM(G83:G88) -> 14978.524
C91: Carbon Emissions (kg of CO2) / truck/year
C92: Carbon Emissions at source (used for chargers or H2) | D92: =D34*Calc2!$C$6*Inputs!F20*Calc2!$C$28 -> 21520.97874 | E92: =E34*Calc2!$C$6*Inputs!F20*Calc2!$C$28 -> 14901.07534 | F92: =F31*Calc2!$C$6*Inputs!F20*Calc2!C92 -> 53532.79135 | G92: =IF(Inputs!F39="diesel",G52*Calc2!C43,IF(Inputs!F39="lpg",G52*Calc2!C60,0)) -> 6078.980333
C93: Truck emissions Kg/Co2/truck | D93: 0 | E93: 0 | F93: 0 | G93: =IF(Inputs!F39="diesel",G52*Calc2!C35,IF(Inputs!F39="lpg",G52*Calc2!C51,0)) -> 20480.68277
C94: Total KgCO2/Truck | D94: =SUM(D92:D93) -> 21520.97874 | E94: =SUM(E92:E93) -> 14901.07534 | F94: =SUM(F92:F93) -> 53532.79135 | G94: =SUM(G92:G93) -> 26559.6631
C97: Depreciation/fleet/year
C98: Truck Value / fleet/year | D98: =D75 -> 337000 | E98: =E75 -> 337000 | F98: =F75 -> 337000 | G98: =G75 -> 360000 | J98: If this cell is Red - minimum SOC of the Li battery has been breached during the shift cycle
C99: 1 | D99: =D98*(1-Calc2!D97) -> 255412.3 | E99: =E98*(1-Calc2!D97) -> 255412.3 | F99: =F98*(1-Calc2!D97) -> 255412.3 | G99: =G98*(1-Calc2!D96) -> 282960
C100: 2 | D100: =D99*(1-Calc2!D97) -> 193576.9822 | E100: =E99*(1-Calc2!D97) -> 193576.9822 | F100: =F99*(1-Calc2!D97) -> 193576.9822 | G100: =G99*(1-Calc2!D96) -> 222406.56
C101: 3 | D101: =D100*(1-Calc2!D97) -> 146711.9948 | E101: =E100*(1-Calc2!D97) -> 146711.9948 | F101: =F100*(1-Calc2!D97) -> 146711.9948 | G101: =G100*(1-Calc2!D96) -> 174811.5562
C102: 4 | D102: =D101*(1-Calc2!D97) -> 111193.0208 | E102: =E101*(1-Calc2!D97) -> 111193.0208 | F102: =F101*(1-Calc2!D97) -> 111193.0208 | G102: =G101*(1-Calc2!D96) -> 137401.8831
C103: 5 | D103: =D102*(1-Calc2!D97) -> 84273.1905 | E103: =E102*(1-Calc2!D97) -> 84273.1905 | F103: =F102*(1-Calc2!D97) -> 84273.1905 | G103: =G102*(1-Calc2!D96) -> 107997.8801
C105: Power source Value / fleet /year | D105: =D76+D78 -> 152000 | E105: =E76+E78 -> 237500 | F105: =F76+F78 -> 200000 | G105: =G76+G78 -> 0
C106: 1 | D106: =D105*(1-Calc2!D98) -> 104120 | E106: =E105*(1-Calc2!D99) -> 186675 | F106: =F105*(1-Calc2!D100) -> 157200
C107: 2 | D107: =D106*(1-Calc2!D98) -> 71322.2 | E107: =E106*(1-Calc2!D99) -> 146726.55 | F107: =F106*(1-Calc2!D100) -> 123559.2
C108: 3 | D108: =D107*(1-Calc2!D98) -> 48855.707 | E108: =E107*(1-Calc2!D99) -> 115327.0683 | F108: =F107*(1-Calc2!D100) -> 97117.5312
C109: 4 | D109: =D108*(1-Calc2!D98) -> 33466.1593 | E109: =E108*(1-Calc2!D99) -> 90647.07568 | F109: =F108*(1-Calc2!D100) -> 76334.37952
C110: 5 | D110: =D109*(1-Calc2!D98) -> 22924.31912 | E110: =E109*(1-Calc2!D99) -> 71248.60149 | F110: =F109*(1-Calc2!D100) -> 59998.82231
C112: Total Depreciation / Fleet / year Truck and Power source
C113: 1 | D113: =(D98-D99)+(D105-D106) -> 129467.7 | E113: =(E98-E99)+(E105-E106) -> 132412.7 | F113: =(F98-F99)+(F105-F106) -> 124387.7 | G113: =(G98-G99)+(G105-G106) -> 77040
C114: 2 | D114: =(D99-D100)+(D106-D107)+D113 -> 224100.8178 | E114: 234196.4678 | F114: 219863.8178 | G114: 137593.44
C115: 3 | D115: 293432.2982 | E115: 312460.9369 | F115: 293170.474 | G115: 185188.4438
C116: 4 | D116: 344340.8199 | E116: 372659.9035 | F116: 349472.5996 | G116: 222598.1169
C117: 5 | D117: 381802.4904 | E117: 418978.208 | F117: 392727.9872 | G117: 252002.1199
F123: Lead Acid | G123: lithium ion
F124: Fuel Cell | G124: ICE
C125: Cumulative Costs (per year)
C126: 0 | D126: =D80 -> 489000 | E126: =E80 -> 574500 | F126: =F80 -> 587000 | G126: =G80 -> 360000
C127: 1 | D127: =D$80+(Inputs!$F$27*$C127*D$89)+D113 -> 713071.0601 | E127: =E$80+Inputs!$F$27*$C127*E$89+E113 -> 758493.0965 | F127: =F$80+Inputs!$F$27*$C127*F$89+F113 -> 795281.5309 | G127: =G$80+Inputs!$F$27*$C127*G$89+G113 -> 586825.24
C128: 2 | D128: =D$80+(Inputs!$F$27*$C128*D$89)+D114 -> 902307.5381 | E128: =E$80+Inputs!$F$27*$C128*E$89+E114 -> 911857.2609 | F128: =F$80+Inputs!$F$27*$C128*F$89+F114 -> 974651.4796 | G128: =G$80+Inputs!$F$27*$C128*G$89+G114 -> 797163.92
C129: 3 | D129: =D$80+(Inputs!$F$27*$C129*D$89)+D115 -> 1066242.379 | E129: =E$80+Inputs!$F$27*$C129*E$89+E115 -> 1041702.127 | F129: =F$80+Inputs!$F$27*$C129*F$89+F115 -> 1131851.967 | G129: =G$80+Inputs!$F$27*$C129*G$89+G115 -> 994544.1638
C130: 4 | D130: =D$80+(Inputs!$F$27*$C130*D$89)+D116 -> 1211754.26 | E130: =E$80+Inputs!$F$27*$C130*E$89+E116 -> 1153481.49 | F130: =F$80+Inputs!$F$27*$C130*F$89+F116 -> 1272047.923 | G130: =G$80+Inputs!$F$27*$C130*G$89+G116 -> 1181739.077
C131: 5 | D131: =D$80+(Inputs!$F$27*$C131*D$89)+D117 -> 1343819.291 | E131: =E$80+Inputs!$F$27*$C131*E$89+E117 -> 1251380.191 | F131: =F$80+Inputs!$F$27*$C131*F$89+F117 -> 1399197.142 | G131: =G$80+Inputs!$F$27*$C131*G$89+G117 -> 1360928.32
C136: Table used for calulation paypack period (including depreciation)
C137: =C80 -> Total initial investment | D137: =D80 -> 489000 | E137: =E80 -> 574500 | F137: =F80 -> 587000 | G137: =G80 -> 360000
C138: Averagae Depreciation | D138: =AVERAGE(D113:D117) -> 274628.8253 | E138: =AVERAGE(E113:E117) -> 294141.6432 | F138: =AVERAGE(F113:F117) -> 275924.5157 | G138: =AVERAGE(G113:G117) -> 174884.4241
C139: Yearly investment cost | D139: =D138+D137 -> 763628.8253 | E139: =E138+E137 -> 868641.6432 | F139: =F138+F137 -> 862924.5157 | G139: =G138+G137 -> 534884.4241
D144: Lead Acid | E144: lithium ion | F144: Fuel Cell | G144: ICE
C147: Max Power required when charging | D147: n.a. | E147: =IF(D14=Trucks!$C$265,VLOOKUP(E16,Trucks!D265:G269,3,FALSE)*Inputs!F27*Inputs!F89,IF(D14=Trucks!C270,VLOOKUP(E16,Trucks!D270:F274,3,FALSE)*Inputs!F27*Inputs!F89)) -> 399 | F147: n.a. | G147: n.a.
C148: Fuel / Energy consumption (annual)(kwh,L or KG) | D148: =Inputs!$F$27*Calc1!D52 -> 398309.4595 | E148: =Inputs!$F$27*Calc1!E52 -> 275788.538 | F148: =Inputs!$F$27*Calc1!F52 -> 14162.11411 | G148: =Inputs!$F$27*Calc1!G52 -> 77604.8
C152: Productivity
C153: Total Operation Hrs/truck/year | D153: =D5*Calc2!C6*Inputs!F20 -> 3280 | E153: =D5*Calc2!C6*Inputs!F20 -> 3280 | F153: =D5*Calc2!C6*Inputs!F20 -> 3280 | G153: =D5*Calc2!C6*Inputs!F20 -> 3280
C154: Refueling / Lost productivity (hours)/truck/year | D154: =D54 -> 119.6221591 | E154: =E54 -> 24 | F154: =F54 -> 49.69162847 | G154: =G54 -> 49.74666667
C155: % | D155: =D154/D153 -> 0.03647017045 | E155: =E154/E153 -> 0.007317073171 | F155: =F154/F153 -> 0.01514988673 | G155: =G154/G153 -> 0.01516666667
C157: No of pallets moved/truck/year (assume 20/hr) (STD ECLO mode) | D157: =20*D5*Calc2!C6*Inputs!F20 -> 65600 | E157: =20*D5*Calc2!C6*Inputs!F20 -> 65600 | F157: =20*D5*Calc2!C6*Inputs!F20 -> 65600 | G157: =20*D5*Calc2!C6*Inputs!F20 -> 65600
C158: Pallets moved | D158: =IF(Inputs!F79="yes",Performance!B12*D157,Performance!C12*D157) -> 65600 | E158: =IF(Inputs!F92="yes",Performance!B12*E157,Performance!C12*E157) -> 65600 | F158: =IF(Inputs!F104="yes",Performance!B12*F157,Performance!C12*F157) -> 65600 | G158: =IF(Inputs!F52="yes",Performance!B12*G157,Performance!C12*G157) -> 65600
C160: No of pallets moved/truck/year /FLEET (assume 20/hr) | D160: =D158*Inputs!F27 -> 656000 | E160: =E158*Inputs!F27 -> 656000 | F160: =F158*Inputs!F27 -> 656000 | G160: =G158*Inputs!F27 -> 656000
C165: Cost of Lost productivity/truck | D165: =D154*Calc2!C21 -> 3588.664773 | E165: =E154*Calc2!C21 -> 720 | F165: =F154*Calc2!C21 -> 1490.748854 | G165: =G154*Calc2!C21 -> 1492.4
C166: Cost of Lost productivity/fleet | D166: =D165*Inputs!F27 -> 35886.64773 | E166: =E165*Inputs!F27 -> 7200 | F166: =F165*Inputs!F27 -> 14907.48854 | G166: =G165*Inputs!F29 -> 44772

Sheet Performance (hidden)
K4: Select Hip | L4: Yes | M4: No
K5: Energency Increase | L5: 1.15 | M5: 1
K6: Performance increase | L6: 1.05 | M6: 1
A10: Select Hip | B10: Yes | C10: No
A11: Energency Increase | B11: 1 | C11: 1
A12: Performance increase | B12: 1 | C12: 1

Sheet TBD - Li-Ion Chargers (hidden)
B2: IP 54 MODELS | C2: Type | D2: Output | J2: Phase Current | K2: Max Input Power | L2: Input Protection | M2: Housing Dimensions | R2: Mandatory Space | T2: Weight
L3: Breaker Curve [D]
D4: U Range | H4: I max | I4: Pout max | L4: Input Fuse gG Type | M4: L | N4: W | O4: H | P4: D | Q4: E | R4: M | S4: S
D5: V | G5: V | H5: A | I5: kW | J5: A (±10%) | K5: kVA | L5: Rated AMP (1) | M5: mm | N5: mm | O5: mm | P5: mm | Q5: mm | R5: mm | S5: mm | T5: kg
C6: HE Li-Ion 0-A M* | D6: 6 | F6: 33 | G6: 24 | H6: 60 | I6: 1,7 | J6: 8.3 | K6: 2 | L6: 15 | M6: 171 | N6: 111 | O6: 420 | P6: 425 | Q6: 70 | S6: 100 | T6: 5
C7: HE Li-Ion 1-A M IP54* | D7: 6 | E7: - | F7: 33 | G7: 24 | H7: 100 | I7: 2,9 | J7: 13.7 | K7: 3.2 | L7: 25 | M7: 410 | N7: 234 | O7: 716 | P7: 582 | Q7: 243 | R7: 150 | S7: 150 | T7: 26
C8: HE Li-Ion 1-B M IP54* | D8: 18 | E8: - | F8: 70 | G8: 24 | H8: 70 | I8: 3,2 | J8: 15.1 | K8: 3.5 | L8: 40 | M8: 410 | N8: 234 | O8: 716 | P8: 582 | Q8: 243 | R8: 150 | S8: 150 | T8: 26
C9: HE Li-Ion 1-B2 M IP54* | D9: 18 | E9: - | F9: 70 | G9: 24 | H9: 140 | I9: 5,8 | J9: 30 | K9: 7 | L9: 25 | M9: 410 | N9: 234 | O9: 716 | P9: 582 | Q9: 243 | R9: 150 | S9: 150 | T9: 46
C10: HE Li-Ion 3-A 24 T IP54* | D10: 6 | E10: - | F10: 33 | G10: 24 | H10: 150 | I10: 4,3 | J10: 7.2 | K10: 5 | L10: 10 | M10: 410 | N10: 234 | O10: 716 | P10: 582 | Q10: 243 | R10: 150 | S10: 150 | T10: 42
C11: HE Li-Ion 12/24-200 T IP54 | D11: 6 | E11: - | F11: 33 | G11: 24 | H11: 200 | I11: 5,8 | J11: 9.4 | K11: 6.5 | L11: 15 | M11: 487 | N11: 555 | O11: 1001 | P11: 582 | Q11: 243 | R11: 150 | S11: 150 | T11: 165
C12: HE Li-Ion 12/24-250 T IP54 | D12: 6 | E12: - | F12: 33 | G12: 24 | H12: 250 | I12: 7,2 | J12: 11.8 | K12: 8.2 | L12: 20 | M12: 487 | N12: 555 | O12: 1001 | P12: - | Q12: - | R12: 150 | S12: 460 | T12: 185
C13: HE Li-Ion 12/24-320 T IP54 | D13: 6 | E13: - | F13: 33 | G13: 24 | H13: 320 | I13: 9,2 | J13: 15.1 | K13: 10.4 | L13: 25 | M13: 811 | N13: 503 | O13: 1801 | P13: - | Q13: - | R13: 150 | S13: 460 | T13: 365
C14: HE Li-Ion 12/24-500 T IP54 | D14: 6 | E14: - | F14: 33 | G14: 24 | H14: 500 | I14: 14,4 | J14: 23.6 | K14: 16.3 | L14: 40 | M14: 811 | N14: 503 | O14: 1801 | P14: - | Q14: - | R14: 150 | S14: 460 | T14: 400
C15: HE Li-Ion 0-B M* | D15: 30 | F15: 70 | G15: 48 | H15: 40 | I15: 1,7 | J15: 8.3 | K15: 2 | L15: 15 | M15: 171 | N15: 111 | O15: 420 | P15: 425 | Q15: 70 | S15: 100 | T15: 5
C16: HE Li-Ion 1-B M IP54* | D16: 18 | E16: - | F16: 70 | G16: 24 | H16: 70 | I16: 3,2 | J16: 15.1 | K16: 3.5 | L16: 40 | M16: 410 | N16: 234 | O16: 716 | P16: 582 | Q16: 243 | R16: 150 | S16: 150 | T16: 26
C17: HE Li-Ion 1-B2 M IP54* | D17: 18 | E17: - | F17: 70 | G17: 48 | H17: 140 | I17: 5,8 | J17: 30 | K17: 7 | L17: 25 | M17: 410 | N17: 234 | O17: 716 | P17: 582 | Q17: 243 | R17: 150 | S17: 150 | T17: 46
C18: HE Li-Ion 3-S T IP54* | D18: 18 | E18: - | F18: 70 | G18: 48 | H18: 100 | I18: 5,8 | J18: 9.6 | K18: 6.7 | L18: 15 | M18: 410 | N18: 234 | O18: 716 | P18: 582 | Q18: 243 | R18: 150 | S18: 150 | T18: 44
C19: HE Li-Ion 3-A T IP54* | D19: 18 | E19: - | F19: 70 | G19: 48 | H19: 150 | I19: 8,6 | J19: 14.4 | K19: 10 | L19: 20 | M19: 410 | N19: 234 | O19: 716 | P19: 582 | Q19: 243 | R19: 150 | S19: 150 | T19: 44
C20: HE Li-Ion 12/48-200 T IP54 | D20: 6 | E20: - | F20: 70 | G20: 48 | H20: 200 | I20: 11,5 | J20: 18.7 | K20: 12.9 | L20: 25 | M20: 811 | N20: 503 | O20: 1801 | P20: - | Q20: - | R20: 150 | S20: 460 | T20: 360
C21: HE Li-Ion 12/48-250 T IP54 | D21: 6 | E21: - | F21: 70 | G21: 48 | H21: 250 | I21: 14,4 | J21: 23.3 | K21: 16.1 | L21: 40 | M21: 811 | N21: 503 | O21: 1801 | P21: - | Q21: - | R21: 150 | S21: 460 | T21: 380
C22: HE Li-Ion 12/48-320 T IP54 | D22: 6 | E22: - | F22: 70 | G22: 48 | H22: 320 | I22: 18,4 | J22: 29.9 | K22: 20.7 | L22: 40 | M22: 811 | N22: 503 | O22: 1801 | P22: - | Q22: - | R22: 150 | S22: 460 | T22: 425
C23: HE Li-Ion 12/48-500 T IP54 | D23: 6 | E23: - | F23: 70 | G23: 48 | H23: 500 | I23: 28,8 | J23: 46.7 | K23: 32.3 | L23: 70 | M23: 1626 | N23: 503 | O23: 1801 | P23: - | Q23: - | R23: 150 | S23: 460 | T23: 760
C24: HE Li-Ion 12/48-600 T IP54 | D24: 6 | E24: - | F24: 70 | G24: 48 | H24: 600 | I24: 34,6 | J24: 56 | K24: 38.8 | L24: 80 | M24: 1626 | N24: 503 | O24: 1801 | P24: - | Q24: - | R24: 150 | S24: 460 | T24: 790
C25: HE Li-Ion 1-C M IP54* | D25: 60 | E25: - | F25: 130 | G25: 80 | H25: 35 | I25: 2,9 | J25: 13.7 | K25: 3.2 | L25: 25 | M25: 410 | N25: 234 | O25: 716 | P25: 582 | Q25: 243 | R25: 150 | S25: 150 | T25: 26
C26: HE Li-Ion 1-C2 M IP54* | D26: 60 | E26: - | F26: 130 | G26: 80 | H26: 70 | I26: 5,8 | J26: 30 | K26: 7 | L26: 40 | M26: 410 | N26: 234 | O26: 716 | P26: 582 | Q26: 243 | R26: 150 | S26: 150 | T26: 46
C27: HE Li-Ion 3-B T IP54* | D27: 60 | E27: - | F27: 130 | G27: 80 | H27: 90 | I27: 7,7 | J27: 12.8 | K27: 8.9 | L27: 20 | M27: 410 | N27: 234 | O27: 716 | P27: 582 | Q27: 243 | R27: 150 | S27: 150 | T27: 44
C28: HE Li-Ion 12/80-120 T IP54 | D28: 6 | E28: - | F28: 130 | G28: 80 | H28: 120 | I28: 11,5 | J28: 18.5 | K28: 12.8 | L28: 25 | M28: 487 | N28: 555 | O28: 1001 | P28: - | Q28: - | R28: 150 | S28: 460 | T28: 190
C29: HE Li-Ion 12/80-160 T IP54 | D29: 6 | E29: - | F29: 130 | G29: 80 | H29: 160 | I29: 15,4 | J29: 24.6 | K29: 17 | L29: 40 | M29: 811 | N29: 503 | O29: 1801 | P29: - | Q29: - | R29: 150 | S29: 460 | T29: 365
C30: HE Li-Ion 12/80-200 T IP54 | D30: 6 | E30: - | F30: 130 | G30: 80 | H30: 200 | I30: 19,2 | J30: 30.8 | K30: 21.3 | L30: 50 | M30: 811 | N30: 503 | O30: 1801 | P30: - | Q30: - | R30: 150 | S30: 460 | T30: 440
C31: HE Li-Ion 12/80-250 T IP54 | D31: 6 | E31: - | F31: 130 | G31: 80 | H31: 250 | I31: 24 | J31: 38.5 | K31: 26.6 | L31: 60 | M31: 811 | N31: 503 | O31: 1801 | P31: - | Q31: - | R31: 150 | S31: 460 | T31: 455
C32: HE Li-Ion 12/80-320 T IP54 | D32: 6 | E32: - | F32: 130 | G32: 80 | H32: 320 | I32: 30,7 | J32: 49.2 | K32: 34.1 | L32: 70 | M32: 811 | N32: 503 | O32: 1801 | P32: - | Q32: - | R32: 150 | S32: 460 | T32: 460
C33: HE Li-Ion 12/80-500 T IP54 | D33: 6 | E33: - | F33: 130 | G33: 80 | H33: 500 | I33: 48 | J33: 76.9 | K33: 53.2 | L33: 110 | M33: 1626 | N33: 503 | O33: 1801 | P33: - | Q33: - | R33: 150 | S33: 460 | T33: 930
C34: HE Li-Ion 12/120-100 T IP54 | D34: 6 | E34: - | F34: 150 | G34: 120 | H34: 100 | I34: 11,5 | J34: 23.1 | K34: 16 | L34: 40 | M34: 811 | N34: 503 | O34: 1801 | P34: - | Q34: - | R34: 150 | S34: 460 | T34: 365
C35: HE Li-Ion 12/120-150 T IP54 | D35: 6 | E35: - | F35: 150 | G35: 120 | H35: 150 | I35: 17,3 | J35: 34.6 | K35: 24 | L35: 55 | M35: 811 | N35: 503 | O35: 1801 | P35: - | Q35: - | R35: 150 | S35: 460 | T35: 440
C36: HE Li-Ion 12/120-200 T IP54 | D36: 6 | E36: - | F36: 150 | G36: 120 | H36: 200 | I36: 23 | J36: 46.2 | K36: 32 | L36: 70 | M36: 811 | N36: 503 | O36: 1801 | P36: - | Q36: - | R36: 150 | S36: 460 | T36: 455

Sheet Maintenance (hidden)
O1: Euro/GBP | P1: 1.13
B2: Battery Maintence
L12: Topping up charge per visit Pro rata £16/battery every 4 weeks = £192 (211 Euro )
L13: Battery Cleaning Annual £150 (165Euro)
L14: Charger Clean and service £244 (268Euro)
B33: TRUCK Maintenance
B34: 10000 | C34: hr Maint Cost Grand Total | E34: H50XT LPG (PSI) | H34: 5515.57 | I34: =H34*P1 -> 6232.5941
B35: 10000 | C35: hr Maint Cost Grand Total | E35: JXN/ERPVL | H35: 2726.83 | I35: =H35*P1 -> 3081.3179

Sheet Devlogs (hidden)
C2: Not included
D4: Incentives/benefits removed for EU version - note added to output page
D5: Note we have not included productivity in this model (Hip/Eco disabled)
D6: We have no EOL disposal costs
D7: Fuel cell rebuild
C10: We have included
D11: Depreciation value added to the over all costs | E11: Matt to confirm value
D12: Battery degrogation | E12: Nominal value added spread over 5 year
D13: Payback time
D14: Service rates
D15: Carbon Emission
D16: Options for Incentives/Benefits
D17: Refuel time/Batt change over
C20: · Tidy up charger and Battery offering – IW
C21: · Remove incentives for Europe and add a note in the output tab for local incentives – IW
C22: · Check water top up and battery maintenance – IW | E22: YES
C23: · Add 4-5 T Ice - Student
C24: · Add in disclaimers IW
C25: · Note to convert liters to Kg IW
C26: · Note to “ensure LPG bottle size is compatible” IW

Sheet TBD - ECBTrucks (hidden)
A1: eModel | B1: eVDI | C1: Voltage | D1: Hyster | E1: Yale
A2: J1.5XNT_SWB | B2: 3.9 | C2: 48 | D2: J1.5XNT SWB | E2: ERP15VT SWB
A3: J1.6XN_LWB | B3: 4.5 | C3: 48 | D3: J1.6XN LWB | E3: ERP16VF LWB
A4: J1.6XN_MWB | B4: 4.4 | C4: 48 | D4: J1.6XN MWB | E4: ERP16VF MWB
A5: J1.6XNT_LWB | B5: 4.2 | C5: 48 | D5: J1.6XNT LWB | E5: ERP16VT LWB
A6: J1.6XNT_MWB | B6: 4.2 | C6: 48 | D6: J1.6XNT MWB | E6: ERP16VT MWB
A7: J1.6XNT_SWB | B7: 4.2 | C7: 48 | D7: J1.6XNT SWB | E7: ERP16VT SWB
A8: J1.8XN_LWB | B8: 5 | C8: 48 | D8: J1.8XN LWB | E8: ERP18VF LWB
A9: J1.8XN_MWB | B9: 5 | C9: 48 | D9: J1.8XN MWB | E9: ERP18VF MWB
A10: J1.8XNT_LWB | B10: 4.7 | C10: 48 | D10: J1.8XNT LWB | E10: ERP18VT LWB
A11: J1.8XNT_MWB | B11: 4.7 | C11: 48 | D11: J1.8XNT MWB | E11: ERP18VT MWB
A12: J2.0XN_LWB | B12: 5.5 | C12: 48 | D12: J2.0XN LWB | E12: ERP20VF LWB
A13: J2.0XN_MWB | B13: 5.5 | C13: 48 | D13: J2.0XN MWB | E13: ERP20VF MWB
A14: J2.0XNT_LWB | B14: 5.2 | C14: 48 | D14: J2.0XNT LWB | E14: ERP20VT LWB
A15: J2.0XNT_MWB | B15: 5.5 | C15: 48 | D15: J2.0XNT MWB | E15: ERP20VT MWB
A16: J2.2XN_Adv | B16: 6.68 | C16: 80 | D16: J2.2XN Advance | E16: ERP22VL Value
A17: J2.2XN_Adv_Plus | B17: 7.51 | C17: 80 | D17: J2.2XN Advance+ | E17: ERP22VL Prod
A18: J2.5XN_717_Adv | B18: 7 | C18: 80 | D18: J2.5XN-717 Adv. | E18: ERP25VL MWB Val
A19: J2.5XN_717_Adv_Plus | B19: 7.87 | C19: 80 | D19: J2.5XN-717 Adv.+ | E19: ERP25VL MWB Prod
A20: J2.5XN_861_Adv | B20: 7.89 | C20: 80 | D20: J2.5XN-861 Adv. | E20: ERP25VL LWB Val
A21: J2.5XN_861_Adv_Plus | B21: 8.86 | C21: 80 | D21: J2.5XN-861 Adv.+ | E21: ERP25VL LWB Prod
A22: J3.0XN_Adv | B22: 8.7 | C22: 80 | D22: J3.0XN Advance | E22: ERP30VL LWB Val
A23: J3.0XN_Adv_Plus | B23: 9.7 | C23: 80 | D23: J3.0XN Advance+ | E23: ERP30VL LWB Prod
A24: J3.5XN_Adv | B24: 10 | C24: 80 | D24: J3.5XN Advance | E24: ERP35VL LWB Val
A25: J3.5XN_Adv_Plus | B25: 11.3 | C25: 80 | D25: J3.5XN Advance+ | E25: ERP35VL LWB Prod
A26: J4.0XN | B26: 12.5 | C26: 80 | D26: J4.0XN | E26: ERP40VM
A27: J4.5XN | B27: 12.7 | C27: 80 | D27: J4.5XN | E27: ERP45VM
A28: J5.0XN | B28: 12.9 | C28: 80 | D28: J5.0XN | E28: ERP50VM
A29: J5.0XN6 | B29: 13.1 | C29: 80 | D29: J5.0XN6 | E29: ERP50VM6
A30: J5.5XN6 | B30: 13.5 | C30: 80 | D30: J5.5XN6 | E30: ERP55VM6

Sheet Sheet4 (hidden)
A1: Select | B1: Select | C1: VDI
A2: J1.5XNT_SWB 3-whl | B2: 48 | C2: 3.9
A3: J1.6XNT_SWB 3-whl | B3: 48 | C3: 4.2
A4: J1.6XNT_MWB 3-whl | B4: 48 | C4: 4.2
A5: J1.6XNT_LWB 3-whl | B5: 48 | C5: 4.2
A6: J1.6XN_MWB 4-whl | B6: 48 | C6: 4.4
A7: J1.6XN_LWB 4-whl | B7: 48 | C7: 4.5
A8: J1.8XNT_MWB 3-whl | B8: 48 | C8: 4.7
A9: J1.8XNT_LWB 3-whl | B9: 48 | C9: 4.7
A10: J1.8XN_MWB 4-whl | B10: 48 | C10: 5
A11: J1.8XN_LWB 4-whl | B11: 48 | C11: 5
A12: J2.0XNT_MWB 3-whl | B12: 48 | C12: 5.5
A13: J2.0XNT_LWB 3-whl | B13: 48 | C13: 5.2
A14: J2.0XN_LWB 4-whl | B14: 48 | C14: 5.5
A16: J2.2XN_Adv | B16: 80 | C16: 6.68
A17: J2.2XN_Adv_Plus | B17: 80 | C17: 7.51
A18: J2.5XN_717_Adv | B18: 80 | C18: 7
A19: J2.5XN_717_Adv_Plus | B19: 80 | C19: 7.87
A20: J2.5XN_861_Adv | B20: 80 | C20: 7.89
A21: J2.5XN_861_Adv_Plus | B21: 80 | C21: 8.86
A22: J3.0XN_Adv | B22: 80 | C22: 8.7
A23: J3.0XN_Adv_Plus | B23: 80 | C23: 9.7
A24: J3.5XN_Adv | B24: 80 | C24: 10
A25: J3.5XN_Adv_Plus | B25: 80 | C25: 11.3
A26: J4.0XN | B26: 80 | C26: 12.5
A27: J4.5XN | B27: 80 | C27: 12.7
A28: J5.0XN | B28: 80 | C28: 12.9
A29: J5.0XN6 | B29: 80 | C29: 13.1
A30: J5.5XN6 | B30: 80 | C30: 13.5

Sheet Sheet1 (hidden)

Sheet Sheet2 (hidden)
